Workbook

Sheet ข้อมูลพื้นฐาน
B1: โปรแกรมจัดทำ ปพ : 5 ด้วย MS-Excel | K1: ออกแบบและพัฒนา โดย
K2: นายเกรียงศักดิ์ โกบสันเทียะ
K3: ครู ชำนาญการพิเศษ โรงเรียนสมเสม็ดวิทยา | S3: คู่มือการใช้งานเบื้องต้น
C4: ข้อมูลพื้นฐานสถานศึกษา | S4: ส่วนที่ 1 ข้อมูลสถานศึกษา
C5: โรงเรียน | E5: สมเสม็ดวิทยา | S5: - | T5: คลิกเลือกชื่อหัวหน้างานวัดผล
C6: สังกัด/เขตพื้นที่ | E6: สำนักงานเขตพื้นที่การศึกษามัธยมศึกษา เขต 32 | S6: - | T6: คลิกเลือกชื่อหัวหน้ากลุ่มวิชาการ
C7: ที่อยู่ | E7: 175 หมู่ 5 ตำบลชุมแสง อำเภอสตึก จังหวัดบุรีรัมย์ | S7: - | T7: คลิกเลือกชื่อผู้อำนวยการ
C8: ผู้อำนวยการ | E8: นางสาววรินทร ปัดกอง | J8: ตำแหน่ง | K8: =IF(E8="","",VLOOKUP(E8,บุคลากร!$E$11:$G$52,3,FALSE)) -> ผู้อำนวยการ
C9: หัวหน้ากลุ่มงานวิชาการ | E9: นายเกรียงศักดิ์ โกบสันเทียะ | J9: ตำแหน่ง | K9: =IF(E9="","",VLOOKUP(E9,บุคลากร!$E$11:$G$52,3,FALSE)) -> ครู ชำนาญการพิเศษ
C10: หัวหน้างานวัดผล | E10: นายวินัย ประชุมแดง | J10: ตำแหน่ง | K10: =IF(E10="","",VLOOKUP(E10,บุคลากร!$E$11:$G$52,3,FALSE)) -> ครู ชำนาญการ
C11: ข้อมูลรายวิชา | S11: ส่วนที่ 2 ข้อมูลรายวิชา
C12: รหัสวิชา | F12: ชื่อวิชา | S12: - | T12: กรอกรหัสวิชา และชื่อรายวิชา
C13: ภาคเรียนที่ | F13: ปีการศึกษา | J13: เวลาเรียน (ชม.)/ภาคเรียน | S13: - | T13: คลิกเลือกภาคเรียน คลิกเลือกปีการศึกษา และคลิกเลือกเวลาเรียน
C14: กลุ่มสาระการเรียนรู้ | E14: =IF(E12="","",IF(LEFT(E12,1)="ท",H33,IF(LEFT(E12,1)="ค",H34,IF(LEFT(E12,1)="ว",H35,IF(LEFT(E12,1)="ส",H36,IF(LEFT(E12,1)="พ",H37,IF(LEFT(E12,1)="ศ",H38,IF(LEFT(E12,1)="ง",H39,IF(LEFT(E12,1)="อ",H40,IF(LEFT(E12,1)="ก",H41,"รหัสวิชาไม่ถูกต้อง")))))))))) ->  | J14: ลักษณะวิชา | S14: - | T14: คลิกเลือกประเภทรายวิชา
D15: ครูผู้สอน | J15: ตำแหน่ง | K15: =IF(E15="","",VLOOKUP(E15,บุคลากร!$E$11:$G$52,3,FALSE)) ->  | S15: - | T15: คลิกเลือกชื่อครูผู้สอน
C16: หัวหน้ากล่มสาระ | E16: =IF(E14="","",VLOOKUP(E14,จัดบุคลากร!$C$11:$E$19,3,FALSE)) ->  | J16: ตำแหน่ง | K16: =IF(E16="","",VLOOKUP(E16,จัดบุคลากร!$E$11:$F$19,2,FALSE)) ->  | S16: - | T16: คลิกเลือกอัตราส่วนคะแนน
E17: อัตราส่วนคะแนนระหว่างเรียน : ปลายภาคเรียน | J17: 70 : 30
C18: ข้อมูลชั้นเรียน | S18: ส่วนที่ 3 ข้อมูลชั้นเรียน
C19: ระดับชั้น | G19: ห้อง | I19: =""&IF(E19="","",IF(E19="มัธยมศึกษาปีที่ 1 - 6","ม.0-0",IF(E19="มัธยมศึกษาปีที่ 1","ม.1",IF(E19="มัธยมศึกษาปีที่ 2","ม.2",IF(E19="มัธยมศึกษาปีที่ 3","ม.3",IF(E19="มัธยมศึกษาปีที่ 4","ม.4",IF(E19="มัธยมศึกษาปีที่ 5","ม.5",IF(E19="มัธยมศึกษาปีที่ 6","ม.6",IF(E19="มัธยมศึกษาปีที่ 1 - 6","ม.0","")))))))&"-"&H19&"")) ->  | S19: - | T19: คลิกเลือกระดับชั้นที่สอน (สำหรับชุมนุมให้เลือก ม.1 - 6)
C20: ครูประจำชั้น คนที่ 1 | E20: =IF(I20=-1,"",IF(I20="-1","",IF(AA33="","",IF(AA33=0,"",AA33)))) ->  | I20: =IF(E19="มัธยมศึกษาปีที่ 1 - 6",-1,$W$33&"-1") -> -1 | J20: ตำแหน่ง | K20: =IF(E20="","",VLOOKUP(E20,จัดบุคลากร!$M$30:$N$56,2,FALSE)) ->  | S20: - | T20: ระบุวันอนุมัติผลการเรียน (รอประกาศจากกลุ่มงานวิชาการ)
C21: ครูประจำชั้น คนที่ 2 | E21: =IF(I21=-1,"",IF(I21="-2","",IF(AA34="","",IF(AA34=0,"",AA34)))) ->  | I21: =IF(E19="มัธยมศึกษาปีที่ 1 - 6",-2,$W$33&"-2") -> -2 | J21: ตำแหน่ง | K21: =IF(E21="","",VLOOKUP(E21,จัดบุคลากร!$M$30:$N$56,2,FALSE)) -> 
C22: ครูประจำชั้น คนที่ 3 | E22: =IF(I22=-1,"",IF(I22="-3","",IF(AA35="","",IF(AA35=0,"",AA35)))) ->  | I22: =IF(E19="มัธยมศึกษาปีที่ 1 - 6",-3,$W$33&"-3") -> -3 | J22: ตำแหน่ง | K22: =IF(E22="","",VLOOKUP(E22,จัดบุคลากร!$M$30:$N$56,2,FALSE)) ->  | S22: หมายเหตุ การพิมพ์ทั้งเล่ม (พิมพ์ไฟล์ pdf) ใช้คำสั่ง ctrl+p
C23: วันอนุมัติผลการเรียน | K23: ปรับปรุงเมื่อ 7 พฤศจิการยน 2561
E32: ภาคเรียนที่ | F32: ปีการศึกษา | G32: เวลาเรียน | H32: กลุ่มสาระ | L32: ลักษณะรายวิชา | N32: อัตราส่วนคะแนน | Q32: ระดับชั้น | S32: ตำแหน่ง | W32: ชั้น | Z32: ครูประจำชั้น
E33: 1 | F33: 2558 | G33: 20 | H33: ภาษาไทย | L33: วิชาพื้นฐาน | N33: 100 : 0 | Q33: มัธยมศึกษาปีที่ 1 | S33: ผู้อำนวยการ | W33: =IF(I19="ม.0-0","มัธยมศึกษาปีที่ 1 - 6",IF(I19="ม.1-1","มัธยมศึกษาปีที่ 1/1",IF(I19="ม.1-2","มัธยมศึกษาปีที่ 1/2",IF(I19="ม.2-1","มัธยมศึกษาปีที่ 2/1",IF(I19="ม.2-2","มัธยมศึกษาปีที่ 2/2",IF(I19="ม.3-1","มัธยมศึกษาปีที่ 3/1",IF(I19="ม.3-2","มัธยมศึกษาปีที่ 3/2",IF(I19="ม.4-1","มัธยมศึกษาปีที่ 4/1",IF(I19="ม.5-1","มัธยมศึกษาปีที่ 5/1",IF(I19="ม.6-1","มัธยมศึกษาปีที่ 6/1","")))))))))) ->  | Y33: =$W$33&"-1" -> -1 | Z33: 1 | AA33: =VLOOKUP(I20,จัดบุคลากร!$J$30:$N$56,4,FALSE) -> 
E34: 2 | F34: 2559 | G34: 40 | H34: คณิตศาสตร์ | L34: วิชาเพิ่มเติม | N34: 90 : 10 | Q34: มัธยมศึกษาปีที่ 2 | S34: รองผู้อำนวยการ | Y34: =$W$33&"-2" -> -2 | Z34: 2 | AA34: =VLOOKUP(I21,จัดบุคลากร!$J$30:$N$56,4,FALSE) -> 
F35: 2560 | G35: 60 | H35: วิทยาศาสตร์และเทคโนโลยี | L35: กิจกรรมพัฒนาผู้เรียน | N35: 80 : 20 | Q35: มัธยมศึกษาปีที่ 3 | S35: ครู ชำนาญการพิเศษ | Y35: =$W$33&"-3" -> -3 | Z35: 3 | AA35: =VLOOKUP(I22,จัดบุคลากร!$J$30:$N$56,4,FALSE) -> 
F36: 2561 | G36: 80 | H36: สังคมศึกษา ศาสนาและวัฒนธรรม | N36: 70 : 30 | Q36: มัธยมศึกษาปีที่ 4 | S36: ครู ชำนาญการ
F37: 2562 | H37: สุขศึกษาและพลศึกษา | N37: 60 : 40 | Q37: มัธยมศึกษาปีที่ 5 | S37: ครู
F38: 2563 | H38: ศิลปะ | N38: 50 : 50 | Q38: มัธยมศึกษาปีที่ 6 | S38: ครูผู้ช่วย
F39: 2564 | H39: การงานอาชีพ | Q39: มัธยมศึกษาปีที่ 1 - 6 | S39: พนักงานราชการ
F40: 2565 | H40: ภาษาต่างประเทศ | S40: นักศึกษาฝึกประสบการณ์ฯ
H41: กิจกรรมพัฒนาผู้เรียน | Q41: ห้องเรียน
Q42: 0
Q43: 1
Q44: 2
Q45: 3
Q46: 4
Q47: 5

Sheet บุคลากร
C2: เมื่อเพิ่มรายชื่อบุคลากรแล้ว ให้กด ctrl+r เพื่อจัดเรียงรายชื่อใหม่
C7: ="รายชื่อบุคลากร โรงเรียน"&ข้อมูลพื้นฐาน!E5&" " -> รายชื่อบุคลากร โรงเรียนสมเสม็ดวิทยา
C8: =ข้อมูลพื้นฐาน!E6 -> สำนักงานเขตพื้นที่การศึกษามัธยมศึกษา เขต 32
C10: ลำดับที่ | D10: รหัส | E10: ชื่อ - นามสกุล | G10: ตำแหน่ง/วิทยฐานะ
C11: 1 | D11: 2 | E11: นางสาววรินทร ปัดกอง | F11: =D11 -> 2 | G11: ผู้อำนวยการ
C12: 2 | D12: 102 | E12: นางสาวอัจฉรีญาธร อินทร์พิทักษ์ | F12: =D12 -> 102 | G12: พนักงานราชการ
C13: 3 | D13: 103 | E13: นางสาวแสงดาว โขนภูเขียว | F13: =D13 -> 103 | G13: ครูผู้ช่วย
C14: 4 | D14: 201 | E14: นายเกรียงศักดิ์ โกบสันเทียะ | F14: 201 | G14: ครู ชำนาญการพิเศษ
C15: 5 | D15: 202 | E15: นายเดชชาติ วันทนาพิทักษ์ | F15: 202 | G15: ครูผู้ช่วย
C16: 6 | D16: 301 | E16: นายสมพบ เกรียรัมย์ | F16: 301 | G16: ครู ชำนาญการ
C17: 7 | D17: 302 | E17: นายวินัย ประชุมแดง | F17: 302 | G17: ครู ชำนาญการ
C18: 8 | D18: 305 | E18: นางสาววราภรณ์ ทานคำ | F18: 305 | G18: ครูผู้ช่วย
C19: 9 | D19: 306 | E19: นางสาวนัชชา โรจน์บูรณาวงศ์ | F19: 306 | G19: ครูผู้ช่วย
C20: 10 | D20: 307 | E20: นางสาวธนาภรณ์ สว่างศรี | F20: 307 | G20: ครูผู้ช่วย
C21: 11 | D21: 401 | E21: นายธีระพล อัตถปรัชญาเมือง | F21: 401 | G21: ครู
C22: 12 | D22: 501 | E22: นายยุนนท์ พละศักดิ์ | F22: 501 | G22: ครู ชำนาญการ
C23: 13 | D23: 601 | E23: นางสาวภูริดา อุพลรัมย์ | F23: 601 | G23: ครู
C24: 14 | D24: 701 | E24: นางพัชราวลัย เกรียรัมย์ | F24: 701 | G24: ครู ชำนาญการพิเศษ
C25: 15 | D25: 802 | E25: นายพงษ์เดช ปะรุมรัมย์ | F25: 802 | G25: ครู
C26: 16 | D26: 803 | E26: นางสาวผกามาศ อาจจำนงค์ | F26: 803 | G26: พนักงานราชการ
C27: 17 | F27: 0
C28: 18 | F28: 0
C29: 19 | F29: 0
C30: 20 | F30: 0
C31: 21 | F31: 0
C32: 22 | F32: 0
C33: 23 | F33: 0
C34: 24 | F34: 0
C35: 25 | F35: 0
C36: 26 | F36: 0
C37: 27 | F37: 0
C38: 28 | F38: 0
C39: 29 | F39: 0
C40: 30 | F40: 0
C41: 31 | F41: 0
C42: 32 | F42: 0
C43: 33 | F43: 0
C44: 34 | F44: 0
C45: 35 | F45: 0
C46: 36 | F46: 0
C47: 37 | F47: 0
C48: 38 | F48: 0
C49: 39 | F49: 0
C50: 40 | F50: 0
C51: 41 | F51: 0
C52: 42 | F52: 0
G64: ผู้อำนวยการ
G65: รองผู้อำนวยการ
G66: ครู ชำนาญการพิเศษ
G67: ครู ชำนาญการ
G68: ครู
G69: ครูผู้ช่วย
G70: พนักงานราชการ
G71: ครูอัตราจ้าง
G72: นักศึกษาฝึกประสบการณ์ฯ

Sheet จัดบุคลากร
C7: ="หัวหน้ากลุ่มสาระ โรงเรียน"&ข้อมูลพื้นฐาน!E5&" " -> หัวหน้ากลุ่มสาระ โรงเรียนสมเสม็ดวิทยา
C8: =ข้อมูลพื้นฐาน!E6 -> สำนักงานเขตพื้นที่การศึกษามัธยมศึกษา เขต 32
C10: หัวหน้ากลุ่มสาระ | D10: รหัส | E10: ชื่อ - นามสกุล | F10: ตำแหน่ง/วิทยฐานะ
C11: ภาษาไทย | D11: =IF(E11="","",VLOOKUP(E11,บุคลากร!$E$11:$F$52,2,FALSE)) -> 103 | E11: นางสาวแสงดาว โขนภูเขียว | F11: =IF(E11="","",VLOOKUP(E11,บุคลากร!$E$11:$G$52,3,FALSE)) -> ครูผู้ช่วย
C12: คณิตศาสตร์ | D12: =IF(E12="","",VLOOKUP(E12,บุคลากร!$E$11:$F$52,2,FALSE)) -> 202 | E12: นายเดชชาติ วันทนาพิทักษ์ | F12: =IF(E12="","",VLOOKUP(E12,บุคลากร!$E$11:$G$52,3,FALSE)) -> ครูผู้ช่วย
C13: วิทยาศาสตร์และเทคโนโลยี | D13: =IF(E13="","",VLOOKUP(E13,บุคลากร!$E$11:$F$52,2,FALSE)) -> 301 | E13: นายสมพบ เกรียรัมย์ | F13: =IF(E13="","",VLOOKUP(E13,บุคลากร!$E$11:$G$52,3,FALSE)) -> ครู ชำนาญการ
C14: สังคมศึกษา ศาสนาและวัฒนธรรม | D14: =IF(E14="","",VLOOKUP(E14,บุคลากร!$E$11:$F$52,2,FALSE)) -> 401 | E14: นายธีระพล อัตถปรัชญาเมือง | F14: =IF(E14="","",VLOOKUP(E14,บุคลากร!$E$11:$G$52,3,FALSE)) -> ครู
C15: สุขศึกษาและพลศึกษา | D15: =IF(E15="","",VLOOKUP(E15,บุคลากร!$E$11:$F$52,2,FALSE)) -> 501 | E15: นายยุนนท์ พละศักดิ์ | F15: =IF(E15="","",VLOOKUP(E15,บุคลากร!$E$11:$G$52,3,FALSE)) -> ครู ชำนาญการ
C16: ศิลปะ | D16: =IF(E16="","",VLOOKUP(E16,บุคลากร!$E$11:$F$52,2,FALSE)) -> 601 | E16: นางสาวภูริดา อุพลรัมย์ | F16: =IF(E16="","",VLOOKUP(E16,บุคลากร!$E$11:$G$52,3,FALSE)) -> ครู
C17: การงานอาชีพ | D17: =IF(E17="","",VLOOKUP(E17,บุคลากร!$E$11:$F$52,2,FALSE)) -> 701 | E17: นางพัชราวลัย เกรียรัมย์ | F17: =IF(E17="","",VLOOKUP(E17,บุคลากร!$E$11:$G$52,3,FALSE)) -> ครู ชำนาญการพิเศษ
C18: ภาษาต่างประเทศ | D18: =IF(E18="","",VLOOKUP(E18,บุคลากร!$E$11:$F$52,2,FALSE)) -> 802 | E18: นายพงษ์เดช ปะรุมรัมย์ | F18: =IF(E18="","",VLOOKUP(E18,บุคลากร!$E$11:$G$52,3,FALSE)) -> ครู
C19: กิจกรรมพัฒนาผู้เรียน | D19: =IF(E19="","",VLOOKUP(E19,บุคลากร!$E$11:$F$52,2,FALSE)) -> 501 | E19: นายยุนนท์ พละศักดิ์ | F19: =IF(E19="","",VLOOKUP(E19,บุคลากร!$E$11:$G$52,3,FALSE)) -> ครู ชำนาญการ
C24: ="ครูที่ปรึกษา โรงเรียน"&ข้อมูลพื้นฐาน!E5&" " -> ครูที่ปรึกษา โรงเรียนสมเสม็ดวิทยา
C26: =ข้อมูลพื้นฐาน!E6 -> สำนักงานเขตพื้นที่การศึกษามัธยมศึกษา เขต 32
C28: ระดับชั้น | D28: ครูที่ปรึกษา | I28: ระดับชั้น | L28: ครูที่ปรึกษา
D29: รหัส | E29: ชื่อ - นามสกุล | F29: ตำแหน่ง/วิทยฐานะ | K29: ลำดับที่ | L29: รหัส | M29: ชื่อ - นามสกุล | N29: ตำแหน่ง/วิทยฐานะ
C30: มัธยมศึกษาปีที่ 1/1 | D30: =IF(E30="","",VLOOKUP(E30,บุคลากร!$E$11:$F$52,2,FALSE)) -> 401 | E30: นายธีระพล อัตถปรัชญาเมือง | F30: =IF(E30="","",VLOOKUP(E30,บุคลากร!$E$11:$G$52,3,FALSE)) -> ครู | I30: =$C$30 -> มัธยมศึกษาปีที่ 1/1 | J30: =I30&"-"&K30 -> มัธยมศึกษาปีที่ 1/1-1 | K30: 1 | L30: =IF(M30="","",VLOOKUP(M30,บุคลากร!$E$11:$F$52,2,FALSE)) -> 401 | M30: นายธีระพล อัตถปรัชญาเมือง | N30: =IF(M30="","",VLOOKUP(M30,บุคลากร!$E$11:$G$52,3,FALSE)) -> ครู
D31: =IF(E31="","",VLOOKUP(E31,บุคลากร!$E$11:$F$52,2,FALSE)) -> 306 | E31: นางสาวนัชชา โรจน์บูรณาวงศ์ | F31: =IF(E31="","",VLOOKUP(E31,บุคลากร!$E$11:$G$52,3,FALSE)) -> ครูผู้ช่วย | I31: =$C$30 -> มัธยมศึกษาปีที่ 1/1 | J31: =I31&"-"&K31 -> มัธยมศึกษาปีที่ 1/1-2 | K31: 2 | L31: =IF(M31="","",VLOOKUP(M31,บุคลากร!$E$11:$F$52,2,FALSE)) -> 306 | M31: นางสาวนัชชา โรจน์บูรณาวงศ์ | N31: =IF(M31="","",VLOOKUP(M31,บุคลากร!$E$11:$G$52,3,FALSE)) -> ครูผู้ช่วย
D32: =IF(E32="","",VLOOKUP(E32,บุคลากร!$E$11:$F$52,2,FALSE)) ->  | F32: =IF(E32="","",VLOOKUP(E32,บุคลากร!$E$11:$G$52,3,FALSE)) ->  | I32: มัธยมศึกษาปีที่ 1/1 | J32: มัธยมศึกษาปีที่ 1/1-3 | K32: 3 | L32: =IF(M32="","",VLOOKUP(M32,บุคลากร!$E$11:$F$52,2,FALSE)) ->  | N32: =IF(M32="","",VLOOKUP(M32,บุคลากร!$E$11:$G$52,3,FALSE)) -> 
C33: มัธยมศึกษาปีที่ 1/2 | D33: =IF(E33="","",VLOOKUP(E33,บุคลากร!$E$11:$F$52,2,FALSE)) -> 501 | E33: นายยุนนท์ พละศักดิ์ | F33: =IF(E33="","",VLOOKUP(E33,บุคลากร!$E$11:$G$52,3,FALSE)) -> ครู ชำนาญการ | I33: =$C$33 -> มัธยมศึกษาปีที่ 1/2 | J33: มัธยมศึกษาปีที่ 1/2-1 | K33: 1 | L33: =IF(M33="","",VLOOKUP(M33,บุคลากร!$E$11:$F$52,2,FALSE)) -> 501 | M33: นายยุนนท์ พละศักดิ์ | N33: =IF(M33="","",VLOOKUP(M33,บุคลากร!$E$11:$G$52,3,FALSE)) -> ครู ชำนาญการ
D34: =IF(E34="","",VLOOKUP(E34,บุคลากร!$E$11:$F$52,2,FALSE)) -> 102 | E34: นางสาวอัจฉรีญาธร อินทร์พิทักษ์ | F34: =IF(E34="","",VLOOKUP(E34,บุคลากร!$E$11:$G$52,3,FALSE)) -> พนักงานราชการ | I34: =$C$33 -> มัธยมศึกษาปีที่ 1/2 | J34: มัธยมศึกษาปีที่ 1/2-2 | K34: 2 | L34: =IF(M34="","",VLOOKUP(M34,บุคลากร!$E$11:$F$52,2,FALSE)) -> 102 | M34: นางสาวอัจฉรีญาธร อินทร์พิทักษ์ | N34: =IF(M34="","",VLOOKUP(M34,บุคลากร!$E$11:$G$52,3,FALSE)) -> พนักงานราชการ
D35: =IF(E35="","",VLOOKUP(E35,บุคลากร!$E$11:$F$52,2,FALSE)) ->  | F35: =IF(E35="","",VLOOKUP(E35,บุคลากร!$E$11:$G$52,3,FALSE)) ->  | I35: มัธยมศึกษาปีที่ 1/2 | J35: มัธยมศึกษาปีที่ 1/2-3 | K35: 3 | L35: =IF(M35="","",VLOOKUP(M35,บุคลากร!$E$11:$F$52,2,FALSE)) ->  | N35: =IF(M35="","",VLOOKUP(M35,บุคลากร!$E$11:$G$52,3,FALSE)) -> 
C36: มัธยมศึกษาปีที่ 2/1 | D36: =IF(E36="","",VLOOKUP(E36,บุคลากร!$E$11:$F$52,2,FALSE)) -> 301 | E36: นายสมพบ เกรียรัมย์ | F36: =IF(E36="","",VLOOKUP(E36,บุคลากร!$E$11:$G$52,3,FALSE)) -> ครู ชำนาญการ | I36: =$C$36 -> มัธยมศึกษาปีที่ 2/1 | J36: มัธยมศึกษาปีที่ 2/1-1 | K36: 1 | L36: =IF(M36="","",VLOOKUP(M36,บุคลากร!$E$11:$F$52,2,FALSE)) -> 301 | M36: นายสมพบ เกรียรัมย์ | N36: =IF(M36="","",VLOOKUP(M36,บุคลากร!$E$11:$G$52,3,FALSE)) -> ครู ชำนาญการ
D37: =IF(E37="","",VLOOKUP(E37,บุคลากร!$E$11:$F$52,2,FALSE)) -> 601 | E37: นางสาวภูริดา อุพลรัมย์ | F37: =IF(E37="","",VLOOKUP(E37,บุคลากร!$E$11:$G$52,3,FALSE)) -> ครู | I37: =$C$36 -> มัธยมศึกษาปีที่ 2/1 | J37: มัธยมศึกษาปีที่ 2/1-2 | K37: 2 | L37: =IF(M37="","",VLOOKUP(M37,บุคลากร!$E$11:$F$52,2,FALSE)) -> 601 | M37: นางสาวภูริดา อุพลรัมย์ | N37: =IF(M37="","",VLOOKUP(M37,บุคลากร!$E$11:$G$52,3,FALSE)) -> ครู
D38: =IF(E38="","",VLOOKUP(E38,บุคลากร!$E$11:$F$52,2,FALSE)) ->  | F38: =IF(E38="","",VLOOKUP(E38,บุคลากร!$E$11:$G$52,3,FALSE)) ->  | I38: มัธยมศึกษาปีที่ 2/1 | J38: มัธยมศึกษาปีที่ 2/1-3 | K38: 3 | L38: =IF(M38="","",VLOOKUP(M38,บุคลากร!$E$11:$F$52,2,FALSE)) ->  | N38: =IF(M38="","",VLOOKUP(M38,บุคลากร!$E$11:$G$52,3,FALSE)) -> 
C39: มัธยมศึกษาปีที่ 2/2 | D39: =IF(E39="","",VLOOKUP(E39,บุคลากร!$E$11:$F$52,2,FALSE)) -> 701 | E39: นางพัชราวลัย เกรียรัมย์ | F39: =IF(E39="","",VLOOKUP(E39,บุคลากร!$E$11:$G$52,3,FALSE)) -> ครู ชำนาญการพิเศษ | I39: =$C$39 -> มัธยมศึกษาปีที่ 2/2 | J39: มัธยมศึกษาปีที่ 2/2-1 | K39: 1 | L39: =IF(M39="","",VLOOKUP(M39,บุคลากร!$E$11:$F$52,2,FALSE)) -> 701 | M39: นางพัชราวลัย เกรียรัมย์ | N39: =IF(M39="","",VLOOKUP(M39,บุคลากร!$E$11:$G$52,3,FALSE)) -> ครู ชำนาญการพิเศษ
D40: =IF(E40="","",VLOOKUP(E40,บุคลากร!$E$11:$F$52,2,FALSE)) -> 202 | E40: นายเดชชาติ วันทนาพิทักษ์ | F40: =IF(E40="","",VLOOKUP(E40,บุคลากร!$E$11:$G$52,3,FALSE)) -> ครูผู้ช่วย | I40: =$C$39 -> มัธยมศึกษาปีที่ 2/2 | J40: มัธยมศึกษาปีที่ 2/2-2 | K40: 2 | L40: =IF(M40="","",VLOOKUP(M40,บุคลากร!$E$11:$F$52,2,FALSE)) -> 202 | M40: นายเดชชาติ วันทนาพิทักษ์ | N40: =IF(M40="","",VLOOKUP(M40,บุคลากร!$E$11:$G$52,3,FALSE)) -> ครูผู้ช่วย
D41: =IF(E41="","",VLOOKUP(E41,บุคลากร!$E$11:$F$52,2,FALSE)) ->  | F41: =IF(E41="","",VLOOKUP(E41,บุคลากร!$E$11:$G$52,3,FALSE)) ->  | I41: มัธยมศึกษาปีที่ 2/2 | J41: มัธยมศึกษาปีที่ 2/2-3 | K41: 3 | L41: =IF(M41="","",VLOOKUP(M41,บุคลากร!$E$11:$F$52,2,FALSE)) ->  | N41: =IF(M41="","",VLOOKUP(M41,บุคลากร!$E$11:$G$52,3,FALSE)) -> 
C42: มัธยมศึกษาปีที่ 3/1 | D42: =IF(E42="","",VLOOKUP(E42,บุคลากร!$E$11:$F$52,2,FALSE)) -> 305 | E42: นางสาววราภรณ์ ทานคำ | F42: =IF(E42="","",VLOOKUP(E42,บุคลากร!$E$11:$G$52,3,FALSE)) -> ครูผู้ช่วย | I42: =$C$42 -> มัธยมศึกษาปีที่ 3/1 | J42: มัธยมศึกษาปีที่ 3/1-1 | K42: 1 | L42: =IF(M42="","",VLOOKUP(M42,บุคลากร!$E$11:$F$52,2,FALSE)) -> 305 | M42: นางสาววราภรณ์ ทานคำ | N42: =IF(M42="","",VLOOKUP(M42,บุคลากร!$E$11:$G$52,3,FALSE)) -> ครูผู้ช่วย
D43: =IF(E43="","",VLOOKUP(E43,บุคลากร!$E$11:$F$52,2,FALSE)) ->  | F43: =IF(E43="","",VLOOKUP(E43,บุคลากร!$E$11:$G$52,3,FALSE)) ->  | I43: =$C$42 -> มัธยมศึกษาปีที่ 3/1 | J43: มัธยมศึกษาปีที่ 3/1-2 | K43: 2 | L43: =IF(M43="","",VLOOKUP(M43,บุคลากร!$E$11:$F$52,2,FALSE)) ->  | N43: =IF(M43="","",VLOOKUP(M43,บุคลากร!$E$11:$G$52,3,FALSE)) -> 
D44: =IF(E44="","",VLOOKUP(E44,บุคลากร!$E$11:$F$52,2,FALSE)) ->  | F44: =IF(E44="","",VLOOKUP(E44,บุคลากร!$E$11:$G$52,3,FALSE)) ->  | I44: มัธยมศึกษาปีที่ 3/1 | J44: มัธยมศึกษาปีที่ 3/1-3 | K44: 3 | L44: =IF(M44="","",VLOOKUP(M44,บุคลากร!$E$11:$F$52,2,FALSE)) ->  | N44: =IF(M44="","",VLOOKUP(M44,บุคลากร!$E$11:$G$52,3,FALSE)) -> 
C45: มัธยมศึกษาปีที่ 3/2 | D45: =IF(E45="","",VLOOKUP(E45,บุคลากร!$E$11:$F$52,2,FALSE)) -> 803 | E45: นางสาวผกามาศ อาจจำนงค์ | F45: =IF(E45="","",VLOOKUP(E45,บุคลากร!$E$11:$G$52,3,FALSE)) -> พนักงานราชการ | I45: =$C$45 -> มัธยมศึกษาปีที่ 3/2 | J45: มัธยมศึกษาปีที่ 3/2-1 | K45: 1 | L45: =IF(M45="","",VLOOKUP(M45,บุคลากร!$E$11:$F$52,2,FALSE)) -> 803 | M45: นางสาวผกามาศ อาจจำนงค์ | N45: =IF(M45="","",VLOOKUP(M45,บุคลากร!$E$11:$G$52,3,FALSE)) -> พนักงานราชการ
D46: =IF(E46="","",VLOOKUP(E46,บุคลากร!$E$11:$F$52,2,FALSE)) ->  | F46: =IF(E46="","",VLOOKUP(E46,บุคลากร!$E$11:$G$52,3,FALSE)) ->  | I46: =$C$45 -> มัธยมศึกษาปีที่ 3/2 | J46: มัธยมศึกษาปีที่ 3/2-2 | K46: 2 | L46: =IF(M46="","",VLOOKUP(M46,บุคลากร!$E$11:$F$52,2,FALSE)) ->  | N46: =IF(M46="","",VLOOKUP(M46,บุคลากร!$E$11:$G$52,3,FALSE)) -> 
D47: =IF(E47="","",VLOOKUP(E47,บุคลากร!$E$11:$F$52,2,FALSE)) ->  | F47: =IF(E47="","",VLOOKUP(E47,บุคลากร!$E$11:$G$52,3,FALSE)) ->  | I47: มัธยมศึกษาปีที่ 3/2 | J47: มัธยมศึกษาปีที่ 3/2-3 | K47: 3 | L47: =IF(M47="","",VLOOKUP(M47,บุคลากร!$E$11:$F$52,2,FALSE)) ->  | N47: =IF(M47="","",VLOOKUP(M47,บุคลากร!$E$11:$G$52,3,FALSE)) -> 
C48: มัธยมศึกษาปีที่ 4/1 | D48: =IF(E48="","",VLOOKUP(E48,บุคลากร!$E$11:$F$52,2,FALSE)) -> 302 | E48: นายวินัย ประชุมแดง | F48: =IF(E48="","",VLOOKUP(E48,บุคลากร!$E$11:$G$52,3,FALSE)) -> ครู ชำนาญการ | I48: =$C$48 -> มัธยมศึกษาปีที่ 4/1 | J48: มัธยมศึกษาปีที่ 4/1-1 | K48: 1 | L48: =IF(M48="","",VLOOKUP(M48,บุคลากร!$E$11:$F$52,2,FALSE)) -> 302 | M48: นายวินัย ประชุมแดง | N48: =IF(M48="","",VLOOKUP(M48,บุคลากร!$E$11:$G$52,3,FALSE)) -> ครู ชำนาญการ
D49: =IF(E49="","",VLOOKUP(E49,บุคลากร!$E$11:$F$52,2,FALSE)) -> 307 | E49: นางสาวธนาภรณ์ สว่างศรี | F49: =IF(E49="","",VLOOKUP(E49,บุคลากร!$E$11:$G$52,3,FALSE)) -> ครูผู้ช่วย | I49: =$C$48 -> มัธยมศึกษาปีที่ 4/1 | J49: มัธยมศึกษาปีที่ 4/1-2 | K49: 2 | L49: =IF(M49="","",VLOOKUP(M49,บุคลากร!$E$11:$F$52,2,FALSE)) -> 307 | M49: นางสาวธนาภรณ์ สว่างศรี | N49: =IF(M49="","",VLOOKUP(M49,บุคลากร!$E$11:$G$52,3,FALSE)) -> ครูผู้ช่วย
D50: =IF(E50="","",VLOOKUP(E50,บุคลากร!$E$11:$F$52,2,FALSE)) ->  | F50: =IF(E50="","",VLOOKUP(E50,บุคลากร!$E$11:$G$52,3,FALSE)) ->  | I50: มัธยมศึกษาปีที่ 4/1 | J50: มัธยมศึกษาปีที่ 4/1-3 | K50: 3 | L50: =IF(M50="","",VLOOKUP(M50,บุคลากร!$E$11:$F$52,2,FALSE)) ->  | N50: =IF(M50="","",VLOOKUP(M50,บุคลากร!$E$11:$G$52,3,FALSE)) -> 
C51: มัธยมศึกษาปีที่ 5/1 | D51: =IF(E51="","",VLOOKUP(E51,บุคลากร!$E$11:$F$52,2,FALSE)) -> 201 | E51: นายเกรียงศักดิ์ โกบสันเทียะ | F51: =IF(E51="","",VLOOKUP(E51,บุคลากร!$E$11:$G$52,3,FALSE)) -> ครู ชำนาญการพิเศษ | I51: =$C$51 -> มัธยมศึกษาปีที่ 5/1 | J51: มัธยมศึกษาปีที่ 5/1-1 | K51: 1 | L51: =IF(M51="","",VLOOKUP(M51,บุคลากร!$E$11:$F$52,2,FALSE)) -> 201 | M51: นายเกรียงศักดิ์ โกบสันเทียะ | N51: =IF(M51="","",VLOOKUP(M51,บุคลากร!$E$11:$G$52,3,FALSE)) -> ครู ชำนาญการพิเศษ
D52: =IF(E52="","",VLOOKUP(E52,บุคลากร!$E$11:$F$52,2,FALSE)) -> 103 | E52: นางสาวแสงดาว โขนภูเขียว | F52: =IF(E52="","",VLOOKUP(E52,บุคลากร!$E$11:$G$52,3,FALSE)) -> ครูผู้ช่วย | I52: =$C$51 -> มัธยมศึกษาปีที่ 5/1 | J52: มัธยมศึกษาปีที่ 5/1-2 | K52: 2 | L52: =IF(M52="","",VLOOKUP(M52,บุคลากร!$E$11:$F$52,2,FALSE)) -> 103 | M52: นางสาวแสงดาว โขนภูเขียว | N52: =IF(M52="","",VLOOKUP(M52,บุคลากร!$E$11:$G$52,3,FALSE)) -> ครูผู้ช่วย
D53: =IF(E53="","",VLOOKUP(E53,บุคลากร!$E$11:$F$52,2,FALSE)) ->  | F53: =IF(E53="","",VLOOKUP(E53,บุคลากร!$E$11:$G$52,3,FALSE)) ->  | I53: มัธยมศึกษาปีที่ 5/1 | J53: มัธยมศึกษาปีที่ 5/1-3 | K53: 3 | L53: =IF(M53="","",VLOOKUP(M53,บุคลากร!$E$11:$F$52,2,FALSE)) ->  | N53: =IF(M53="","",VLOOKUP(M53,บุคลากร!$E$11:$G$52,3,FALSE)) -> 
C54: มัธยมศึกษาปีที่ 6/1 | D54: =IF(E54="","",VLOOKUP(E54,บุคลากร!$E$11:$F$52,2,FALSE)) -> 802 | E54: นายพงษ์เดช ปะรุมรัมย์ | F54: =IF(E54="","",VLOOKUP(E54,บุคลากร!$E$11:$G$52,3,FALSE)) -> ครู | I54: =$C$54 -> มัธยมศึกษาปีที่ 6/1 | J54: มัธยมศึกษาปีที่ 6/1-1 | K54: 1 | L54: =IF(M54="","",VLOOKUP(M54,บุคลากร!$E$11:$F$52,2,FALSE)) -> 802 | M54: นายพงษ์เดช ปะรุมรัมย์ | N54: =IF(M54="","",VLOOKUP(M54,บุคลากร!$E$11:$G$52,3,FALSE)) -> ครู
D55: =IF(E55="","",VLOOKUP(E55,บุคลากร!$E$11:$F$52,2,FALSE)) ->  | F55: =IF(E55="","",VLOOKUP(E55,บุคลากร!$E$11:$G$52,3,FALSE)) ->  | I55: =$C$54 -> มัธยมศึกษาปีที่ 6/1 | J55: มัธยมศึกษาปีที่ 6/1-2 | K55: 2 | L55: =IF(M55="","",VLOOKUP(M55,บุคลากร!$E$11:$F$52,2,FALSE)) ->  | N55: =IF(M55="","",VLOOKUP(M55,บุคลากร!$E$11:$G$52,3,FALSE)) -> 
D56: =IF(E56="","",VLOOKUP(E56,บุคลากร!$E$11:$F$52,2,FALSE)) ->  | F56: =IF(E56="","",VLOOKUP(E56,บุคลากร!$E$11:$G$52,3,FALSE)) ->  | I56: มัธยมศึกษาปีที่ 6/1 | J56: มัธยมศึกษาปีที่ 6/1-3 | K56: 3 | L56: =IF(M56="","",VLOOKUP(M56,บุคลากร!$E$11:$F$52,2,FALSE)) ->  | N56: =IF(M56="","",VLOOKUP(M56,บุคลากร!$E$11:$G$52,3,FALSE)) -> 

Sheet ลงทะเบียน
B1: การงานเพิ่มเติมและกิจกรรมชุมนุมต้องไปจัดนักเรียนเข้าห้องก่อนนะครับ
B5: ="โรงเรียน"&ข้อมูลพื้นฐาน!E5 -> โรงเรียนสมเสม็ดวิทยา
B6: =ข้อมูลพื้นฐาน!E6 -> สำนักงานเขตพื้นที่การศึกษามัธยมศึกษา เขต 32
B7: ="รายชื่อนักเรียน ระดับชั้น "&ข้อมูลพื้นฐาน!E19&" ห้อง "&ข้อมูลพื้นฐาน!H19&" ปีการศึกษา "&ข้อมูลพื้นฐาน!G13&" ภาคเรียนที่ "&ข้อมูลพื้นฐาน!E13 -> รายชื่อนักเรียน ระดับชั้น ห้อง ปีการศึกษา ภาคเรียนที่
B8: เลขที่ | C8: เลขประจำตัวนักเรียน | E8: ชื่อ - สกุล | G8: ห้อง | I8: สถานภาพนักเรียน อออ/ย้าย
B9: 1 | C9: =IF(D9=0,"",D9) ->  | D9: =IF(ข้อมูลพื้นฐาน!$I$19="","",IF(ข้อมูลพื้นฐาน!$I$19="ม.1-1",รายชื่อนักเรียน!C7,IF(ข้อมูลพื้นฐาน!$I$19="ม.1-2",รายชื่อนักเรียน!I7,IF(ข้อมูลพื้นฐาน!$I$19="ม.2-1",รายชื่อนักเรียน!O7,IF(ข้อมูลพื้นฐาน!$I$19="ม.2-2",รายชื่อนักเรียน!U7,IF(ข้อมูลพื้นฐาน!$I$19="ม.3-1",รายชื่อนักเรียน!AA7,IF(ข้อมูลพื้นฐาน!$I$19="ม.3-2",รายชื่อนักเรียน!AG7,IF(ข้อมูลพื้นฐาน!$I$19="ม.4-1",รายชื่อนักเรียน!AM7,IF(ข้อมูลพื้นฐาน!$I$19="ม.5-1",รายชื่อนักเรียน!AS7,IF(ข้อมูลพื้นฐาน!$I$19="ม.6-1",รายชื่อนักเรียน!AY7,IF(ข้อมูลพื้นฐาน!$I$19="ม.0-0",รายชื่อนักเรียน!BE7))))))))))) ->  | E9: =IF(F9=0,"",F9) ->  | F9: =IF(ข้อมูลพื้นฐาน!$I$19="","",IF(ข้อมูลพื้นฐาน!$I$19="ม.1-1",รายชื่อนักเรียน!D7,IF(ข้อมูลพื้นฐาน!$I$19="ม.1-2",รายชื่อนักเรียน!J7,IF(ข้อมูลพื้นฐาน!$I$19="ม.2-1",รายชื่อนักเรียน!P7,IF(ข้อมูลพื้นฐาน!$I$19="ม.2-2",รายชื่อนักเรียน!V7,IF(ข้อมูลพื้นฐาน!$I$19="ม.3-1",รายชื่อนักเรียน!AB7,IF(ข้อมูลพื้นฐาน!$I$19="ม.3-2",รายชื่อนักเรียน!AH7,IF(ข้อมูลพื้นฐาน!$I$19="ม.4-1",รายชื่อนักเรียน!AN7,IF(ข้อมูลพื้นฐาน!$I$19="ม.5-1",รายชื่อนักเรียน!AT7,IF(ข้อมูลพื้นฐาน!$I$19="ม.6-1",รายชื่อนักเรียน!AZ7,IF(ข้อมูลพื้นฐาน!$I$19="ม.0-0",รายชื่อนักเรียน!BF7))))))))))) ->  | G9: =IF(H9=0,"",H9) ->  | H9: =IF(E9="","",ข้อมูลพื้นฐาน!$I$19) ->  | K9: =IF(E9="",0,1) -> 0 | L9: =IF(E9="",0,IF(I9="",0,-1)) -> 0
B10: 2 | C10: =IF(D10=0,"",D10) ->  | D10: =IF(ข้อมูลพื้นฐาน!$I$19="","",IF(ข้อมูลพื้นฐาน!$I$19="ม.1-1",รายชื่อนักเรียน!C8,IF(ข้อมูลพื้นฐาน!$I$19="ม.1-2",รายชื่อนักเรียน!I8,IF(ข้อมูลพื้นฐาน!$I$19="ม.2-1",รายชื่อนักเรียน!O8,IF(ข้อมูลพื้นฐาน!$I$19="ม.2-2",รายชื่อนักเรียน!U8,IF(ข้อมูลพื้นฐาน!$I$19="ม.3-1",รายชื่อนักเรียน!AA8,IF(ข้อมูลพื้นฐาน!$I$19="ม.3-2",รายชื่อนักเรียน!AG8,IF(ข้อมูลพื้นฐาน!$I$19="ม.4-1",รายชื่อนักเรียน!AM8,IF(ข้อมูลพื้นฐาน!$I$19="ม.5-1",รายชื่อนักเรียน!AS8,IF(ข้อมูลพื้นฐาน!$I$19="ม.6-1",รายชื่อนักเรียน!AY8,IF(ข้อมูลพื้นฐาน!$I$19="ม.0-0",รายชื่อนักเรียน!BE8))))))))))) ->  | E10: =IF(F10=0,"",F10) ->  | F10: =IF(ข้อมูลพื้นฐาน!$I$19="","",IF(ข้อมูลพื้นฐาน!$I$19="ม.1-1",รายชื่อนักเรียน!D8,IF(ข้อมูลพื้นฐาน!$I$19="ม.1-2",รายชื่อนักเรียน!J8,IF(ข้อมูลพื้นฐาน!$I$19="ม.2-1",รายชื่อนักเรียน!P8,IF(ข้อมูลพื้นฐาน!$I$19="ม.2-2",รายชื่อนักเรียน!V8,IF(ข้อมูลพื้นฐาน!$I$19="ม.3-1",รายชื่อนักเรียน!AB8,IF(ข้อมูลพื้นฐาน!$I$19="ม.3-2",รายชื่อนักเรียน!AH8,IF(ข้อมูลพื้นฐาน!$I$19="ม.4-1",รายชื่อนักเรียน!AN8,IF(ข้อมูลพื้นฐาน!$I$19="ม.5-1",รายชื่อนักเรียน!AT8,IF(ข้อมูลพื้นฐาน!$I$19="ม.6-1",รายชื่อนักเรียน!AZ8,IF(ข้อมูลพื้นฐาน!$I$19="ม.0-0",รายชื่อนักเรียน!BF8))))))))))) ->  | G10: =IF(H10=0,"",H10) ->  | H10: =IF(E10="","",ข้อมูลพื้นฐาน!$I$19) ->  | K10: =IF(E10="",0,1) -> 0 | L10: =IF(E10="",0,IF(I10="",0,-1)) -> 0
B11: 3 | D11: =IF(ข้อมูลพื้นฐาน!$I$19="","",IF(ข้อมูลพื้นฐาน!$I$19="ม.1-1",รายชื่อนักเรียน!C9,IF(ข้อมูลพื้นฐาน!$I$19="ม.1-2",รายชื่อนักเรียน!I9,IF(ข้อมูลพื้นฐาน!$I$19="ม.2-1",รายชื่อนักเรียน!O9,IF(ข้อมูลพื้นฐาน!$I$19="ม.2-2",รายชื่อนักเรียน!U9,IF(ข้อมูลพื้นฐาน!$I$19="ม.3-1",รายชื่อนักเรียน!AA9,IF(ข้อมูลพื้นฐาน!$I$19="ม.3-2",รายชื่อนักเรียน!AG9,IF(ข้อมูลพื้นฐาน!$I$19="ม.4-1",รายชื่อนักเรียน!AM9,IF(ข้อมูลพื้นฐาน!$I$19="ม.5-1",รายชื่อนักเรียน!AS9,IF(ข้อมูลพื้นฐาน!$I$19="ม.6-1",รายชื่อนักเรียน!AY9,IF(ข้อมูลพื้นฐาน!$I$19="ม.0-0",รายชื่อนักเรียน!BE9))))))))))) ->  | F11: =IF(ข้อมูลพื้นฐาน!$I$19="","",IF(ข้อมูลพื้นฐาน!$I$19="ม.1-1",รายชื่อนักเรียน!D9,IF(ข้อมูลพื้นฐาน!$I$19="ม.1-2",รายชื่อนักเรียน!J9,IF(ข้อมูลพื้นฐาน!$I$19="ม.2-1",รายชื่อนักเรียน!P9,IF(ข้อมูลพื้นฐาน!$I$19="ม.2-2",รายชื่อนักเรียน!V9,IF(ข้อมูลพื้นฐาน!$I$19="ม.3-1",รายชื่อนักเรียน!AB9,IF(ข้อมูลพื้นฐาน!$I$19="ม.3-2",รายชื่อนักเรียน!AH9,IF(ข้อมูลพื้นฐาน!$I$19="ม.4-1",รายชื่อนักเรียน!AN9,IF(ข้อมูลพื้นฐาน!$I$19="ม.5-1",รายชื่อนักเรียน!AT9,IF(ข้อมูลพื้นฐาน!$I$19="ม.6-1",รายชื่อนักเรียน!AZ9,IF(ข้อมูลพื้นฐาน!$I$19="ม.0-0",รายชื่อนักเรียน!BF9))))))))))) ->  | H11: =IF(E11="","",ข้อมูลพื้นฐาน!$I$19) ->  | K11: 0 | L11: 0
B12: 4 | D12: =IF(ข้อมูลพื้นฐาน!$I$19="","",IF(ข้อมูลพื้นฐาน!$I$19="ม.1-1",รายชื่อนักเรียน!C10,IF(ข้อมูลพื้นฐาน!$I$19="ม.1-2",รายชื่อนักเรียน!I10,IF(ข้อมูลพื้นฐาน!$I$19="ม.2-1",รายชื่อนักเรียน!O10,IF(ข้อมูลพื้นฐาน!$I$19="ม.2-2",รายชื่อนักเรียน!U10,IF(ข้อมูลพื้นฐาน!$I$19="ม.3-1",รายชื่อนักเรียน!AA10,IF(ข้อมูลพื้นฐาน!$I$19="ม.3-2",รายชื่อนักเรียน!AG10,IF(ข้อมูลพื้นฐาน!$I$19="ม.4-1",รายชื่อนักเรียน!AM10,IF(ข้อมูลพื้นฐาน!$I$19="ม.5-1",รายชื่อนักเรียน!AS10,IF(ข้อมูลพื้นฐาน!$I$19="ม.6-1",รายชื่อนักเรียน!AY10,IF(ข้อมูลพื้นฐาน!$I$19="ม.0-0",รายชื่อนักเรียน!BE10))))))))))) ->  | F12: =IF(ข้อมูลพื้นฐาน!$I$19="","",IF(ข้อมูลพื้นฐาน!$I$19="ม.1-1",รายชื่อนักเรียน!D10,IF(ข้อมูลพื้นฐาน!$I$19="ม.1-2",รายชื่อนักเรียน!J10,IF(ข้อมูลพื้นฐาน!$I$19="ม.2-1",รายชื่อนักเรียน!P10,IF(ข้อมูลพื้นฐาน!$I$19="ม.2-2",รายชื่อนักเรียน!V10,IF(ข้อมูลพื้นฐาน!$I$19="ม.3-1",รายชื่อนักเรียน!AB10,IF(ข้อมูลพื้นฐาน!$I$19="ม.3-2",รายชื่อนักเรียน!AH10,IF(ข้อมูลพื้นฐาน!$I$19="ม.4-1",รายชื่อนักเรียน!AN10,IF(ข้อมูลพื้นฐาน!$I$19="ม.5-1",รายชื่อนักเรียน!AT10,IF(ข้อมูลพื้นฐาน!$I$19="ม.6-1",รายชื่อนักเรียน!AZ10,IF(ข้อมูลพื้นฐาน!$I$19="ม.0-0",รายชื่อนักเรียน!BF10))))))))))) ->  | H12: =IF(E12="","",ข้อมูลพื้นฐาน!$I$19) ->  | K12: 0 | L12: 0
B13: 5 | D13: =IF(ข้อมูลพื้นฐาน!$I$19="","",IF(ข้อมูลพื้นฐาน!$I$19="ม.1-1",รายชื่อนักเรียน!C11,IF(ข้อมูลพื้นฐาน!$I$19="ม.1-2",รายชื่อนักเรียน!I11,IF(ข้อมูลพื้นฐาน!$I$19="ม.2-1",รายชื่อนักเรียน!O11,IF(ข้อมูลพื้นฐาน!$I$19="ม.2-2",รายชื่อนักเรียน!U11,IF(ข้อมูลพื้นฐาน!$I$19="ม.3-1",รายชื่อนักเรียน!AA11,IF(ข้อมูลพื้นฐาน!$I$19="ม.3-2",รายชื่อนักเรียน!AG11,IF(ข้อมูลพื้นฐาน!$I$19="ม.4-1",รายชื่อนักเรียน!AM11,IF(ข้อมูลพื้นฐาน!$I$19="ม.5-1",รายชื่อนักเรียน!AS11,IF(ข้อมูลพื้นฐาน!$I$19="ม.6-1",รายชื่อนักเรียน!AY11,IF(ข้อมูลพื้นฐาน!$I$19="ม.0-0",รายชื่อนักเรียน!BE11))))))))))) ->  | F13: =IF(ข้อมูลพื้นฐาน!$I$19="","",IF(ข้อมูลพื้นฐาน!$I$19="ม.1-1",รายชื่อนักเรียน!D11,IF(ข้อมูลพื้นฐาน!$I$19="ม.1-2",รายชื่อนักเรียน!J11,IF(ข้อมูลพื้นฐาน!$I$19="ม.2-1",รายชื่อนักเรียน!P11,IF(ข้อมูลพื้นฐาน!$I$19="ม.2-2",รายชื่อนักเรียน!V11,IF(ข้อมูลพื้นฐาน!$I$19="ม.3-1",รายชื่อนักเรียน!AB11,IF(ข้อมูลพื้นฐาน!$I$19="ม.3-2",รายชื่อนักเรียน!AH11,IF(ข้อมูลพื้นฐาน!$I$19="ม.4-1",รายชื่อนักเรียน!AN11,IF(ข้อมูลพื้นฐาน!$I$19="ม.5-1",รายชื่อนักเรียน!AT11,IF(ข้อมูลพื้นฐาน!$I$19="ม.6-1",รายชื่อนักเรียน!AZ11,IF(ข้อมูลพื้นฐาน!$I$19="ม.0-0",รายชื่อนักเรียน!BF11))))))))))) ->  | H13: =IF(E13="","",ข้อมูลพื้นฐาน!$I$19) ->  | K13: 0 | L13: 0
B14: 6 | D14: =IF(ข้อมูลพื้นฐาน!$I$19="","",IF(ข้อมูลพื้นฐาน!$I$19="ม.1-1",รายชื่อนักเรียน!C12,IF(ข้อมูลพื้นฐาน!$I$19="ม.1-2",รายชื่อนักเรียน!I12,IF(ข้อมูลพื้นฐาน!$I$19="ม.2-1",รายชื่อนักเรียน!O12,IF(ข้อมูลพื้นฐาน!$I$19="ม.2-2",รายชื่อนักเรียน!U12,IF(ข้อมูลพื้นฐาน!$I$19="ม.3-1",รายชื่อนักเรียน!AA12,IF(ข้อมูลพื้นฐาน!$I$19="ม.3-2",รายชื่อนักเรียน!AG12,IF(ข้อมูลพื้นฐาน!$I$19="ม.4-1",รายชื่อนักเรียน!AM12,IF(ข้อมูลพื้นฐาน!$I$19="ม.5-1",รายชื่อนักเรียน!AS12,IF(ข้อมูลพื้นฐาน!$I$19="ม.6-1",รายชื่อนักเรียน!AY12,IF(ข้อมูลพื้นฐาน!$I$19="ม.0-0",รายชื่อนักเรียน!BE12))))))))))) ->  | F14: =IF(ข้อมูลพื้นฐาน!$I$19="","",IF(ข้อมูลพื้นฐาน!$I$19="ม.1-1",รายชื่อนักเรียน!D12,IF(ข้อมูลพื้นฐาน!$I$19="ม.1-2",รายชื่อนักเรียน!J12,IF(ข้อมูลพื้นฐาน!$I$19="ม.2-1",รายชื่อนักเรียน!P12,IF(ข้อมูลพื้นฐาน!$I$19="ม.2-2",รายชื่อนักเรียน!V12,IF(ข้อมูลพื้นฐาน!$I$19="ม.3-1",รายชื่อนักเรียน!AB12,IF(ข้อมูลพื้นฐาน!$I$19="ม.3-2",รายชื่อนักเรียน!AH12,IF(ข้อมูลพื้นฐาน!$I$19="ม.4-1",รายชื่อนักเรียน!AN12,IF(ข้อมูลพื้นฐาน!$I$19="ม.5-1",รายชื่อนักเรียน!AT12,IF(ข้อมูลพื้นฐาน!$I$19="ม.6-1",รายชื่อนักเรียน!AZ12,IF(ข้อมูลพื้นฐาน!$I$19="ม.0-0",รายชื่อนักเรียน!BF12))))))))))) ->  | H14: =IF(E14="","",ข้อมูลพื้นฐาน!$I$19) ->  | K14: 0 | L14: 0
B15: 7 | D15: =IF(ข้อมูลพื้นฐาน!$I$19="","",IF(ข้อมูลพื้นฐาน!$I$19="ม.1-1",รายชื่อนักเรียน!C13,IF(ข้อมูลพื้นฐาน!$I$19="ม.1-2",รายชื่อนักเรียน!I13,IF(ข้อมูลพื้นฐาน!$I$19="ม.2-1",รายชื่อนักเรียน!O13,IF(ข้อมูลพื้นฐาน!$I$19="ม.2-2",รายชื่อนักเรียน!U13,IF(ข้อมูลพื้นฐาน!$I$19="ม.3-1",รายชื่อนักเรียน!AA13,IF(ข้อมูลพื้นฐาน!$I$19="ม.3-2",รายชื่อนักเรียน!AG13,IF(ข้อมูลพื้นฐาน!$I$19="ม.4-1",รายชื่อนักเรียน!AM13,IF(ข้อมูลพื้นฐาน!$I$19="ม.5-1",รายชื่อนักเรียน!AS13,IF(ข้อมูลพื้นฐาน!$I$19="ม.6-1",รายชื่อนักเรียน!AY13,IF(ข้อมูลพื้นฐาน!$I$19="ม.0-0",รายชื่อนักเรียน!BE13))))))))))) ->  | F15: =IF(ข้อมูลพื้นฐาน!$I$19="","",IF(ข้อมูลพื้นฐาน!$I$19="ม.1-1",รายชื่อนักเรียน!D13,IF(ข้อมูลพื้นฐาน!$I$19="ม.1-2",รายชื่อนักเรียน!J13,IF(ข้อมูลพื้นฐาน!$I$19="ม.2-1",รายชื่อนักเรียน!P13,IF(ข้อมูลพื้นฐาน!$I$19="ม.2-2",รายชื่อนักเรียน!V13,IF(ข้อมูลพื้นฐาน!$I$19="ม.3-1",รายชื่อนักเรียน!AB13,IF(ข้อมูลพื้นฐาน!$I$19="ม.3-2",รายชื่อนักเรียน!AH13,IF(ข้อมูลพื้นฐาน!$I$19="ม.4-1",รายชื่อนักเรียน!AN13,IF(ข้อมูลพื้นฐาน!$I$19="ม.5-1",รายชื่อนักเรียน!AT13,IF(ข้อมูลพื้นฐาน!$I$19="ม.6-1",รายชื่อนักเรียน!AZ13,IF(ข้อมูลพื้นฐาน!$I$19="ม.0-0",รายชื่อนักเรียน!BF13))))))))))) ->  | H15: =IF(E15="","",ข้อมูลพื้นฐาน!$I$19) ->  | K15: 0 | L15: 0
B16: 8 | D16: =IF(ข้อมูลพื้นฐาน!$I$19="","",IF(ข้อมูลพื้นฐาน!$I$19="ม.1-1",รายชื่อนักเรียน!C14,IF(ข้อมูลพื้นฐาน!$I$19="ม.1-2",รายชื่อนักเรียน!I14,IF(ข้อมูลพื้นฐาน!$I$19="ม.2-1",รายชื่อนักเรียน!O14,IF(ข้อมูลพื้นฐาน!$I$19="ม.2-2",รายชื่อนักเรียน!U14,IF(ข้อมูลพื้นฐาน!$I$19="ม.3-1",รายชื่อนักเรียน!AA14,IF(ข้อมูลพื้นฐาน!$I$19="ม.3-2",รายชื่อนักเรียน!AG14,IF(ข้อมูลพื้นฐาน!$I$19="ม.4-1",รายชื่อนักเรียน!AM14,IF(ข้อมูลพื้นฐาน!$I$19="ม.5-1",รายชื่อนักเรียน!AS14,IF(ข้อมูลพื้นฐาน!$I$19="ม.6-1",รายชื่อนักเรียน!AY14,IF(ข้อมูลพื้นฐาน!$I$19="ม.0-0",รายชื่อนักเรียน!BE14))))))))))) ->  | F16: =IF(ข้อมูลพื้นฐาน!$I$19="","",IF(ข้อมูลพื้นฐาน!$I$19="ม.1-1",รายชื่อนักเรียน!D14,IF(ข้อมูลพื้นฐาน!$I$19="ม.1-2",รายชื่อนักเรียน!J14,IF(ข้อมูลพื้นฐาน!$I$19="ม.2-1",รายชื่อนักเรียน!P14,IF(ข้อมูลพื้นฐาน!$I$19="ม.2-2",รายชื่อนักเรียน!V14,IF(ข้อมูลพื้นฐาน!$I$19="ม.3-1",รายชื่อนักเรียน!AB14,IF(ข้อมูลพื้นฐาน!$I$19="ม.3-2",รายชื่อนักเรียน!AH14,IF(ข้อมูลพื้นฐาน!$I$19="ม.4-1",รายชื่อนักเรียน!AN14,IF(ข้อมูลพื้นฐาน!$I$19="ม.5-1",รายชื่อนักเรียน!AT14,IF(ข้อมูลพื้นฐาน!$I$19="ม.6-1",รายชื่อนักเรียน!AZ14,IF(ข้อมูลพื้นฐาน!$I$19="ม.0-0",รายชื่อนักเรียน!BF14))))))))))) ->  | H16: =IF(E16="","",ข้อมูลพื้นฐาน!$I$19) ->  | K16: 0 | L16: 0
B17: 9 | D17: =IF(ข้อมูลพื้นฐาน!$I$19="","",IF(ข้อมูลพื้นฐาน!$I$19="ม.1-1",รายชื่อนักเรียน!C15,IF(ข้อมูลพื้นฐาน!$I$19="ม.1-2",รายชื่อนักเรียน!I15,IF(ข้อมูลพื้นฐาน!$I$19="ม.2-1",รายชื่อนักเรียน!O15,IF(ข้อมูลพื้นฐาน!$I$19="ม.2-2",รายชื่อนักเรียน!U15,IF(ข้อมูลพื้นฐาน!$I$19="ม.3-1",รายชื่อนักเรียน!AA15,IF(ข้อมูลพื้นฐาน!$I$19="ม.3-2",รายชื่อนักเรียน!AG15,IF(ข้อมูลพื้นฐาน!$I$19="ม.4-1",รายชื่อนักเรียน!AM15,IF(ข้อมูลพื้นฐาน!$I$19="ม.5-1",รายชื่อนักเรียน!AS15,IF(ข้อมูลพื้นฐาน!$I$19="ม.6-1",รายชื่อนักเรียน!AY15,IF(ข้อมูลพื้นฐาน!$I$19="ม.0-0",รายชื่อนักเรียน!BE15))))))))))) ->  | F17: =IF(ข้อมูลพื้นฐาน!$I$19="","",IF(ข้อมูลพื้นฐาน!$I$19="ม.1-1",รายชื่อนักเรียน!D15,IF(ข้อมูลพื้นฐาน!$I$19="ม.1-2",รายชื่อนักเรียน!J15,IF(ข้อมูลพื้นฐาน!$I$19="ม.2-1",รายชื่อนักเรียน!P15,IF(ข้อมูลพื้นฐาน!$I$19="ม.2-2",รายชื่อนักเรียน!V15,IF(ข้อมูลพื้นฐาน!$I$19="ม.3-1",รายชื่อนักเรียน!AB15,IF(ข้อมูลพื้นฐาน!$I$19="ม.3-2",รายชื่อนักเรียน!AH15,IF(ข้อมูลพื้นฐาน!$I$19="ม.4-1",รายชื่อนักเรียน!AN15,IF(ข้อมูลพื้นฐาน!$I$19="ม.5-1",รายชื่อนักเรียน!AT15,IF(ข้อมูลพื้นฐาน!$I$19="ม.6-1",รายชื่อนักเรียน!AZ15,IF(ข้อมูลพื้นฐาน!$I$19="ม.0-0",รายชื่อนักเรียน!BF15))))))))))) ->  | H17: =IF(E17="","",ข้อมูลพื้นฐาน!$I$19) ->  | K17: 0 | L17: 0
B18: 10 | D18: =IF(ข้อมูลพื้นฐาน!$I$19="","",IF(ข้อมูลพื้นฐาน!$I$19="ม.1-1",รายชื่อนักเรียน!C16,IF(ข้อมูลพื้นฐาน!$I$19="ม.1-2",รายชื่อนักเรียน!I16,IF(ข้อมูลพื้นฐาน!$I$19="ม.2-1",รายชื่อนักเรียน!O16,IF(ข้อมูลพื้นฐาน!$I$19="ม.2-2",รายชื่อนักเรียน!U16,IF(ข้อมูลพื้นฐาน!$I$19="ม.3-1",รายชื่อนักเรียน!AA16,IF(ข้อมูลพื้นฐาน!$I$19="ม.3-2",รายชื่อนักเรียน!AG16,IF(ข้อมูลพื้นฐาน!$I$19="ม.4-1",รายชื่อนักเรียน!AM16,IF(ข้อมูลพื้นฐาน!$I$19="ม.5-1",รายชื่อนักเรียน!AS16,IF(ข้อมูลพื้นฐาน!$I$19="ม.6-1",รายชื่อนักเรียน!AY16,IF(ข้อมูลพื้นฐาน!$I$19="ม.0-0",รายชื่อนักเรียน!BE16))))))))))) ->  | F18: =IF(ข้อมูลพื้นฐาน!$I$19="","",IF(ข้อมูลพื้นฐาน!$I$19="ม.1-1",รายชื่อนักเรียน!D16,IF(ข้อมูลพื้นฐาน!$I$19="ม.1-2",รายชื่อนักเรียน!J16,IF(ข้อมูลพื้นฐาน!$I$19="ม.2-1",รายชื่อนักเรียน!P16,IF(ข้อมูลพื้นฐาน!$I$19="ม.2-2",รายชื่อนักเรียน!V16,IF(ข้อมูลพื้นฐาน!$I$19="ม.3-1",รายชื่อนักเรียน!AB16,IF(ข้อมูลพื้นฐาน!$I$19="ม.3-2",รายชื่อนักเรียน!AH16,IF(ข้อมูลพื้นฐาน!$I$19="ม.4-1",รายชื่อนักเรียน!AN16,IF(ข้อมูลพื้นฐาน!$I$19="ม.5-1",รายชื่อนักเรียน!AT16,IF(ข้อมูลพื้นฐาน!$I$19="ม.6-1",รายชื่อนักเรียน!AZ16,IF(ข้อมูลพื้นฐาน!$I$19="ม.0-0",รายชื่อนักเรียน!BF16))))))))))) ->  | H18: =IF(E18="","",ข้อมูลพื้นฐาน!$I$19) ->  | K18: 0 | L18: 0
B19: 11 | D19: =IF(ข้อมูลพื้นฐาน!$I$19="","",IF(ข้อมูลพื้นฐาน!$I$19="ม.1-1",รายชื่อนักเรียน!C17,IF(ข้อมูลพื้นฐาน!$I$19="ม.1-2",รายชื่อนักเรียน!I17,IF(ข้อมูลพื้นฐาน!$I$19="ม.2-1",รายชื่อนักเรียน!O17,IF(ข้อมูลพื้นฐาน!$I$19="ม.2-2",รายชื่อนักเรียน!U17,IF(ข้อมูลพื้นฐาน!$I$19="ม.3-1",รายชื่อนักเรียน!AA17,IF(ข้อมูลพื้นฐาน!$I$19="ม.3-2",รายชื่อนักเรียน!AG17,IF(ข้อมูลพื้นฐาน!$I$19="ม.4-1",รายชื่อนักเรียน!AM17,IF(ข้อมูลพื้นฐาน!$I$19="ม.5-1",รายชื่อนักเรียน!AS17,IF(ข้อมูลพื้นฐาน!$I$19="ม.6-1",รายชื่อนักเรียน!AY17,IF(ข้อมูลพื้นฐาน!$I$19="ม.0-0",รายชื่อนักเรียน!BE17))))))))))) ->  | F19: =IF(ข้อมูลพื้นฐาน!$I$19="","",IF(ข้อมูลพื้นฐาน!$I$19="ม.1-1",รายชื่อนักเรียน!D17,IF(ข้อมูลพื้นฐาน!$I$19="ม.1-2",รายชื่อนักเรียน!J17,IF(ข้อมูลพื้นฐาน!$I$19="ม.2-1",รายชื่อนักเรียน!P17,IF(ข้อมูลพื้นฐาน!$I$19="ม.2-2",รายชื่อนักเรียน!V17,IF(ข้อมูลพื้นฐาน!$I$19="ม.3-1",รายชื่อนักเรียน!AB17,IF(ข้อมูลพื้นฐาน!$I$19="ม.3-2",รายชื่อนักเรียน!AH17,IF(ข้อมูลพื้นฐาน!$I$19="ม.4-1",รายชื่อนักเรียน!AN17,IF(ข้อมูลพื้นฐาน!$I$19="ม.5-1",รายชื่อนักเรียน!AT17,IF(ข้อมูลพื้นฐาน!$I$19="ม.6-1",รายชื่อนักเรียน!AZ17,IF(ข้อมูลพื้นฐาน!$I$19="ม.0-0",รายชื่อนักเรียน!BF17))))))))))) ->  | H19: =IF(E19="","",ข้อมูลพื้นฐาน!$I$19) ->  | K19: 0 | L19: 0
B20: 12 | D20: =IF(ข้อมูลพื้นฐาน!$I$19="","",IF(ข้อมูลพื้นฐาน!$I$19="ม.1-1",รายชื่อนักเรียน!C18,IF(ข้อมูลพื้นฐาน!$I$19="ม.1-2",รายชื่อนักเรียน!I18,IF(ข้อมูลพื้นฐาน!$I$19="ม.2-1",รายชื่อนักเรียน!O18,IF(ข้อมูลพื้นฐาน!$I$19="ม.2-2",รายชื่อนักเรียน!U18,IF(ข้อมูลพื้นฐาน!$I$19="ม.3-1",รายชื่อนักเรียน!AA18,IF(ข้อมูลพื้นฐาน!$I$19="ม.3-2",รายชื่อนักเรียน!AG18,IF(ข้อมูลพื้นฐาน!$I$19="ม.4-1",รายชื่อนักเรียน!AM18,IF(ข้อมูลพื้นฐาน!$I$19="ม.5-1",รายชื่อนักเรียน!AS18,IF(ข้อมูลพื้นฐาน!$I$19="ม.6-1",รายชื่อนักเรียน!AY18,IF(ข้อมูลพื้นฐาน!$I$19="ม.0-0",รายชื่อนักเรียน!BE18))))))))))) ->  | F20: =IF(ข้อมูลพื้นฐาน!$I$19="","",IF(ข้อมูลพื้นฐาน!$I$19="ม.1-1",รายชื่อนักเรียน!D18,IF(ข้อมูลพื้นฐาน!$I$19="ม.1-2",รายชื่อนักเรียน!J18,IF(ข้อมูลพื้นฐาน!$I$19="ม.2-1",รายชื่อนักเรียน!P18,IF(ข้อมูลพื้นฐาน!$I$19="ม.2-2",รายชื่อนักเรียน!V18,IF(ข้อมูลพื้นฐาน!$I$19="ม.3-1",รายชื่อนักเรียน!AB18,IF(ข้อมูลพื้นฐาน!$I$19="ม.3-2",รายชื่อนักเรียน!AH18,IF(ข้อมูลพื้นฐาน!$I$19="ม.4-1",รายชื่อนักเรียน!AN18,IF(ข้อมูลพื้นฐาน!$I$19="ม.5-1",รายชื่อนักเรียน!AT18,IF(ข้อมูลพื้นฐาน!$I$19="ม.6-1",รายชื่อนักเรียน!AZ18,IF(ข้อมูลพื้นฐาน!$I$19="ม.0-0",รายชื่อนักเรียน!BF18))))))))))) ->  | H20: =IF(E20="","",ข้อมูลพื้นฐาน!$I$19) ->  | K20: 0 | L20: 0
B21: 13 | D21: =IF(ข้อมูลพื้นฐาน!$I$19="","",IF(ข้อมูลพื้นฐาน!$I$19="ม.1-1",รายชื่อนักเรียน!C19,IF(ข้อมูลพื้นฐาน!$I$19="ม.1-2",รายชื่อนักเรียน!I19,IF(ข้อมูลพื้นฐาน!$I$19="ม.2-1",รายชื่อนักเรียน!O19,IF(ข้อมูลพื้นฐาน!$I$19="ม.2-2",รายชื่อนักเรียน!U19,IF(ข้อมูลพื้นฐาน!$I$19="ม.3-1",รายชื่อนักเรียน!AA19,IF(ข้อมูลพื้นฐาน!$I$19="ม.3-2",รายชื่อนักเรียน!AG19,IF(ข้อมูลพื้นฐาน!$I$19="ม.4-1",รายชื่อนักเรียน!AM19,IF(ข้อมูลพื้นฐาน!$I$19="ม.5-1",รายชื่อนักเรียน!AS19,IF(ข้อมูลพื้นฐาน!$I$19="ม.6-1",รายชื่อนักเรียน!AY19,IF(ข้อมูลพื้นฐาน!$I$19="ม.0-0",รายชื่อนักเรียน!BE19))))))))))) ->  | F21: =IF(ข้อมูลพื้นฐาน!$I$19="","",IF(ข้อมูลพื้นฐาน!$I$19="ม.1-1",รายชื่อนักเรียน!D19,IF(ข้อมูลพื้นฐาน!$I$19="ม.1-2",รายชื่อนักเรียน!J19,IF(ข้อมูลพื้นฐาน!$I$19="ม.2-1",รายชื่อนักเรียน!P19,IF(ข้อมูลพื้นฐาน!$I$19="ม.2-2",รายชื่อนักเรียน!V19,IF(ข้อมูลพื้นฐาน!$I$19="ม.3-1",รายชื่อนักเรียน!AB19,IF(ข้อมูลพื้นฐาน!$I$19="ม.3-2",รายชื่อนักเรียน!AH19,IF(ข้อมูลพื้นฐาน!$I$19="ม.4-1",รายชื่อนักเรียน!AN19,IF(ข้อมูลพื้นฐาน!$I$19="ม.5-1",รายชื่อนักเรียน!AT19,IF(ข้อมูลพื้นฐาน!$I$19="ม.6-1",รายชื่อนักเรียน!AZ19,IF(ข้อมูลพื้นฐาน!$I$19="ม.0-0",รายชื่อนักเรียน!BF19))))))))))) ->  | H21: =IF(E21="","",ข้อมูลพื้นฐาน!$I$19) ->  | K21: 0 | L21: 0
B22: 14 | D22: =IF(ข้อมูลพื้นฐาน!$I$19="","",IF(ข้อมูลพื้นฐาน!$I$19="ม.1-1",รายชื่อนักเรียน!C20,IF(ข้อมูลพื้นฐาน!$I$19="ม.1-2",รายชื่อนักเรียน!I20,IF(ข้อมูลพื้นฐาน!$I$19="ม.2-1",รายชื่อนักเรียน!O20,IF(ข้อมูลพื้นฐาน!$I$19="ม.2-2",รายชื่อนักเรียน!U20,IF(ข้อมูลพื้นฐาน!$I$19="ม.3-1",รายชื่อนักเรียน!AA20,IF(ข้อมูลพื้นฐาน!$I$19="ม.3-2",รายชื่อนักเรียน!AG20,IF(ข้อมูลพื้นฐาน!$I$19="ม.4-1",รายชื่อนักเรียน!AM20,IF(ข้อมูลพื้นฐาน!$I$19="ม.5-1",รายชื่อนักเรียน!AS20,IF(ข้อมูลพื้นฐาน!$I$19="ม.6-1",รายชื่อนักเรียน!AY20,IF(ข้อมูลพื้นฐาน!$I$19="ม.0-0",รายชื่อนักเรียน!BE20))))))))))) ->  | F22: =IF(ข้อมูลพื้นฐาน!$I$19="","",IF(ข้อมูลพื้นฐาน!$I$19="ม.1-1",รายชื่อนักเรียน!D20,IF(ข้อมูลพื้นฐาน!$I$19="ม.1-2",รายชื่อนักเรียน!J20,IF(ข้อมูลพื้นฐาน!$I$19="ม.2-1",รายชื่อนักเรียน!P20,IF(ข้อมูลพื้นฐาน!$I$19="ม.2-2",รายชื่อนักเรียน!V20,IF(ข้อมูลพื้นฐาน!$I$19="ม.3-1",รายชื่อนักเรียน!AB20,IF(ข้อมูลพื้นฐาน!$I$19="ม.3-2",รายชื่อนักเรียน!AH20,IF(ข้อมูลพื้นฐาน!$I$19="ม.4-1",รายชื่อนักเรียน!AN20,IF(ข้อมูลพื้นฐาน!$I$19="ม.5-1",รายชื่อนักเรียน!AT20,IF(ข้อมูลพื้นฐาน!$I$19="ม.6-1",รายชื่อนักเรียน!AZ20,IF(ข้อมูลพื้นฐาน!$I$19="ม.0-0",รายชื่อนักเรียน!BF20))))))))))) ->  | H22: =IF(E22="","",ข้อมูลพื้นฐาน!$I$19) ->  | K22: 0 | L22: 0
B23: 15 | D23: =IF(ข้อมูลพื้นฐาน!$I$19="","",IF(ข้อมูลพื้นฐาน!$I$19="ม.1-1",รายชื่อนักเรียน!C21,IF(ข้อมูลพื้นฐาน!$I$19="ม.1-2",รายชื่อนักเรียน!I21,IF(ข้อมูลพื้นฐาน!$I$19="ม.2-1",รายชื่อนักเรียน!O21,IF(ข้อมูลพื้นฐาน!$I$19="ม.2-2",รายชื่อนักเรียน!U21,IF(ข้อมูลพื้นฐาน!$I$19="ม.3-1",รายชื่อนักเรียน!AA21,IF(ข้อมูลพื้นฐาน!$I$19="ม.3-2",รายชื่อนักเรียน!AG21,IF(ข้อมูลพื้นฐาน!$I$19="ม.4-1",รายชื่อนักเรียน!AM21,IF(ข้อมูลพื้นฐาน!$I$19="ม.5-1",รายชื่อนักเรียน!AS21,IF(ข้อมูลพื้นฐาน!$I$19="ม.6-1",รายชื่อนักเรียน!AY21,IF(ข้อมูลพื้นฐาน!$I$19="ม.0-0",รายชื่อนักเรียน!BE21))))))))))) ->  | F23: =IF(ข้อมูลพื้นฐาน!$I$19="","",IF(ข้อมูลพื้นฐาน!$I$19="ม.1-1",รายชื่อนักเรียน!D21,IF(ข้อมูลพื้นฐาน!$I$19="ม.1-2",รายชื่อนักเรียน!J21,IF(ข้อมูลพื้นฐาน!$I$19="ม.2-1",รายชื่อนักเรียน!P21,IF(ข้อมูลพื้นฐาน!$I$19="ม.2-2",รายชื่อนักเรียน!V21,IF(ข้อมูลพื้นฐาน!$I$19="ม.3-1",รายชื่อนักเรียน!AB21,IF(ข้อมูลพื้นฐาน!$I$19="ม.3-2",รายชื่อนักเรียน!AH21,IF(ข้อมูลพื้นฐาน!$I$19="ม.4-1",รายชื่อนักเรียน!AN21,IF(ข้อมูลพื้นฐาน!$I$19="ม.5-1",รายชื่อนักเรียน!AT21,IF(ข้อมูลพื้นฐาน!$I$19="ม.6-1",รายชื่อนักเรียน!AZ21,IF(ข้อมูลพื้นฐาน!$I$19="ม.0-0",รายชื่อนักเรียน!BF21))))))))))) ->  | H23: =IF(E23="","",ข้อมูลพื้นฐาน!$I$19) ->  | K23: 0 | L23: 0
B24: 16 | D24: =IF(ข้อมูลพื้นฐาน!$I$19="","",IF(ข้อมูลพื้นฐาน!$I$19="ม.1-1",รายชื่อนักเรียน!C22,IF(ข้อมูลพื้นฐาน!$I$19="ม.1-2",รายชื่อนักเรียน!I22,IF(ข้อมูลพื้นฐาน!$I$19="ม.2-1",รายชื่อนักเรียน!O22,IF(ข้อมูลพื้นฐาน!$I$19="ม.2-2",รายชื่อนักเรียน!U22,IF(ข้อมูลพื้นฐาน!$I$19="ม.3-1",รายชื่อนักเรียน!AA22,IF(ข้อมูลพื้นฐาน!$I$19="ม.3-2",รายชื่อนักเรียน!AG22,IF(ข้อมูลพื้นฐาน!$I$19="ม.4-1",รายชื่อนักเรียน!AM22,IF(ข้อมูลพื้นฐาน!$I$19="ม.5-1",รายชื่อนักเรียน!AS22,IF(ข้อมูลพื้นฐาน!$I$19="ม.6-1",รายชื่อนักเรียน!AY22,IF(ข้อมูลพื้นฐาน!$I$19="ม.0-0",รายชื่อนักเรียน!BE22))))))))))) ->  | F24: =IF(ข้อมูลพื้นฐาน!$I$19="","",IF(ข้อมูลพื้นฐาน!$I$19="ม.1-1",รายชื่อนักเรียน!D22,IF(ข้อมูลพื้นฐาน!$I$19="ม.1-2",รายชื่อนักเรียน!J22,IF(ข้อมูลพื้นฐาน!$I$19="ม.2-1",รายชื่อนักเรียน!P22,IF(ข้อมูลพื้นฐาน!$I$19="ม.2-2",รายชื่อนักเรียน!V22,IF(ข้อมูลพื้นฐาน!$I$19="ม.3-1",รายชื่อนักเรียน!AB22,IF(ข้อมูลพื้นฐาน!$I$19="ม.3-2",รายชื่อนักเรียน!AH22,IF(ข้อมูลพื้นฐาน!$I$19="ม.4-1",รายชื่อนักเรียน!AN22,IF(ข้อมูลพื้นฐาน!$I$19="ม.5-1",รายชื่อนักเรียน!AT22,IF(ข้อมูลพื้นฐาน!$I$19="ม.6-1",รายชื่อนักเรียน!AZ22,IF(ข้อมูลพื้นฐาน!$I$19="ม.0-0",รายชื่อนักเรียน!BF22))))))))))) ->  | H24: =IF(E24="","",ข้อมูลพื้นฐาน!$I$19) ->  | K24: 0 | L24: 0
B25: 17 | D25: =IF(ข้อมูลพื้นฐาน!$I$19="","",IF(ข้อมูลพื้นฐาน!$I$19="ม.1-1",รายชื่อนักเรียน!C23,IF(ข้อมูลพื้นฐาน!$I$19="ม.1-2",รายชื่อนักเรียน!I23,IF(ข้อมูลพื้นฐาน!$I$19="ม.2-1",รายชื่อนักเรียน!O23,IF(ข้อมูลพื้นฐาน!$I$19="ม.2-2",รายชื่อนักเรียน!U23,IF(ข้อมูลพื้นฐาน!$I$19="ม.3-1",รายชื่อนักเรียน!AA23,IF(ข้อมูลพื้นฐาน!$I$19="ม.3-2",รายชื่อนักเรียน!AG23,IF(ข้อมูลพื้นฐาน!$I$19="ม.4-1",รายชื่อนักเรียน!AM23,IF(ข้อมูลพื้นฐาน!$I$19="ม.5-1",รายชื่อนักเรียน!AS23,IF(ข้อมูลพื้นฐาน!$I$19="ม.6-1",รายชื่อนักเรียน!AY23,IF(ข้อมูลพื้นฐาน!$I$19="ม.0-0",รายชื่อนักเรียน!BE23))))))))))) ->  | F25: =IF(ข้อมูลพื้นฐาน!$I$19="","",IF(ข้อมูลพื้นฐาน!$I$19="ม.1-1",รายชื่อนักเรียน!D23,IF(ข้อมูลพื้นฐาน!$I$19="ม.1-2",รายชื่อนักเรียน!J23,IF(ข้อมูลพื้นฐาน!$I$19="ม.2-1",รายชื่อนักเรียน!P23,IF(ข้อมูลพื้นฐาน!$I$19="ม.2-2",รายชื่อนักเรียน!V23,IF(ข้อมูลพื้นฐาน!$I$19="ม.3-1",รายชื่อนักเรียน!AB23,IF(ข้อมูลพื้นฐาน!$I$19="ม.3-2",รายชื่อนักเรียน!AH23,IF(ข้อมูลพื้นฐาน!$I$19="ม.4-1",รายชื่อนักเรียน!AN23,IF(ข้อมูลพื้นฐาน!$I$19="ม.5-1",รายชื่อนักเรียน!AT23,IF(ข้อมูลพื้นฐาน!$I$19="ม.6-1",รายชื่อนักเรียน!AZ23,IF(ข้อมูลพื้นฐาน!$I$19="ม.0-0",รายชื่อนักเรียน!BF23))))))))))) ->  | H25: =IF(E25="","",ข้อมูลพื้นฐาน!$I$19) ->  | K25: 0 | L25: 0
B26: 18 | D26: =IF(ข้อมูลพื้นฐาน!$I$19="","",IF(ข้อมูลพื้นฐาน!$I$19="ม.1-1",รายชื่อนักเรียน!C24,IF(ข้อมูลพื้นฐาน!$I$19="ม.1-2",รายชื่อนักเรียน!I24,IF(ข้อมูลพื้นฐาน!$I$19="ม.2-1",รายชื่อนักเรียน!O24,IF(ข้อมูลพื้นฐาน!$I$19="ม.2-2",รายชื่อนักเรียน!U24,IF(ข้อมูลพื้นฐาน!$I$19="ม.3-1",รายชื่อนักเรียน!AA24,IF(ข้อมูลพื้นฐาน!$I$19="ม.3-2",รายชื่อนักเรียน!AG24,IF(ข้อมูลพื้นฐาน!$I$19="ม.4-1",รายชื่อนักเรียน!AM24,IF(ข้อมูลพื้นฐาน!$I$19="ม.5-1",รายชื่อนักเรียน!AS24,IF(ข้อมูลพื้นฐาน!$I$19="ม.6-1",รายชื่อนักเรียน!AY24,IF(ข้อมูลพื้นฐาน!$I$19="ม.0-0",รายชื่อนักเรียน!BE24))))))))))) ->  | F26: =IF(ข้อมูลพื้นฐาน!$I$19="","",IF(ข้อมูลพื้นฐาน!$I$19="ม.1-1",รายชื่อนักเรียน!D24,IF(ข้อมูลพื้นฐาน!$I$19="ม.1-2",รายชื่อนักเรียน!J24,IF(ข้อมูลพื้นฐาน!$I$19="ม.2-1",รายชื่อนักเรียน!P24,IF(ข้อมูลพื้นฐาน!$I$19="ม.2-2",รายชื่อนักเรียน!V24,IF(ข้อมูลพื้นฐาน!$I$19="ม.3-1",รายชื่อนักเรียน!AB24,IF(ข้อมูลพื้นฐาน!$I$19="ม.3-2",รายชื่อนักเรียน!AH24,IF(ข้อมูลพื้นฐาน!$I$19="ม.4-1",รายชื่อนักเรียน!AN24,IF(ข้อมูลพื้นฐาน!$I$19="ม.5-1",รายชื่อนักเรียน!AT24,IF(ข้อมูลพื้นฐาน!$I$19="ม.6-1",รายชื่อนักเรียน!AZ24,IF(ข้อมูลพื้นฐาน!$I$19="ม.0-0",รายชื่อนักเรียน!BF24))))))))))) ->  | H26: =IF(E26="","",ข้อมูลพื้นฐาน!$I$19) ->  | K26: 0 | L26: 0
B27: 19 | D27: =IF(ข้อมูลพื้นฐาน!$I$19="","",IF(ข้อมูลพื้นฐาน!$I$19="ม.1-1",รายชื่อนักเรียน!C25,IF(ข้อมูลพื้นฐาน!$I$19="ม.1-2",รายชื่อนักเรียน!I25,IF(ข้อมูลพื้นฐาน!$I$19="ม.2-1",รายชื่อนักเรียน!O25,IF(ข้อมูลพื้นฐาน!$I$19="ม.2-2",รายชื่อนักเรียน!U25,IF(ข้อมูลพื้นฐาน!$I$19="ม.3-1",รายชื่อนักเรียน!AA25,IF(ข้อมูลพื้นฐาน!$I$19="ม.3-2",รายชื่อนักเรียน!AG25,IF(ข้อมูลพื้นฐาน!$I$19="ม.4-1",รายชื่อนักเรียน!AM25,IF(ข้อมูลพื้นฐาน!$I$19="ม.5-1",รายชื่อนักเรียน!AS25,IF(ข้อมูลพื้นฐาน!$I$19="ม.6-1",รายชื่อนักเรียน!AY25,IF(ข้อมูลพื้นฐาน!$I$19="ม.0-0",รายชื่อนักเรียน!BE25))))))))))) ->  | F27: =IF(ข้อมูลพื้นฐาน!$I$19="","",IF(ข้อมูลพื้นฐาน!$I$19="ม.1-1",รายชื่อนักเรียน!D25,IF(ข้อมูลพื้นฐาน!$I$19="ม.1-2",รายชื่อนักเรียน!J25,IF(ข้อมูลพื้นฐาน!$I$19="ม.2-1",รายชื่อนักเรียน!P25,IF(ข้อมูลพื้นฐาน!$I$19="ม.2-2",รายชื่อนักเรียน!V25,IF(ข้อมูลพื้นฐาน!$I$19="ม.3-1",รายชื่อนักเรียน!AB25,IF(ข้อมูลพื้นฐาน!$I$19="ม.3-2",รายชื่อนักเรียน!AH25,IF(ข้อมูลพื้นฐาน!$I$19="ม.4-1",รายชื่อนักเรียน!AN25,IF(ข้อมูลพื้นฐาน!$I$19="ม.5-1",รายชื่อนักเรียน!AT25,IF(ข้อมูลพื้นฐาน!$I$19="ม.6-1",รายชื่อนักเรียน!AZ25,IF(ข้อมูลพื้นฐาน!$I$19="ม.0-0",รายชื่อนักเรียน!BF25))))))))))) ->  | H27: =IF(E27="","",ข้อมูลพื้นฐาน!$I$19) ->  | K27: 0 | L27: 0
B28: 20 | D28: =IF(ข้อมูลพื้นฐาน!$I$19="","",IF(ข้อมูลพื้นฐาน!$I$19="ม.1-1",รายชื่อนักเรียน!C26,IF(ข้อมูลพื้นฐาน!$I$19="ม.1-2",รายชื่อนักเรียน!I26,IF(ข้อมูลพื้นฐาน!$I$19="ม.2-1",รายชื่อนักเรียน!O26,IF(ข้อมูลพื้นฐาน!$I$19="ม.2-2",รายชื่อนักเรียน!U26,IF(ข้อมูลพื้นฐาน!$I$19="ม.3-1",รายชื่อนักเรียน!AA26,IF(ข้อมูลพื้นฐาน!$I$19="ม.3-2",รายชื่อนักเรียน!AG26,IF(ข้อมูลพื้นฐาน!$I$19="ม.4-1",รายชื่อนักเรียน!AM26,IF(ข้อมูลพื้นฐาน!$I$19="ม.5-1",รายชื่อนักเรียน!AS26,IF(ข้อมูลพื้นฐาน!$I$19="ม.6-1",รายชื่อนักเรียน!AY26,IF(ข้อมูลพื้นฐาน!$I$19="ม.0-0",รายชื่อนักเรียน!BE26))))))))))) ->  | F28: =IF(ข้อมูลพื้นฐาน!$I$19="","",IF(ข้อมูลพื้นฐาน!$I$19="ม.1-1",รายชื่อนักเรียน!D26,IF(ข้อมูลพื้นฐาน!$I$19="ม.1-2",รายชื่อนักเรียน!J26,IF(ข้อมูลพื้นฐาน!$I$19="ม.2-1",รายชื่อนักเรียน!P26,IF(ข้อมูลพื้นฐาน!$I$19="ม.2-2",รายชื่อนักเรียน!V26,IF(ข้อมูลพื้นฐาน!$I$19="ม.3-1",รายชื่อนักเรียน!AB26,IF(ข้อมูลพื้นฐาน!$I$19="ม.3-2",รายชื่อนักเรียน!AH26,IF(ข้อมูลพื้นฐาน!$I$19="ม.4-1",รายชื่อนักเรียน!AN26,IF(ข้อมูลพื้นฐาน!$I$19="ม.5-1",รายชื่อนักเรียน!AT26,IF(ข้อมูลพื้นฐาน!$I$19="ม.6-1",รายชื่อนักเรียน!AZ26,IF(ข้อมูลพื้นฐาน!$I$19="ม.0-0",รายชื่อนักเรียน!BF26))))))))))) ->  | H28: =IF(E28="","",ข้อมูลพื้นฐาน!$I$19) ->  | K28: 0 | L28: 0
B29: 21 | D29: =IF(ข้อมูลพื้นฐาน!$I$19="","",IF(ข้อมูลพื้นฐาน!$I$19="ม.1-1",รายชื่อนักเรียน!C27,IF(ข้อมูลพื้นฐาน!$I$19="ม.1-2",รายชื่อนักเรียน!I27,IF(ข้อมูลพื้นฐาน!$I$19="ม.2-1",รายชื่อนักเรียน!O27,IF(ข้อมูลพื้นฐาน!$I$19="ม.2-2",รายชื่อนักเรียน!U27,IF(ข้อมูลพื้นฐาน!$I$19="ม.3-1",รายชื่อนักเรียน!AA27,IF(ข้อมูลพื้นฐาน!$I$19="ม.3-2",รายชื่อนักเรียน!AG27,IF(ข้อมูลพื้นฐาน!$I$19="ม.4-1",รายชื่อนักเรียน!AM27,IF(ข้อมูลพื้นฐาน!$I$19="ม.5-1",รายชื่อนักเรียน!AS27,IF(ข้อมูลพื้นฐาน!$I$19="ม.6-1",รายชื่อนักเรียน!AY27,IF(ข้อมูลพื้นฐาน!$I$19="ม.0-0",รายชื่อนักเรียน!BE27))))))))))) ->  | F29: =IF(ข้อมูลพื้นฐาน!$I$19="","",IF(ข้อมูลพื้นฐาน!$I$19="ม.1-1",รายชื่อนักเรียน!D27,IF(ข้อมูลพื้นฐาน!$I$19="ม.1-2",รายชื่อนักเรียน!J27,IF(ข้อมูลพื้นฐาน!$I$19="ม.2-1",รายชื่อนักเรียน!P27,IF(ข้อมูลพื้นฐาน!$I$19="ม.2-2",รายชื่อนักเรียน!V27,IF(ข้อมูลพื้นฐาน!$I$19="ม.3-1",รายชื่อนักเรียน!AB27,IF(ข้อมูลพื้นฐาน!$I$19="ม.3-2",รายชื่อนักเรียน!AH27,IF(ข้อมูลพื้นฐาน!$I$19="ม.4-1",รายชื่อนักเรียน!AN27,IF(ข้อมูลพื้นฐาน!$I$19="ม.5-1",รายชื่อนักเรียน!AT27,IF(ข้อมูลพื้นฐาน!$I$19="ม.6-1",รายชื่อนักเรียน!AZ27,IF(ข้อมูลพื้นฐาน!$I$19="ม.0-0",รายชื่อนักเรียน!BF27))))))))))) ->  | H29: =IF(E29="","",ข้อมูลพื้นฐาน!$I$19) ->  | K29: 0 | L29: 0
B30: 22 | D30: =IF(ข้อมูลพื้นฐาน!$I$19="","",IF(ข้อมูลพื้นฐาน!$I$19="ม.1-1",รายชื่อนักเรียน!C28,IF(ข้อมูลพื้นฐาน!$I$19="ม.1-2",รายชื่อนักเรียน!I28,IF(ข้อมูลพื้นฐาน!$I$19="ม.2-1",รายชื่อนักเรียน!O28,IF(ข้อมูลพื้นฐาน!$I$19="ม.2-2",รายชื่อนักเรียน!U28,IF(ข้อมูลพื้นฐาน!$I$19="ม.3-1",รายชื่อนักเรียน!AA28,IF(ข้อมูลพื้นฐาน!$I$19="ม.3-2",รายชื่อนักเรียน!AG28,IF(ข้อมูลพื้นฐาน!$I$19="ม.4-1",รายชื่อนักเรียน!AM28,IF(ข้อมูลพื้นฐาน!$I$19="ม.5-1",รายชื่อนักเรียน!AS28,IF(ข้อมูลพื้นฐาน!$I$19="ม.6-1",รายชื่อนักเรียน!AY28,IF(ข้อมูลพื้นฐาน!$I$19="ม.0-0",รายชื่อนักเรียน!BE28))))))))))) ->  | F30: =IF(ข้อมูลพื้นฐาน!$I$19="","",IF(ข้อมูลพื้นฐาน!$I$19="ม.1-1",รายชื่อนักเรียน!D28,IF(ข้อมูลพื้นฐาน!$I$19="ม.1-2",รายชื่อนักเรียน!J28,IF(ข้อมูลพื้นฐาน!$I$19="ม.2-1",รายชื่อนักเรียน!P28,IF(ข้อมูลพื้นฐาน!$I$19="ม.2-2",รายชื่อนักเรียน!V28,IF(ข้อมูลพื้นฐาน!$I$19="ม.3-1",รายชื่อนักเรียน!AB28,IF(ข้อมูลพื้นฐาน!$I$19="ม.3-2",รายชื่อนักเรียน!AH28,IF(ข้อมูลพื้นฐาน!$I$19="ม.4-1",รายชื่อนักเรียน!AN28,IF(ข้อมูลพื้นฐาน!$I$19="ม.5-1",รายชื่อนักเรียน!AT28,IF(ข้อมูลพื้นฐาน!$I$19="ม.6-1",รายชื่อนักเรียน!AZ28,IF(ข้อมูลพื้นฐาน!$I$19="ม.0-0",รายชื่อนักเรียน!BF28))))))))))) ->  | H30: =IF(E30="","",ข้อมูลพื้นฐาน!$I$19) ->  | K30: 0 | L30: 0
B31: 23 | D31: =IF(ข้อมูลพื้นฐาน!$I$19="","",IF(ข้อมูลพื้นฐาน!$I$19="ม.1-1",รายชื่อนักเรียน!C29,IF(ข้อมูลพื้นฐาน!$I$19="ม.1-2",รายชื่อนักเรียน!I29,IF(ข้อมูลพื้นฐาน!$I$19="ม.2-1",รายชื่อนักเรียน!O29,IF(ข้อมูลพื้นฐาน!$I$19="ม.2-2",รายชื่อนักเรียน!U29,IF(ข้อมูลพื้นฐาน!$I$19="ม.3-1",รายชื่อนักเรียน!AA29,IF(ข้อมูลพื้นฐาน!$I$19="ม.3-2",รายชื่อนักเรียน!AG29,IF(ข้อมูลพื้นฐาน!$I$19="ม.4-1",รายชื่อนักเรียน!AM29,IF(ข้อมูลพื้นฐาน!$I$19="ม.5-1",รายชื่อนักเรียน!AS29,IF(ข้อมูลพื้นฐาน!$I$19="ม.6-1",รายชื่อนักเรียน!AY29,IF(ข้อมูลพื้นฐาน!$I$19="ม.0-0",รายชื่อนักเรียน!BE29))))))))))) ->  | F31: =IF(ข้อมูลพื้นฐาน!$I$19="","",IF(ข้อมูลพื้นฐาน!$I$19="ม.1-1",รายชื่อนักเรียน!D29,IF(ข้อมูลพื้นฐาน!$I$19="ม.1-2",รายชื่อนักเรียน!J29,IF(ข้อมูลพื้นฐาน!$I$19="ม.2-1",รายชื่อนักเรียน!P29,IF(ข้อมูลพื้นฐาน!$I$19="ม.2-2",รายชื่อนักเรียน!V29,IF(ข้อมูลพื้นฐาน!$I$19="ม.3-1",รายชื่อนักเรียน!AB29,IF(ข้อมูลพื้นฐาน!$I$19="ม.3-2",รายชื่อนักเรียน!AH29,IF(ข้อมูลพื้นฐาน!$I$19="ม.4-1",รายชื่อนักเรียน!AN29,IF(ข้อมูลพื้นฐาน!$I$19="ม.5-1",รายชื่อนักเรียน!AT29,IF(ข้อมูลพื้นฐาน!$I$19="ม.6-1",รายชื่อนักเรียน!AZ29,IF(ข้อมูลพื้นฐาน!$I$19="ม.0-0",รายชื่อนักเรียน!BF29))))))))))) ->  | H31: =IF(E31="","",ข้อมูลพื้นฐาน!$I$19) ->  | K31: 0 | L31: 0
B32: 24 | D32: =IF(ข้อมูลพื้นฐาน!$I$19="","",IF(ข้อมูลพื้นฐาน!$I$19="ม.1-1",รายชื่อนักเรียน!C30,IF(ข้อมูลพื้นฐาน!$I$19="ม.1-2",รายชื่อนักเรียน!I30,IF(ข้อมูลพื้นฐาน!$I$19="ม.2-1",รายชื่อนักเรียน!O30,IF(ข้อมูลพื้นฐาน!$I$19="ม.2-2",รายชื่อนักเรียน!U30,IF(ข้อมูลพื้นฐาน!$I$19="ม.3-1",รายชื่อนักเรียน!AA30,IF(ข้อมูลพื้นฐาน!$I$19="ม.3-2",รายชื่อนักเรียน!AG30,IF(ข้อมูลพื้นฐาน!$I$19="ม.4-1",รายชื่อนักเรียน!AM30,IF(ข้อมูลพื้นฐาน!$I$19="ม.5-1",รายชื่อนักเรียน!AS30,IF(ข้อมูลพื้นฐาน!$I$19="ม.6-1",รายชื่อนักเรียน!AY30,IF(ข้อมูลพื้นฐาน!$I$19="ม.0-0",รายชื่อนักเรียน!BE30))))))))))) ->  | F32: =IF(ข้อมูลพื้นฐาน!$I$19="","",IF(ข้อมูลพื้นฐาน!$I$19="ม.1-1",รายชื่อนักเรียน!D30,IF(ข้อมูลพื้นฐาน!$I$19="ม.1-2",รายชื่อนักเรียน!J30,IF(ข้อมูลพื้นฐาน!$I$19="ม.2-1",รายชื่อนักเรียน!P30,IF(ข้อมูลพื้นฐาน!$I$19="ม.2-2",รายชื่อนักเรียน!V30,IF(ข้อมูลพื้นฐาน!$I$19="ม.3-1",รายชื่อนักเรียน!AB30,IF(ข้อมูลพื้นฐาน!$I$19="ม.3-2",รายชื่อนักเรียน!AH30,IF(ข้อมูลพื้นฐาน!$I$19="ม.4-1",รายชื่อนักเรียน!AN30,IF(ข้อมูลพื้นฐาน!$I$19="ม.5-1",รายชื่อนักเรียน!AT30,IF(ข้อมูลพื้นฐาน!$I$19="ม.6-1",รายชื่อนักเรียน!AZ30,IF(ข้อมูลพื้นฐาน!$I$19="ม.0-0",รายชื่อนักเรียน!BF30))))))))))) ->  | H32: =IF(E32="","",ข้อมูลพื้นฐาน!$I$19) ->  | K32: 0 | L32: 0
B33: 25 | D33: =IF(ข้อมูลพื้นฐาน!$I$19="","",IF(ข้อมูลพื้นฐาน!$I$19="ม.1-1",รายชื่อนักเรียน!C31,IF(ข้อมูลพื้นฐาน!$I$19="ม.1-2",รายชื่อนักเรียน!I31,IF(ข้อมูลพื้นฐาน!$I$19="ม.2-1",รายชื่อนักเรียน!O31,IF(ข้อมูลพื้นฐาน!$I$19="ม.2-2",รายชื่อนักเรียน!U31,IF(ข้อมูลพื้นฐาน!$I$19="ม.3-1",รายชื่อนักเรียน!AA31,IF(ข้อมูลพื้นฐาน!$I$19="ม.3-2",รายชื่อนักเรียน!AG31,IF(ข้อมูลพื้นฐาน!$I$19="ม.4-1",รายชื่อนักเรียน!AM31,IF(ข้อมูลพื้นฐาน!$I$19="ม.5-1",รายชื่อนักเรียน!AS31,IF(ข้อมูลพื้นฐาน!$I$19="ม.6-1",รายชื่อนักเรียน!AY31,IF(ข้อมูลพื้นฐาน!$I$19="ม.0-0",รายชื่อนักเรียน!BE31))))))))))) ->  | F33: =IF(ข้อมูลพื้นฐาน!$I$19="","",IF(ข้อมูลพื้นฐาน!$I$19="ม.1-1",รายชื่อนักเรียน!D31,IF(ข้อมูลพื้นฐาน!$I$19="ม.1-2",รายชื่อนักเรียน!J31,IF(ข้อมูลพื้นฐาน!$I$19="ม.2-1",รายชื่อนักเรียน!P31,IF(ข้อมูลพื้นฐาน!$I$19="ม.2-2",รายชื่อนักเรียน!V31,IF(ข้อมูลพื้นฐาน!$I$19="ม.3-1",รายชื่อนักเรียน!AB31,IF(ข้อมูลพื้นฐาน!$I$19="ม.3-2",รายชื่อนักเรียน!AH31,IF(ข้อมูลพื้นฐาน!$I$19="ม.4-1",รายชื่อนักเรียน!AN31,IF(ข้อมูลพื้นฐาน!$I$19="ม.5-1",รายชื่อนักเรียน!AT31,IF(ข้อมูลพื้นฐาน!$I$19="ม.6-1",รายชื่อนักเรียน!AZ31,IF(ข้อมูลพื้นฐาน!$I$19="ม.0-0",รายชื่อนักเรียน!BF31))))))))))) ->  | H33: =IF(E33="","",ข้อมูลพื้นฐาน!$I$19) ->  | K33: 0 | L33: 0
B34: 26 | D34: =IF(ข้อมูลพื้นฐาน!$I$19="","",IF(ข้อมูลพื้นฐาน!$I$19="ม.1-1",รายชื่อนักเรียน!C32,IF(ข้อมูลพื้นฐาน!$I$19="ม.1-2",รายชื่อนักเรียน!I32,IF(ข้อมูลพื้นฐาน!$I$19="ม.2-1",รายชื่อนักเรียน!O32,IF(ข้อมูลพื้นฐาน!$I$19="ม.2-2",รายชื่อนักเรียน!U32,IF(ข้อมูลพื้นฐาน!$I$19="ม.3-1",รายชื่อนักเรียน!AA32,IF(ข้อมูลพื้นฐาน!$I$19="ม.3-2",รายชื่อนักเรียน!AG32,IF(ข้อมูลพื้นฐาน!$I$19="ม.4-1",รายชื่อนักเรียน!AM32,IF(ข้อมูลพื้นฐาน!$I$19="ม.5-1",รายชื่อนักเรียน!AS32,IF(ข้อมูลพื้นฐาน!$I$19="ม.6-1",รายชื่อนักเรียน!AY32,IF(ข้อมูลพื้นฐาน!$I$19="ม.0-0",รายชื่อนักเรียน!BE32))))))))))) ->  | F34: =IF(ข้อมูลพื้นฐาน!$I$19="","",IF(ข้อมูลพื้นฐาน!$I$19="ม.1-1",รายชื่อนักเรียน!D32,IF(ข้อมูลพื้นฐาน!$I$19="ม.1-2",รายชื่อนักเรียน!J32,IF(ข้อมูลพื้นฐาน!$I$19="ม.2-1",รายชื่อนักเรียน!P32,IF(ข้อมูลพื้นฐาน!$I$19="ม.2-2",รายชื่อนักเรียน!V32,IF(ข้อมูลพื้นฐาน!$I$19="ม.3-1",รายชื่อนักเรียน!AB32,IF(ข้อมูลพื้นฐาน!$I$19="ม.3-2",รายชื่อนักเรียน!AH32,IF(ข้อมูลพื้นฐาน!$I$19="ม.4-1",รายชื่อนักเรียน!AN32,IF(ข้อมูลพื้นฐาน!$I$19="ม.5-1",รายชื่อนักเรียน!AT32,IF(ข้อมูลพื้นฐาน!$I$19="ม.6-1",รายชื่อนักเรียน!AZ32,IF(ข้อมูลพื้นฐาน!$I$19="ม.0-0",รายชื่อนักเรียน!BF32))))))))))) ->  | H34: =IF(E34="","",ข้อมูลพื้นฐาน!$I$19) ->  | K34: 0 | L34: 0
B35: 27 | D35: =IF(ข้อมูลพื้นฐาน!$I$19="","",IF(ข้อมูลพื้นฐาน!$I$19="ม.1-1",รายชื่อนักเรียน!C33,IF(ข้อมูลพื้นฐาน!$I$19="ม.1-2",รายชื่อนักเรียน!I33,IF(ข้อมูลพื้นฐาน!$I$19="ม.2-1",รายชื่อนักเรียน!O33,IF(ข้อมูลพื้นฐาน!$I$19="ม.2-2",รายชื่อนักเรียน!U33,IF(ข้อมูลพื้นฐาน!$I$19="ม.3-1",รายชื่อนักเรียน!AA33,IF(ข้อมูลพื้นฐาน!$I$19="ม.3-2",รายชื่อนักเรียน!AG33,IF(ข้อมูลพื้นฐาน!$I$19="ม.4-1",รายชื่อนักเรียน!AM33,IF(ข้อมูลพื้นฐาน!$I$19="ม.5-1",รายชื่อนักเรียน!AS33,IF(ข้อมูลพื้นฐาน!$I$19="ม.6-1",รายชื่อนักเรียน!AY33,IF(ข้อมูลพื้นฐาน!$I$19="ม.0-0",รายชื่อนักเรียน!BE33))))))))))) ->  | F35: =IF(ข้อมูลพื้นฐาน!$I$19="","",IF(ข้อมูลพื้นฐาน!$I$19="ม.1-1",รายชื่อนักเรียน!D33,IF(ข้อมูลพื้นฐาน!$I$19="ม.1-2",รายชื่อนักเรียน!J33,IF(ข้อมูลพื้นฐาน!$I$19="ม.2-1",รายชื่อนักเรียน!P33,IF(ข้อมูลพื้นฐาน!$I$19="ม.2-2",รายชื่อนักเรียน!V33,IF(ข้อมูลพื้นฐาน!$I$19="ม.3-1",รายชื่อนักเรียน!AB33,IF(ข้อมูลพื้นฐาน!$I$19="ม.3-2",รายชื่อนักเรียน!AH33,IF(ข้อมูลพื้นฐาน!$I$19="ม.4-1",รายชื่อนักเรียน!AN33,IF(ข้อมูลพื้นฐาน!$I$19="ม.5-1",รายชื่อนักเรียน!AT33,IF(ข้อมูลพื้นฐาน!$I$19="ม.6-1",รายชื่อนักเรียน!AZ33,IF(ข้อมูลพื้นฐาน!$I$19="ม.0-0",รายชื่อนักเรียน!BF33))))))))))) ->  | H35: =IF(E35="","",ข้อมูลพื้นฐาน!$I$19) ->  | K35: 0 | L35: 0
B36: 28 | D36: =IF(ข้อมูลพื้นฐาน!$I$19="","",IF(ข้อมูลพื้นฐาน!$I$19="ม.1-1",รายชื่อนักเรียน!C34,IF(ข้อมูลพื้นฐาน!$I$19="ม.1-2",รายชื่อนักเรียน!I34,IF(ข้อมูลพื้นฐาน!$I$19="ม.2-1",รายชื่อนักเรียน!O34,IF(ข้อมูลพื้นฐาน!$I$19="ม.2-2",รายชื่อนักเรียน!U34,IF(ข้อมูลพื้นฐาน!$I$19="ม.3-1",รายชื่อนักเรียน!AA34,IF(ข้อมูลพื้นฐาน!$I$19="ม.3-2",รายชื่อนักเรียน!AG34,IF(ข้อมูลพื้นฐาน!$I$19="ม.4-1",รายชื่อนักเรียน!AM34,IF(ข้อมูลพื้นฐาน!$I$19="ม.5-1",รายชื่อนักเรียน!AS34,IF(ข้อมูลพื้นฐาน!$I$19="ม.6-1",รายชื่อนักเรียน!AY34,IF(ข้อมูลพื้นฐาน!$I$19="ม.0-0",รายชื่อนักเรียน!BE34))))))))))) ->  | F36: =IF(ข้อมูลพื้นฐาน!$I$19="","",IF(ข้อมูลพื้นฐาน!$I$19="ม.1-1",รายชื่อนักเรียน!D34,IF(ข้อมูลพื้นฐาน!$I$19="ม.1-2",รายชื่อนักเรียน!J34,IF(ข้อมูลพื้นฐาน!$I$19="ม.2-1",รายชื่อนักเรียน!P34,IF(ข้อมูลพื้นฐาน!$I$19="ม.2-2",รายชื่อนักเรียน!V34,IF(ข้อมูลพื้นฐาน!$I$19="ม.3-1",รายชื่อนักเรียน!AB34,IF(ข้อมูลพื้นฐาน!$I$19="ม.3-2",รายชื่อนักเรียน!AH34,IF(ข้อมูลพื้นฐาน!$I$19="ม.4-1",รายชื่อนักเรียน!AN34,IF(ข้อมูลพื้นฐาน!$I$19="ม.5-1",รายชื่อนักเรียน!AT34,IF(ข้อมูลพื้นฐาน!$I$19="ม.6-1",รายชื่อนักเรียน!AZ34,IF(ข้อมูลพื้นฐาน!$I$19="ม.0-0",รายชื่อนักเรียน!BF34))))))))))) ->  | H36: =IF(E36="","",ข้อมูลพื้นฐาน!$I$19) ->  | K36: 0 | L36: 0
B37: 29 | D37: =IF(ข้อมูลพื้นฐาน!$I$19="","",IF(ข้อมูลพื้นฐาน!$I$19="ม.1-1",รายชื่อนักเรียน!C35,IF(ข้อมูลพื้นฐาน!$I$19="ม.1-2",รายชื่อนักเรียน!I35,IF(ข้อมูลพื้นฐาน!$I$19="ม.2-1",รายชื่อนักเรียน!O35,IF(ข้อมูลพื้นฐาน!$I$19="ม.2-2",รายชื่อนักเรียน!U35,IF(ข้อมูลพื้นฐาน!$I$19="ม.3-1",รายชื่อนักเรียน!AA35,IF(ข้อมูลพื้นฐาน!$I$19="ม.3-2",รายชื่อนักเรียน!AG35,IF(ข้อมูลพื้นฐาน!$I$19="ม.4-1",รายชื่อนักเรียน!AM35,IF(ข้อมูลพื้นฐาน!$I$19="ม.5-1",รายชื่อนักเรียน!AS35,IF(ข้อมูลพื้นฐาน!$I$19="ม.6-1",รายชื่อนักเรียน!AY35,IF(ข้อมูลพื้นฐาน!$I$19="ม.0-0",รายชื่อนักเรียน!BE35))))))))))) ->  | F37: =IF(ข้อมูลพื้นฐาน!$I$19="","",IF(ข้อมูลพื้นฐาน!$I$19="ม.1-1",รายชื่อนักเรียน!D35,IF(ข้อมูลพื้นฐาน!$I$19="ม.1-2",รายชื่อนักเรียน!J35,IF(ข้อมูลพื้นฐาน!$I$19="ม.2-1",รายชื่อนักเรียน!P35,IF(ข้อมูลพื้นฐาน!$I$19="ม.2-2",รายชื่อนักเรียน!V35,IF(ข้อมูลพื้นฐาน!$I$19="ม.3-1",รายชื่อนักเรียน!AB35,IF(ข้อมูลพื้นฐาน!$I$19="ม.3-2",รายชื่อนักเรียน!AH35,IF(ข้อมูลพื้นฐาน!$I$19="ม.4-1",รายชื่อนักเรียน!AN35,IF(ข้อมูลพื้นฐาน!$I$19="ม.5-1",รายชื่อนักเรียน!AT35,IF(ข้อมูลพื้นฐาน!$I$19="ม.6-1",รายชื่อนักเรียน!AZ35,IF(ข้อมูลพื้นฐาน!$I$19="ม.0-0",รายชื่อนักเรียน!BF35))))))))))) ->  | H37: =IF(E37="","",ข้อมูลพื้นฐาน!$I$19) ->  | K37: 0 | L37: 0
B38: 30 | D38: =IF(ข้อมูลพื้นฐาน!$I$19="","",IF(ข้อมูลพื้นฐาน!$I$19="ม.1-1",รายชื่อนักเรียน!C36,IF(ข้อมูลพื้นฐาน!$I$19="ม.1-2",รายชื่อนักเรียน!I36,IF(ข้อมูลพื้นฐาน!$I$19="ม.2-1",รายชื่อนักเรียน!O36,IF(ข้อมูลพื้นฐาน!$I$19="ม.2-2",รายชื่อนักเรียน!U36,IF(ข้อมูลพื้นฐาน!$I$19="ม.3-1",รายชื่อนักเรียน!AA36,IF(ข้อมูลพื้นฐาน!$I$19="ม.3-2",รายชื่อนักเรียน!AG36,IF(ข้อมูลพื้นฐาน!$I$19="ม.4-1",รายชื่อนักเรียน!AM36,IF(ข้อมูลพื้นฐาน!$I$19="ม.5-1",รายชื่อนักเรียน!AS36,IF(ข้อมูลพื้นฐาน!$I$19="ม.6-1",รายชื่อนักเรียน!AY36,IF(ข้อมูลพื้นฐาน!$I$19="ม.0-0",รายชื่อนักเรียน!BE36))))))))))) ->  | F38: =IF(ข้อมูลพื้นฐาน!$I$19="","",IF(ข้อมูลพื้นฐาน!$I$19="ม.1-1",รายชื่อนักเรียน!D36,IF(ข้อมูลพื้นฐาน!$I$19="ม.1-2",รายชื่อนักเรียน!J36,IF(ข้อมูลพื้นฐาน!$I$19="ม.2-1",รายชื่อนักเรียน!P36,IF(ข้อมูลพื้นฐาน!$I$19="ม.2-2",รายชื่อนักเรียน!V36,IF(ข้อมูลพื้นฐาน!$I$19="ม.3-1",รายชื่อนักเรียน!AB36,IF(ข้อมูลพื้นฐาน!$I$19="ม.3-2",รายชื่อนักเรียน!AH36,IF(ข้อมูลพื้นฐาน!$I$19="ม.4-1",รายชื่อนักเรียน!AN36,IF(ข้อมูลพื้นฐาน!$I$19="ม.5-1",รายชื่อนักเรียน!AT36,IF(ข้อมูลพื้นฐาน!$I$19="ม.6-1",รายชื่อนักเรียน!AZ36,IF(ข้อมูลพื้นฐาน!$I$19="ม.0-0",รายชื่อนักเรียน!BF36))))))))))) ->  | H38: =IF(E38="","",ข้อมูลพื้นฐาน!$I$19) ->  | K38: 0 | L38: 0
B39: 31 | D39: =IF(ข้อมูลพื้นฐาน!$I$19="","",IF(ข้อมูลพื้นฐาน!$I$19="ม.1-1",รายชื่อนักเรียน!C37,IF(ข้อมูลพื้นฐาน!$I$19="ม.1-2",รายชื่อนักเรียน!I37,IF(ข้อมูลพื้นฐาน!$I$19="ม.2-1",รายชื่อนักเรียน!O37,IF(ข้อมูลพื้นฐาน!$I$19="ม.2-2",รายชื่อนักเรียน!U37,IF(ข้อมูลพื้นฐาน!$I$19="ม.3-1",รายชื่อนักเรียน!AA37,IF(ข้อมูลพื้นฐาน!$I$19="ม.3-2",รายชื่อนักเรียน!AG37,IF(ข้อมูลพื้นฐาน!$I$19="ม.4-1",รายชื่อนักเรียน!AM37,IF(ข้อมูลพื้นฐาน!$I$19="ม.5-1",รายชื่อนักเรียน!AS37,IF(ข้อมูลพื้นฐาน!$I$19="ม.6-1",รายชื่อนักเรียน!AY37,IF(ข้อมูลพื้นฐาน!$I$19="ม.0-0",รายชื่อนักเรียน!BE37))))))))))) ->  | F39: =IF(ข้อมูลพื้นฐาน!$I$19="","",IF(ข้อมูลพื้นฐาน!$I$19="ม.1-1",รายชื่อนักเรียน!D37,IF(ข้อมูลพื้นฐาน!$I$19="ม.1-2",รายชื่อนักเรียน!J37,IF(ข้อมูลพื้นฐาน!$I$19="ม.2-1",รายชื่อนักเรียน!P37,IF(ข้อมูลพื้นฐาน!$I$19="ม.2-2",รายชื่อนักเรียน!V37,IF(ข้อมูลพื้นฐาน!$I$19="ม.3-1",รายชื่อนักเรียน!AB37,IF(ข้อมูลพื้นฐาน!$I$19="ม.3-2",รายชื่อนักเรียน!AH37,IF(ข้อมูลพื้นฐาน!$I$19="ม.4-1",รายชื่อนักเรียน!AN37,IF(ข้อมูลพื้นฐาน!$I$19="ม.5-1",รายชื่อนักเรียน!AT37,IF(ข้อมูลพื้นฐาน!$I$19="ม.6-1",รายชื่อนักเรียน!AZ37,IF(ข้อมูลพื้นฐาน!$I$19="ม.0-0",รายชื่อนักเรียน!BF37))))))))))) ->  | H39: =IF(E39="","",ข้อมูลพื้นฐาน!$I$19) ->  | K39: 0 | L39: 0
B40: 32 | D40: =IF(ข้อมูลพื้นฐาน!$I$19="","",IF(ข้อมูลพื้นฐาน!$I$19="ม.1-1",รายชื่อนักเรียน!C38,IF(ข้อมูลพื้นฐาน!$I$19="ม.1-2",รายชื่อนักเรียน!I38,IF(ข้อมูลพื้นฐาน!$I$19="ม.2-1",รายชื่อนักเรียน!O38,IF(ข้อมูลพื้นฐาน!$I$19="ม.2-2",รายชื่อนักเรียน!U38,IF(ข้อมูลพื้นฐาน!$I$19="ม.3-1",รายชื่อนักเรียน!AA38,IF(ข้อมูลพื้นฐาน!$I$19="ม.3-2",รายชื่อนักเรียน!AG38,IF(ข้อมูลพื้นฐาน!$I$19="ม.4-1",รายชื่อนักเรียน!AM38,IF(ข้อมูลพื้นฐาน!$I$19="ม.5-1",รายชื่อนักเรียน!AS38,IF(ข้อมูลพื้นฐาน!$I$19="ม.6-1",รายชื่อนักเรียน!AY38,IF(ข้อมูลพื้นฐาน!$I$19="ม.0-0",รายชื่อนักเรียน!BE38))))))))))) ->  | F40: =IF(ข้อมูลพื้นฐาน!$I$19="","",IF(ข้อมูลพื้นฐาน!$I$19="ม.1-1",รายชื่อนักเรียน!D38,IF(ข้อมูลพื้นฐาน!$I$19="ม.1-2",รายชื่อนักเรียน!J38,IF(ข้อมูลพื้นฐาน!$I$19="ม.2-1",รายชื่อนักเรียน!P38,IF(ข้อมูลพื้นฐาน!$I$19="ม.2-2",รายชื่อนักเรียน!V38,IF(ข้อมูลพื้นฐาน!$I$19="ม.3-1",รายชื่อนักเรียน!AB38,IF(ข้อมูลพื้นฐาน!$I$19="ม.3-2",รายชื่อนักเรียน!AH38,IF(ข้อมูลพื้นฐาน!$I$19="ม.4-1",รายชื่อนักเรียน!AN38,IF(ข้อมูลพื้นฐาน!$I$19="ม.5-1",รายชื่อนักเรียน!AT38,IF(ข้อมูลพื้นฐาน!$I$19="ม.6-1",รายชื่อนักเรียน!AZ38,IF(ข้อมูลพื้นฐาน!$I$19="ม.0-0",รายชื่อนักเรียน!BF38))))))))))) ->  | H40: =IF(E40="","",ข้อมูลพื้นฐาน!$I$19) ->  | K40: 0 | L40: 0
B41: 33 | D41: =IF(ข้อมูลพื้นฐาน!$I$19="","",IF(ข้อมูลพื้นฐาน!$I$19="ม.1-1",รายชื่อนักเรียน!C39,IF(ข้อมูลพื้นฐาน!$I$19="ม.1-2",รายชื่อนักเรียน!I39,IF(ข้อมูลพื้นฐาน!$I$19="ม.2-1",รายชื่อนักเรียน!O39,IF(ข้อมูลพื้นฐาน!$I$19="ม.2-2",รายชื่อนักเรียน!U39,IF(ข้อมูลพื้นฐาน!$I$19="ม.3-1",รายชื่อนักเรียน!AA39,IF(ข้อมูลพื้นฐาน!$I$19="ม.3-2",รายชื่อนักเรียน!AG39,IF(ข้อมูลพื้นฐาน!$I$19="ม.4-1",รายชื่อนักเรียน!AM39,IF(ข้อมูลพื้นฐาน!$I$19="ม.5-1",รายชื่อนักเรียน!AS39,IF(ข้อมูลพื้นฐาน!$I$19="ม.6-1",รายชื่อนักเรียน!AY39,IF(ข้อมูลพื้นฐาน!$I$19="ม.0-0",รายชื่อนักเรียน!BE39))))))))))) ->  | F41: =IF(ข้อมูลพื้นฐาน!$I$19="","",IF(ข้อมูลพื้นฐาน!$I$19="ม.1-1",รายชื่อนักเรียน!D39,IF(ข้อมูลพื้นฐาน!$I$19="ม.1-2",รายชื่อนักเรียน!J39,IF(ข้อมูลพื้นฐาน!$I$19="ม.2-1",รายชื่อนักเรียน!P39,IF(ข้อมูลพื้นฐาน!$I$19="ม.2-2",รายชื่อนักเรียน!V39,IF(ข้อมูลพื้นฐาน!$I$19="ม.3-1",รายชื่อนักเรียน!AB39,IF(ข้อมูลพื้นฐาน!$I$19="ม.3-2",รายชื่อนักเรียน!AH39,IF(ข้อมูลพื้นฐาน!$I$19="ม.4-1",รายชื่อนักเรียน!AN39,IF(ข้อมูลพื้นฐาน!$I$19="ม.5-1",รายชื่อนักเรียน!AT39,IF(ข้อมูลพื้นฐาน!$I$19="ม.6-1",รายชื่อนักเรียน!AZ39,IF(ข้อมูลพื้นฐาน!$I$19="ม.0-0",รายชื่อนักเรียน!BF39))))))))))) ->  | H41: =IF(E41="","",ข้อมูลพื้นฐาน!$I$19) ->  | K41: 0 | L41: 0
B42: 34 | D42: =IF(ข้อมูลพื้นฐาน!$I$19="","",IF(ข้อมูลพื้นฐาน!$I$19="ม.1-1",รายชื่อนักเรียน!C40,IF(ข้อมูลพื้นฐาน!$I$19="ม.1-2",รายชื่อนักเรียน!I40,IF(ข้อมูลพื้นฐาน!$I$19="ม.2-1",รายชื่อนักเรียน!O40,IF(ข้อมูลพื้นฐาน!$I$19="ม.2-2",รายชื่อนักเรียน!U40,IF(ข้อมูลพื้นฐาน!$I$19="ม.3-1",รายชื่อนักเรียน!AA40,IF(ข้อมูลพื้นฐาน!$I$19="ม.3-2",รายชื่อนักเรียน!AG40,IF(ข้อมูลพื้นฐาน!$I$19="ม.4-1",รายชื่อนักเรียน!AM40,IF(ข้อมูลพื้นฐาน!$I$19="ม.5-1",รายชื่อนักเรียน!AS40,IF(ข้อมูลพื้นฐาน!$I$19="ม.6-1",รายชื่อนักเรียน!AY40,IF(ข้อมูลพื้นฐาน!$I$19="ม.0-0",รายชื่อนักเรียน!BE40))))))))))) ->  | F42: =IF(ข้อมูลพื้นฐาน!$I$19="","",IF(ข้อมูลพื้นฐาน!$I$19="ม.1-1",รายชื่อนักเรียน!D40,IF(ข้อมูลพื้นฐาน!$I$19="ม.1-2",รายชื่อนักเรียน!J40,IF(ข้อมูลพื้นฐาน!$I$19="ม.2-1",รายชื่อนักเรียน!P40,IF(ข้อมูลพื้นฐาน!$I$19="ม.2-2",รายชื่อนักเรียน!V40,IF(ข้อมูลพื้นฐาน!$I$19="ม.3-1",รายชื่อนักเรียน!AB40,IF(ข้อมูลพื้นฐาน!$I$19="ม.3-2",รายชื่อนักเรียน!AH40,IF(ข้อมูลพื้นฐาน!$I$19="ม.4-1",รายชื่อนักเรียน!AN40,IF(ข้อมูลพื้นฐาน!$I$19="ม.5-1",รายชื่อนักเรียน!AT40,IF(ข้อมูลพื้นฐาน!$I$19="ม.6-1",รายชื่อนักเรียน!AZ40,IF(ข้อมูลพื้นฐาน!$I$19="ม.0-0",รายชื่อนักเรียน!BF40))))))))))) ->  | H42: =IF(E42="","",ข้อมูลพื้นฐาน!$I$19) ->  | K42: 0 | L42: 0
B43: 35 | D43: =IF(ข้อมูลพื้นฐาน!$I$19="","",IF(ข้อมูลพื้นฐาน!$I$19="ม.1-1",รายชื่อนักเรียน!C41,IF(ข้อมูลพื้นฐาน!$I$19="ม.1-2",รายชื่อนักเรียน!I41,IF(ข้อมูลพื้นฐาน!$I$19="ม.2-1",รายชื่อนักเรียน!O41,IF(ข้อมูลพื้นฐาน!$I$19="ม.2-2",รายชื่อนักเรียน!U41,IF(ข้อมูลพื้นฐาน!$I$19="ม.3-1",รายชื่อนักเรียน!AA41,IF(ข้อมูลพื้นฐาน!$I$19="ม.3-2",รายชื่อนักเรียน!AG41,IF(ข้อมูลพื้นฐาน!$I$19="ม.4-1",รายชื่อนักเรียน!AM41,IF(ข้อมูลพื้นฐาน!$I$19="ม.5-1",รายชื่อนักเรียน!AS41,IF(ข้อมูลพื้นฐาน!$I$19="ม.6-1",รายชื่อนักเรียน!AY41,IF(ข้อมูลพื้นฐาน!$I$19="ม.0-0",รายชื่อนักเรียน!BE41))))))))))) ->  | F43: =IF(ข้อมูลพื้นฐาน!$I$19="","",IF(ข้อมูลพื้นฐาน!$I$19="ม.1-1",รายชื่อนักเรียน!D41,IF(ข้อมูลพื้นฐาน!$I$19="ม.1-2",รายชื่อนักเรียน!J41,IF(ข้อมูลพื้นฐาน!$I$19="ม.2-1",รายชื่อนักเรียน!P41,IF(ข้อมูลพื้นฐาน!$I$19="ม.2-2",รายชื่อนักเรียน!V41,IF(ข้อมูลพื้นฐาน!$I$19="ม.3-1",รายชื่อนักเรียน!AB41,IF(ข้อมูลพื้นฐาน!$I$19="ม.3-2",รายชื่อนักเรียน!AH41,IF(ข้อมูลพื้นฐาน!$I$19="ม.4-1",รายชื่อนักเรียน!AN41,IF(ข้อมูลพื้นฐาน!$I$19="ม.5-1",รายชื่อนักเรียน!AT41,IF(ข้อมูลพื้นฐาน!$I$19="ม.6-1",รายชื่อนักเรียน!AZ41,IF(ข้อมูลพื้นฐาน!$I$19="ม.0-0",รายชื่อนักเรียน!BF41))))))))))) ->  | H43: =IF(E43="","",ข้อมูลพื้นฐาน!$I$19) ->  | K43: 0 | L43: 0
B44: 36 | D44: =IF(ข้อมูลพื้นฐาน!$I$19="","",IF(ข้อมูลพื้นฐาน!$I$19="ม.1-1",รายชื่อนักเรียน!C42,IF(ข้อมูลพื้นฐาน!$I$19="ม.1-2",รายชื่อนักเรียน!I42,IF(ข้อมูลพื้นฐาน!$I$19="ม.2-1",รายชื่อนักเรียน!O42,IF(ข้อมูลพื้นฐาน!$I$19="ม.2-2",รายชื่อนักเรียน!U42,IF(ข้อมูลพื้นฐาน!$I$19="ม.3-1",รายชื่อนักเรียน!AA42,IF(ข้อมูลพื้นฐาน!$I$19="ม.3-2",รายชื่อนักเรียน!AG42,IF(ข้อมูลพื้นฐาน!$I$19="ม.4-1",รายชื่อนักเรียน!AM42,IF(ข้อมูลพื้นฐาน!$I$19="ม.5-1",รายชื่อนักเรียน!AS42,IF(ข้อมูลพื้นฐาน!$I$19="ม.6-1",รายชื่อนักเรียน!AY42,IF(ข้อมูลพื้นฐาน!$I$19="ม.0-0",รายชื่อนักเรียน!BE42))))))))))) ->  | F44: =IF(ข้อมูลพื้นฐาน!$I$19="","",IF(ข้อมูลพื้นฐาน!$I$19="ม.1-1",รายชื่อนักเรียน!D42,IF(ข้อมูลพื้นฐาน!$I$19="ม.1-2",รายชื่อนักเรียน!J42,IF(ข้อมูลพื้นฐาน!$I$19="ม.2-1",รายชื่อนักเรียน!P42,IF(ข้อมูลพื้นฐาน!$I$19="ม.2-2",รายชื่อนักเรียน!V42,IF(ข้อมูลพื้นฐาน!$I$19="ม.3-1",รายชื่อนักเรียน!AB42,IF(ข้อมูลพื้นฐาน!$I$19="ม.3-2",รายชื่อนักเรียน!AH42,IF(ข้อมูลพื้นฐาน!$I$19="ม.4-1",รายชื่อนักเรียน!AN42,IF(ข้อมูลพื้นฐาน!$I$19="ม.5-1",รายชื่อนักเรียน!AT42,IF(ข้อมูลพื้นฐาน!$I$19="ม.6-1",รายชื่อนักเรียน!AZ42,IF(ข้อมูลพื้นฐาน!$I$19="ม.0-0",รายชื่อนักเรียน!BF42))))))))))) ->  | H44: =IF(E44="","",ข้อมูลพื้นฐาน!$I$19) ->  | K44: 0 | L44: 0
B45: 37 | D45: =IF(ข้อมูลพื้นฐาน!$I$19="","",IF(ข้อมูลพื้นฐาน!$I$19="ม.1-1",รายชื่อนักเรียน!C43,IF(ข้อมูลพื้นฐาน!$I$19="ม.1-2",รายชื่อนักเรียน!I43,IF(ข้อมูลพื้นฐาน!$I$19="ม.2-1",รายชื่อนักเรียน!O43,IF(ข้อมูลพื้นฐาน!$I$19="ม.2-2",รายชื่อนักเรียน!U43,IF(ข้อมูลพื้นฐาน!$I$19="ม.3-1",รายชื่อนักเรียน!AA43,IF(ข้อมูลพื้นฐาน!$I$19="ม.3-2",รายชื่อนักเรียน!AG43,IF(ข้อมูลพื้นฐาน!$I$19="ม.4-1",รายชื่อนักเรียน!AM43,IF(ข้อมูลพื้นฐาน!$I$19="ม.5-1",รายชื่อนักเรียน!AS43,IF(ข้อมูลพื้นฐาน!$I$19="ม.6-1",รายชื่อนักเรียน!AY43,IF(ข้อมูลพื้นฐาน!$I$19="ม.0-0",รายชื่อนักเรียน!BE43))))))))))) ->  | F45: =IF(ข้อมูลพื้นฐาน!$I$19="","",IF(ข้อมูลพื้นฐาน!$I$19="ม.1-1",รายชื่อนักเรียน!D43,IF(ข้อมูลพื้นฐาน!$I$19="ม.1-2",รายชื่อนักเรียน!J43,IF(ข้อมูลพื้นฐาน!$I$19="ม.2-1",รายชื่อนักเรียน!P43,IF(ข้อมูลพื้นฐาน!$I$19="ม.2-2",รายชื่อนักเรียน!V43,IF(ข้อมูลพื้นฐาน!$I$19="ม.3-1",รายชื่อนักเรียน!AB43,IF(ข้อมูลพื้นฐาน!$I$19="ม.3-2",รายชื่อนักเรียน!AH43,IF(ข้อมูลพื้นฐาน!$I$19="ม.4-1",รายชื่อนักเรียน!AN43,IF(ข้อมูลพื้นฐาน!$I$19="ม.5-1",รายชื่อนักเรียน!AT43,IF(ข้อมูลพื้นฐาน!$I$19="ม.6-1",รายชื่อนักเรียน!AZ43,IF(ข้อมูลพื้นฐาน!$I$19="ม.0-0",รายชื่อนักเรียน!BF43))))))))))) ->  | H45: =IF(E45="","",ข้อมูลพื้นฐาน!$I$19) ->  | K45: 0 | L45: 0
B46: 38 | D46: =IF(ข้อมูลพื้นฐาน!$I$19="","",IF(ข้อมูลพื้นฐาน!$I$19="ม.1-1",รายชื่อนักเรียน!C44,IF(ข้อมูลพื้นฐาน!$I$19="ม.1-2",รายชื่อนักเรียน!I44,IF(ข้อมูลพื้นฐาน!$I$19="ม.2-1",รายชื่อนักเรียน!O44,IF(ข้อมูลพื้นฐาน!$I$19="ม.2-2",รายชื่อนักเรียน!U44,IF(ข้อมูลพื้นฐาน!$I$19="ม.3-1",รายชื่อนักเรียน!AA44,IF(ข้อมูลพื้นฐาน!$I$19="ม.3-2",รายชื่อนักเรียน!AG44,IF(ข้อมูลพื้นฐาน!$I$19="ม.4-1",รายชื่อนักเรียน!AM44,IF(ข้อมูลพื้นฐาน!$I$19="ม.5-1",รายชื่อนักเรียน!AS44,IF(ข้อมูลพื้นฐาน!$I$19="ม.6-1",รายชื่อนักเรียน!AY44,IF(ข้อมูลพื้นฐาน!$I$19="ม.0-0",รายชื่อนักเรียน!BE44))))))))))) ->  | F46: =IF(ข้อมูลพื้นฐาน!$I$19="","",IF(ข้อมูลพื้นฐาน!$I$19="ม.1-1",รายชื่อนักเรียน!D44,IF(ข้อมูลพื้นฐาน!$I$19="ม.1-2",รายชื่อนักเรียน!J44,IF(ข้อมูลพื้นฐาน!$I$19="ม.2-1",รายชื่อนักเรียน!P44,IF(ข้อมูลพื้นฐาน!$I$19="ม.2-2",รายชื่อนักเรียน!V44,IF(ข้อมูลพื้นฐาน!$I$19="ม.3-1",รายชื่อนักเรียน!AB44,IF(ข้อมูลพื้นฐาน!$I$19="ม.3-2",รายชื่อนักเรียน!AH44,IF(ข้อมูลพื้นฐาน!$I$19="ม.4-1",รายชื่อนักเรียน!AN44,IF(ข้อมูลพื้นฐาน!$I$19="ม.5-1",รายชื่อนักเรียน!AT44,IF(ข้อมูลพื้นฐาน!$I$19="ม.6-1",รายชื่อนักเรียน!AZ44,IF(ข้อมูลพื้นฐาน!$I$19="ม.0-0",รายชื่อนักเรียน!BF44))))))))))) ->  | H46: =IF(E46="","",ข้อมูลพื้นฐาน!$I$19) ->  | K46: 0 | L46: 0
B47: 39 | D47: =IF(ข้อมูลพื้นฐาน!$I$19="","",IF(ข้อมูลพื้นฐาน!$I$19="ม.1-1",รายชื่อนักเรียน!C45,IF(ข้อมูลพื้นฐาน!$I$19="ม.1-2",รายชื่อนักเรียน!I45,IF(ข้อมูลพื้นฐาน!$I$19="ม.2-1",รายชื่อนักเรียน!O45,IF(ข้อมูลพื้นฐาน!$I$19="ม.2-2",รายชื่อนักเรียน!U45,IF(ข้อมูลพื้นฐาน!$I$19="ม.3-1",รายชื่อนักเรียน!AA45,IF(ข้อมูลพื้นฐาน!$I$19="ม.3-2",รายชื่อนักเรียน!AG45,IF(ข้อมูลพื้นฐาน!$I$19="ม.4-1",รายชื่อนักเรียน!AM45,IF(ข้อมูลพื้นฐาน!$I$19="ม.5-1",รายชื่อนักเรียน!AS45,IF(ข้อมูลพื้นฐาน!$I$19="ม.6-1",รายชื่อนักเรียน!AY45,IF(ข้อมูลพื้นฐาน!$I$19="ม.0-0",รายชื่อนักเรียน!BE45))))))))))) ->  | F47: =IF(ข้อมูลพื้นฐาน!$I$19="","",IF(ข้อมูลพื้นฐาน!$I$19="ม.1-1",รายชื่อนักเรียน!D45,IF(ข้อมูลพื้นฐาน!$I$19="ม.1-2",รายชื่อนักเรียน!J45,IF(ข้อมูลพื้นฐาน!$I$19="ม.2-1",รายชื่อนักเรียน!P45,IF(ข้อมูลพื้นฐาน!$I$19="ม.2-2",รายชื่อนักเรียน!V45,IF(ข้อมูลพื้นฐาน!$I$19="ม.3-1",รายชื่อนักเรียน!AB45,IF(ข้อมูลพื้นฐาน!$I$19="ม.3-2",รายชื่อนักเรียน!AH45,IF(ข้อมูลพื้นฐาน!$I$19="ม.4-1",รายชื่อนักเรียน!AN45,IF(ข้อมูลพื้นฐาน!$I$19="ม.5-1",รายชื่อนักเรียน!AT45,IF(ข้อมูลพื้นฐาน!$I$19="ม.6-1",รายชื่อนักเรียน!AZ45,IF(ข้อมูลพื้นฐาน!$I$19="ม.0-0",รายชื่อนักเรียน!BF45))))))))))) ->  | H47: =IF(E47="","",ข้อมูลพื้นฐาน!$I$19) ->  | K47: 0 | L47: 0
B48: 40 | D48: =IF(ข้อมูลพื้นฐาน!$I$19="","",IF(ข้อมูลพื้นฐาน!$I$19="ม.1-1",รายชื่อนักเรียน!C46,IF(ข้อมูลพื้นฐาน!$I$19="ม.1-2",รายชื่อนักเรียน!I46,IF(ข้อมูลพื้นฐาน!$I$19="ม.2-1",รายชื่อนักเรียน!O46,IF(ข้อมูลพื้นฐาน!$I$19="ม.2-2",รายชื่อนักเรียน!U46,IF(ข้อมูลพื้นฐาน!$I$19="ม.3-1",รายชื่อนักเรียน!AA46,IF(ข้อมูลพื้นฐาน!$I$19="ม.3-2",รายชื่อนักเรียน!AG46,IF(ข้อมูลพื้นฐาน!$I$19="ม.4-1",รายชื่อนักเรียน!AM46,IF(ข้อมูลพื้นฐาน!$I$19="ม.5-1",รายชื่อนักเรียน!AS46,IF(ข้อมูลพื้นฐาน!$I$19="ม.6-1",รายชื่อนักเรียน!AY46,IF(ข้อมูลพื้นฐาน!$I$19="ม.0-0",รายชื่อนักเรียน!BE46))))))))))) ->  | F48: =IF(ข้อมูลพื้นฐาน!$I$19="","",IF(ข้อมูลพื้นฐาน!$I$19="ม.1-1",รายชื่อนักเรียน!D46,IF(ข้อมูลพื้นฐาน!$I$19="ม.1-2",รายชื่อนักเรียน!J46,IF(ข้อมูลพื้นฐาน!$I$19="ม.2-1",รายชื่อนักเรียน!P46,IF(ข้อมูลพื้นฐาน!$I$19="ม.2-2",รายชื่อนักเรียน!V46,IF(ข้อมูลพื้นฐาน!$I$19="ม.3-1",รายชื่อนักเรียน!AB46,IF(ข้อมูลพื้นฐาน!$I$19="ม.3-2",รายชื่อนักเรียน!AH46,IF(ข้อมูลพื้นฐาน!$I$19="ม.4-1",รายชื่อนักเรียน!AN46,IF(ข้อมูลพื้นฐาน!$I$19="ม.5-1",รายชื่อนักเรียน!AT46,IF(ข้อมูลพื้นฐาน!$I$19="ม.6-1",รายชื่อนักเรียน!AZ46,IF(ข้อมูลพื้นฐาน!$I$19="ม.0-0",รายชื่อนักเรียน!BF46))))))))))) ->  | H48: =IF(E48="","",ข้อมูลพื้นฐาน!$I$19) ->  | K48: 0 | L48: 0
B49: 41 | D49: =IF(ข้อมูลพื้นฐาน!$I$19="","",IF(ข้อมูลพื้นฐาน!$I$19="ม.1-1",รายชื่อนักเรียน!C47,IF(ข้อมูลพื้นฐาน!$I$19="ม.1-2",รายชื่อนักเรียน!I47,IF(ข้อมูลพื้นฐาน!$I$19="ม.2-1",รายชื่อนักเรียน!O47,IF(ข้อมูลพื้นฐาน!$I$19="ม.2-2",รายชื่อนักเรียน!U47,IF(ข้อมูลพื้นฐาน!$I$19="ม.3-1",รายชื่อนักเรียน!AA47,IF(ข้อมูลพื้นฐาน!$I$19="ม.3-2",รายชื่อนักเรียน!AG47,IF(ข้อมูลพื้นฐาน!$I$19="ม.4-1",รายชื่อนักเรียน!AM47,IF(ข้อมูลพื้นฐาน!$I$19="ม.5-1",รายชื่อนักเรียน!AS47,IF(ข้อมูลพื้นฐาน!$I$19="ม.6-1",รายชื่อนักเรียน!AY47,IF(ข้อมูลพื้นฐาน!$I$19="ม.0-0",รายชื่อนักเรียน!BE47))))))))))) ->  | F49: =IF(ข้อมูลพื้นฐาน!$I$19="","",IF(ข้อมูลพื้นฐาน!$I$19="ม.1-1",รายชื่อนักเรียน!D47,IF(ข้อมูลพื้นฐาน!$I$19="ม.1-2",รายชื่อนักเรียน!J47,IF(ข้อมูลพื้นฐาน!$I$19="ม.2-1",รายชื่อนักเรียน!P47,IF(ข้อมูลพื้นฐาน!$I$19="ม.2-2",รายชื่อนักเรียน!V47,IF(ข้อมูลพื้นฐาน!$I$19="ม.3-1",รายชื่อนักเรียน!AB47,IF(ข้อมูลพื้นฐาน!$I$19="ม.3-2",รายชื่อนักเรียน!AH47,IF(ข้อมูลพื้นฐาน!$I$19="ม.4-1",รายชื่อนักเรียน!AN47,IF(ข้อมูลพื้นฐาน!$I$19="ม.5-1",รายชื่อนักเรียน!AT47,IF(ข้อมูลพื้นฐาน!$I$19="ม.6-1",รายชื่อนักเรียน!AZ47,IF(ข้อมูลพื้นฐาน!$I$19="ม.0-0",รายชื่อนักเรียน!BF47))))))))))) ->  | H49: =IF(E49="","",ข้อมูลพื้นฐาน!$I$19) ->  | K49: 0 | L49: 0
B50: 42 | D50: =IF(ข้อมูลพื้นฐาน!$I$19="","",IF(ข้อมูลพื้นฐาน!$I$19="ม.1-1",รายชื่อนักเรียน!C48,IF(ข้อมูลพื้นฐาน!$I$19="ม.1-2",รายชื่อนักเรียน!I48,IF(ข้อมูลพื้นฐาน!$I$19="ม.2-1",รายชื่อนักเรียน!O48,IF(ข้อมูลพื้นฐาน!$I$19="ม.2-2",รายชื่อนักเรียน!U48,IF(ข้อมูลพื้นฐาน!$I$19="ม.3-1",รายชื่อนักเรียน!AA48,IF(ข้อมูลพื้นฐาน!$I$19="ม.3-2",รายชื่อนักเรียน!AG48,IF(ข้อมูลพื้นฐาน!$I$19="ม.4-1",รายชื่อนักเรียน!AM48,IF(ข้อมูลพื้นฐาน!$I$19="ม.5-1",รายชื่อนักเรียน!AS48,IF(ข้อมูลพื้นฐาน!$I$19="ม.6-1",รายชื่อนักเรียน!AY48,IF(ข้อมูลพื้นฐาน!$I$19="ม.0-0",รายชื่อนักเรียน!BE48))))))))))) ->  | F50: =IF(ข้อมูลพื้นฐาน!$I$19="","",IF(ข้อมูลพื้นฐาน!$I$19="ม.1-1",รายชื่อนักเรียน!D48,IF(ข้อมูลพื้นฐาน!$I$19="ม.1-2",รายชื่อนักเรียน!J48,IF(ข้อมูลพื้นฐาน!$I$19="ม.2-1",รายชื่อนักเรียน!P48,IF(ข้อมูลพื้นฐาน!$I$19="ม.2-2",รายชื่อนักเรียน!V48,IF(ข้อมูลพื้นฐาน!$I$19="ม.3-1",รายชื่อนักเรียน!AB48,IF(ข้อมูลพื้นฐาน!$I$19="ม.3-2",รายชื่อนักเรียน!AH48,IF(ข้อมูลพื้นฐาน!$I$19="ม.4-1",รายชื่อนักเรียน!AN48,IF(ข้อมูลพื้นฐาน!$I$19="ม.5-1",รายชื่อนักเรียน!AT48,IF(ข้อมูลพื้นฐาน!$I$19="ม.6-1",รายชื่อนักเรียน!AZ48,IF(ข้อมูลพื้นฐาน!$I$19="ม.0-0",รายชื่อนักเรียน!BF48))))))))))) ->  | H50: =IF(E50="","",ข้อมูลพื้นฐาน!$I$19) ->  | K50: 0 | L50: 0
B51: 43 | D51: =IF(ข้อมูลพื้นฐาน!$I$19="","",IF(ข้อมูลพื้นฐาน!$I$19="ม.1-1",รายชื่อนักเรียน!C49,IF(ข้อมูลพื้นฐาน!$I$19="ม.1-2",รายชื่อนักเรียน!I49,IF(ข้อมูลพื้นฐาน!$I$19="ม.2-1",รายชื่อนักเรียน!O49,IF(ข้อมูลพื้นฐาน!$I$19="ม.2-2",รายชื่อนักเรียน!U49,IF(ข้อมูลพื้นฐาน!$I$19="ม.3-1",รายชื่อนักเรียน!AA49,IF(ข้อมูลพื้นฐาน!$I$19="ม.3-2",รายชื่อนักเรียน!AG49,IF(ข้อมูลพื้นฐาน!$I$19="ม.4-1",รายชื่อนักเรียน!AM49,IF(ข้อมูลพื้นฐาน!$I$19="ม.5-1",รายชื่อนักเรียน!AS49,IF(ข้อมูลพื้นฐาน!$I$19="ม.6-1",รายชื่อนักเรียน!AY49,IF(ข้อมูลพื้นฐาน!$I$19="ม.0-0",รายชื่อนักเรียน!BE49))))))))))) ->  | F51: =IF(ข้อมูลพื้นฐาน!$I$19="","",IF(ข้อมูลพื้นฐาน!$I$19="ม.1-1",รายชื่อนักเรียน!D49,IF(ข้อมูลพื้นฐาน!$I$19="ม.1-2",รายชื่อนักเรียน!J49,IF(ข้อมูลพื้นฐาน!$I$19="ม.2-1",รายชื่อนักเรียน!P49,IF(ข้อมูลพื้นฐาน!$I$19="ม.2-2",รายชื่อนักเรียน!V49,IF(ข้อมูลพื้นฐาน!$I$19="ม.3-1",รายชื่อนักเรียน!AB49,IF(ข้อมูลพื้นฐาน!$I$19="ม.3-2",รายชื่อนักเรียน!AH49,IF(ข้อมูลพื้นฐาน!$I$19="ม.4-1",รายชื่อนักเรียน!AN49,IF(ข้อมูลพื้นฐาน!$I$19="ม.5-1",รายชื่อนักเรียน!AT49,IF(ข้อมูลพื้นฐาน!$I$19="ม.6-1",รายชื่อนักเรียน!AZ49,IF(ข้อมูลพื้นฐาน!$I$19="ม.0-0",รายชื่อนักเรียน!BF49))))))))))) ->  | H51: =IF(E51="","",ข้อมูลพื้นฐาน!$I$19) ->  | K51: 0 | L51: 0
I58: สถานะนักเรียน
I59: ออก
I60: ย้าย

Sheet ปก
AC8: =IF(I16="","",IF(I16="มัธยมศึกษาปีที่ 1 - 6","ปพ.5",IF(I16="มัธยมศึกษาปีที่ 1","ปพ.5 : บ",IF(I16="มัธยมศึกษาปีที่ 2","ปพ.5 : บ",IF(I16="มัธยมศึกษาปีที่ 3","ปพ.5 : บ",IF(I16="มัธยมศึกษาปีที่ 4","ปพ.5 : พ",IF(I16="มัธยมศึกษาปีที่ 5","ปพ.5 : พ",IF(I16="มัธยมศึกษาปีที่ 6","ปพ.5 : พ",)))))))) -> 
C12: =IF(ข้อมูลพื้นฐาน!E5="","","โรงเรียน"&ข้อมูลพื้นฐาน!E5) -> โรงเรียนสมเสม็ดวิทยา
C13: =IF(ข้อมูลพื้นฐาน!E6="","",ข้อมูลพื้นฐาน!E6) -> สำนักงานเขตพื้นที่การศึกษามัธยมศึกษา เขต 32
C14: =IF(C13="","","แบบบันทึกผลการเรียนประจำรายวิชา") -> แบบบันทึกผลการเรียนประจำรายวิชา
D16: ระดับชั้น | I16: =IF(ข้อมูลพื้นฐาน!E19="","",ข้อมูลพื้นฐาน!E19) ->  | P16: ห้อง | R16: =IF(ข้อมูลพื้นฐาน!H19="","",ข้อมูลพื้นฐาน!H19) ->  | U16: ปีการศึกษา | X16: =IF(ข้อมูลพื้นฐาน!G13="","",ข้อมูลพื้นฐาน!G13) ->  | AB16: ภาคเรียนที่ | AE16: =IF(ข้อมูลพื้นฐาน!E13="","",ข้อมูลพื้นฐาน!E13) -> 
D17: กลุ่มสาระการเรียนรู้ | J17: =IF(ข้อมูลพื้นฐาน!E14="","",ข้อมูลพื้นฐาน!E14) -> 
D18: รายวิชา | J18: =IF(ข้อมูลพื้นฐาน!G12="","",ข้อมูลพื้นฐาน!G12) ->  | W18: รหัสวิชา | Z18: =IF(ข้อมูลพื้นฐาน!E12="","",ข้อมูลพื้นฐาน!E12) -> 
D19: ลักษณะวิชา | J19: =IF(ข้อมูลพื้นฐาน!K14="","",ข้อมูลพื้นฐาน!K14) ->  | P19: เวลาเรียน | S19: =IF(ข้อมูลพื้นฐาน!M13="","",ข้อมูลพื้นฐาน!M13/20) ->  | W19: ชั่วโมง/สัปดาห์ | AA19: =IF(ข้อมูลพื้นฐาน!M13="","",ข้อมูลพื้นฐาน!M13/40) ->  | AE19: หน่วย
D20: ครูผู้สอน | J20: =IF(ข้อมูลพื้นฐาน!E15="","",ข้อมูลพื้นฐาน!E15) -> 
D21: ครูที่ปรึกษา | G21: 1) | I21: =IF(ข้อมูลพื้นฐาน!E20="","",ข้อมูลพื้นฐาน!E20) ->  | T21: 2) | U21: =IF(ข้อมูลพื้นฐาน!E21="","",ข้อมูลพื้นฐาน!E21) -> 
D22: สรุปผลการประเมิน | T22: 3) | U22: =IF(ข้อมูลพื้นฐาน!E22="","",ข้อมูลพื้นฐาน!E22) -> 
D24: จำนวน นักเรียน | G24: ระดับผลการเรียน | W24: ผลการประเมิน
D25: =IF(I16="","",SUM(ลงทะเบียน!K9:L51)) ->  | G25: 4 | I25: 3.5 | K25: 3 | M25: 2.5 | O25: 2 | Q25: 1.5 | S25: 1 | U25: 0 | W25: ร | Y25: มส | AA25: มก | AC25: ผ | AE25: มผ
G26: =IF(J19="กิจกรรมพัฒนาผู้เรียน","",IF(บันทักคะแนน!$CI$9="","",COUNTIF(บันทักคะแนน!CJ10:CJ52,4))) ->  | I26: =IF(J19="กิจกรรมพัฒนาผู้เรียน","",IF(บันทักคะแนน!$CI$9="","",COUNTIF(บันทักคะแนน!CJ10:CJ52,3.5))) ->  | K26: =IF(J19="กิจกรรมพัฒนาผู้เรียน","",IF(บันทักคะแนน!$CI$9="","",COUNTIF(บันทักคะแนน!CJ10:CJ52,3))) ->  | M26: =IF(J19="กิจกรรมพัฒนาผู้เรียน","",IF(บันทักคะแนน!$CI$9="","",COUNTIF(บันทักคะแนน!CJ10:CJ52,2.5))) ->  | O26: =IF(J19="กิจกรรมพัฒนาผู้เรียน","",IF(บันทักคะแนน!$CI$9="","",COUNTIF(บันทักคะแนน!CJ10:CJ52,2))) ->  | Q26: =IF(J19="กิจกรรมพัฒนาผู้เรียน","",IF(บันทักคะแนน!$CI$9="","",COUNTIF(บันทักคะแนน!CJ10:CJ52,1.5))) ->  | S26: =IF(J19="กิจกรรมพัฒนาผู้เรียน","",IF(บันทักคะแนน!$CI$9="","",COUNTIF(บันทักคะแนน!CJ10:CJ52,1))) ->  | U26: =IF(J19="กิจกรรมพัฒนาผู้เรียน","",IF(บันทักคะแนน!$CI$9="","",COUNTIF(บันทักคะแนน!CJ10:CJ52,0))) ->  | W26: =IF(บันทักคะแนน!$CI$9="","",COUNTIF(บันทักคะแนน!CJ10:CJ52,"ร")) ->  | Y26: =IF(บันทักคะแนน!$CI$9="","",COUNTIF(บันทักคะแนน!CJ10:CJ52,"มส.")) ->  | AA26: =IF(บันทักคะแนน!$CI$9="","",COUNTIF(บันทักคะแนน!CJ10:CJ52,"มก")) ->  | AC26: =IF(บันทักคะแนน!$CI$9="","",COUNTIF(บันทักคะแนน!CJ10:CJ52,"ผ")) ->  | AE26: =IF(บันทักคะแนน!$CI$9="","",COUNTIF(บันทักคะแนน!CJ10:CJ52,"มผ")) -> 
D27: คิดเป็นร้อยละ | G27: =IF(G26="","",SUM(G26/$D$25*100)) ->  | I27: =IF(I26="","",SUM(I26/$D$25*100)) ->  | K27: =IF(K26="","",SUM(K26/$D$25*100)) ->  | M27: =IF(M26="","",SUM(M26/$D$25*100)) ->  | O27: =IF(O26="","",SUM(O26/$D$25*100)) ->  | Q27: =IF(Q26="","",SUM(Q26/$D$25*100)) ->  | S27: =IF(S26="","",SUM(S26/$D$25*100)) ->  | U27: =IF(U26="","",SUM(U26/$D$25*100)) ->  | W27: =IF(W26="","",SUM(W26/$D$25*100)) ->  | Y27: =IF(Y26="","",SUM(Y26/$D$25*100)) ->  | AA27: =IF(AA26="","",SUM(AA26/$D$25*100)) ->  | AC27: =IF(AC26="","",SUM(AC26/$D$25*100)) ->  | AE27: =IF(AE26="","",SUM(AE26/$D$25*100)) -> 
F29: ผลการประเมินการอ่าน คิด วิเคราะห์ เขียน | S29: ผลการประเมินคุณลักษณะอันพึงประสงค์
F30: 3 = ดีเยี่ยม | I30: 2 = ดี | L30: 1 = ผ่าน | O30: 0 = ไม่ผ่าน | S30: 3 = ดีเยี่ยม | V30: 2 = ดี | Y30: 1 = ผ่าน | AB30: 0 = ไม่ผ่าน
F31: =IF(บันทักคะแนน!$CI$9="","",COUNTIF(บันทักคะแนน!CR10:CR52,3)) ->  | H31: คน | I31: =IF(บันทักคะแนน!$CI$9="","",COUNTIF(บันทักคะแนน!CR10:CR52,2)) ->  | K31: คน | L31: =IF(บันทักคะแนน!$CI$9="","",COUNTIF(บันทักคะแนน!CR10:CR52,1)) ->  | N31: คน | O31: =IF(บันทักคะแนน!$CI$9="","",COUNTIF(บันทักคะแนน!CR10:CR52,0)) ->  | Q31: คน | S31: =IF(บันทักคะแนน!$CI$9="","",COUNTIF(บันทักคะแนน!DB10:DB52,3)) ->  | U31: คน | V31: =IF(บันทักคะแนน!$CI$9="","",COUNTIF(บันทักคะแนน!DB10:DB52,2)) ->  | X31: คน | Y31: =IF(บันทักคะแนน!$CI$9="","",COUNTIF(บันทักคะแนน!DB10:DB52,1)) ->  | AA31: คน | AB31: =IF(บันทักคะแนน!$CI$9="","",COUNTIF(บันทักคะแนน!DB10:DB52,0)) ->  | AD31: คน
F32: =IF(F31="","",SUM(F31/$D$25*100)) ->  | H32: % | I32: =IF(I31="","",SUM(I31/$D$25*100)) ->  | K32: % | L32: =IF(L31="","",SUM(L31/$D$25*100)) ->  | N32: % | O32: =IF(O31="","",SUM(O31/$D$25*100)) ->  | Q32: % | S32: =IF(S31="","",SUM(S31/$D$25*100)) ->  | U32: % | V32: =IF(V31="","",SUM(V31/$D$25*100)) ->  | X32: % | Y32: =IF(Y31="","",SUM(Y31/$D$25*100)) ->  | AA32: % | AB32: =IF(AB31="","",SUM(AB31/$D$25*100)) ->  | AD32: %
F34: การอนุมัติผลการเรียน
M35: ลงชื่อ | X35: ครูผู้สอน
O36: =IF(ข้อมูลพื้นฐาน!E15="","","("&ข้อมูลพื้นฐาน!E15&")") -> 
M37: ลงชื่อ | X37: หัวหน้ากลุ่มสาระการเรียนรู้
O38: =IF(ข้อมูลพื้นฐาน!E16="","","("&ข้อมูลพื้นฐาน!E16&")") -> 
M39: ลงชื่อ | X39: หัวหน้างานวัดผล
O40: =IF(ข้อมูลพื้นฐาน!E10="","","("&ข้อมูลพื้นฐาน!E10&")") -> (นายวินัย ประชุมแดง)
F41: เรียนเสนอเพื่อโปรดพิจารณา | M41: ลงชื่อ | X41: รองฯ กลุ่มงานวิชาการ
O42: =IF(ข้อมูลพื้นฐาน!E9="","","("&ข้อมูลพื้นฐาน!E9&")") -> (นายเกรียงศักดิ์ โกบสันเทียะ)
I44: อนุมัติ | L44: ไม่อนุมัติ
O45: =IF(ข้อมูลพื้นฐาน!E8="","","("&ข้อมูลพื้นฐาน!E8&")") -> (นางสาววรินทร ปัดกอง)
J46: =IF(ข้อมูลพื้นฐาน!K8="","",ข้อมูลพื้นฐาน!K8) -> ผู้อำนวยการ
O47: =IF(ข้อมูลพื้นฐาน!E23="","",ข้อมูลพื้นฐาน!E23) -> 

Sheet ตัวชี้วัด
C7: รายวิชา | D7: =IF(ปก!J18="","",ปก!J18) ->  | E7: รหัสวิชา | G7: =IF(ปก!$Z$18="","",(ปก!$Z$18)) -> 
C8: กลุ่มสาระการเรียนรู้ | D8: =IF(ปก!J17="","",ปก!J17) ->  | E8: ระดับชั้น | G8: =IF(ปก!I16="","",ปก!I16) -> 
B9: ="จำนวนหน่วยการเรียน "&ปก!AA19&" หน่วย เวลาเรียนต่อสัปดาห์ "&ปก!S19&" ชั่วโมง" -> จำนวนหน่วยการเรียน หน่วย เวลาเรียนต่อสัปดาห์ ชั่วโมง
B11: ="อัตราส่วนคะแนนระหว่างภาค : ปลายภาค = "&ข้อมูลพื้นฐาน!J17&"" -> อัตราส่วนคะแนนระหว่างภาค : ปลายภาค = 70 : 30
B13: หน่วยการเรียนรู้ | C13: ข้อที่ | D13: ตัวชี้วัด / ผลการเรียนรู้ | E13: จำนวน ชั่วโมง | F13: น้ำหนักคะแนนการประเมิน
F14: ก่อนสอบ กลางภาค | G14: คะแนน กลางภาค | H14: หลังสอบ กลางภาค | I14: วัดผล ปลายภาค
E15: =IF($G$7="","",SUM(E16:E53)) -> 
J16: 90:10
J17: 80:20
J18: 70:30
J19: 60:40
J20: 50:50

Sheet เวลาเรียน
B7: เลขที่ | C7: เลขประจำตัว | D7: ชื่อ - สกุล | E7: สัปดาห์ | F7: 1 | K7: 2 | P7: 3 | U7: 4 | Z7: 5 | AE7: 6 | AJ7: 7 | AO7: 8 | AT7: 9 | AY7: 10 | BD7: 11 | BI7: 12 | BN7: 13 | BS7: 14 | BX7: 15 | CC7: 16 | CH7: 17 | CM7: 18 | CR7: 19 | CW7: 20 | DC7: สรุปเวลาเรียน (ชั่วโมง) | DG7: การนับเวลาเรียนของนักเรียน
E8: เดือน | F8: พฤศจิกายน | DG8: จำนวนชั่วโมงทั้งหมดต่อภาค | DK8: =IF(ปก!S19="","",(ปก!S19*20)) -> 
E9: วัน | I9: พฤ | DC9: ป่วย(ชม) | DD9: ลา(ชม) | DE9: ขาด(ชม) | DF9: มาเรียน(ชม) | DG9: จำนวนชั่วโมงที่ต้องเรียนต่อภาค | DK9: =IF(ปก!S19="","",(ปก!S19*20)) -> 
E10: วันที่ | I10: 1 | DG10: 80% ของเวลาเรียนใน 1 ภาคเรียน | DK10: =IF(ปก!S19="","",SUM(DK9*80/100)) -> 
E11: ชม. ที่ | DG11: ร้อยละ
B12: 1 | C12: =IF(ลงทะเบียน!C9="-","",IF(ลงทะเบียน!C9="","",ลงทะเบียน!C9)) ->  | D12: =IF(ลงทะเบียน!C9="-","",IF(ลงทะเบียน!E9="","",ลงทะเบียน!E9)) ->  | DC12: =IF($DK$8="","",IF(D12="","",(SUM((IF(F12:DA12="ป",1,0)))))) ->  | DD12: =IF($DK$8="","",IF(D12="","",(SUM((IF(F12:DA12="ล",1,0)))))) ->  | DE12: =IF($DK$8="","",IF(D12="","",(SUM((IF(F12:DA12="ข",1,0)))))) ->  | DF12: =IF($DK$8="","",IF(D12="","",(SUM(IF(F12:DA12="/",1,0))))) ->  | DG12: =IF($DK$8="","",IF(DF12="","",SUM(DF12*100/$DK$8))) ->  | DH12: บันทึกเพิ่มเติมของครูผู้สอน | DM12: / | DN12: จ | DO12: มกราคม
B13: 2 | C13: =IF(ลงทะเบียน!C10="-","",IF(ลงทะเบียน!C10="","",ลงทะเบียน!C10)) ->  | D13: =IF(ลงทะเบียน!C10="-","",IF(ลงทะเบียน!E10="","",ลงทะเบียน!E10)) ->  | DC13: =IF($DK$8="","",IF(D13="","",(SUM((IF(F13:DA13="ป",1,0)))))) ->  | DD13: =IF($DK$8="","",IF(D13="","",(SUM((IF(F13:DA13="ล",1,0)))))) ->  | DE13: =IF($DK$8="","",IF(D13="","",(SUM((IF(F13:DA13="ข",1,0)))))) ->  | DF13: =IF($DK$8="","",IF(D13="","",(SUM(IF(F13:DA13="/",1,0))))) ->  | DG13: =IF($DK$8="","",IF(DF13="","",SUM(DF13*100/$DK$8))) ->  | DM13: ข | DN13: อ | DO13: ม.ค-ก.พ
B14: 3 | C14: =IF(ลงทะเบียน!C11="-","",IF(ลงทะเบียน!C11="","",ลงทะเบียน!C11)) ->  | D14: =IF(ลงทะเบียน!C11="-","",IF(ลงทะเบียน!E11="","",ลงทะเบียน!E11)) ->  | DC14: =IF($DK$8="","",IF(D14="","",(SUM((IF(F14:DA14="ป",1,0)))))) ->  | DD14: =IF($DK$8="","",IF(D14="","",(SUM((IF(F14:DA14="ล",1,0)))))) ->  | DE14: =IF($DK$8="","",IF(D14="","",(SUM((IF(F14:DA14="ข",1,0)))))) ->  | DF14: =IF($DK$8="","",IF(D14="","",(SUM(IF(F14:DA14="/",1,0))))) ->  | DM14: ล | DN14: พ | DO14: กุมภาพันธ์
B15: 4 | C15: =IF(ลงทะเบียน!C12="-","",IF(ลงทะเบียน!C12="","",ลงทะเบียน!C12)) ->  | D15: =IF(ลงทะเบียน!C12="-","",IF(ลงทะเบียน!E12="","",ลงทะเบียน!E12)) ->  | DC15: =IF($DK$8="","",IF(D15="","",(SUM((IF(F15:DA15="ป",1,0)))))) ->  | DD15: =IF($DK$8="","",IF(D15="","",(SUM((IF(F15:DA15="ล",1,0)))))) ->  | DE15: =IF($DK$8="","",IF(D15="","",(SUM((IF(F15:DA15="ข",1,0)))))) ->  | DF15: =IF($DK$8="","",IF(D15="","",(SUM(IF(F15:DA15="/",1,0))))) ->  | DM15: ป | DN15: พฤ | DO15: ก.พ-มี.ค
B16: 5 | C16: =IF(ลงทะเบียน!C13="-","",IF(ลงทะเบียน!C13="","",ลงทะเบียน!C13)) ->  | D16: =IF(ลงทะเบียน!C13="-","",IF(ลงทะเบียน!E13="","",ลงทะเบียน!E13)) ->  | DC16: =IF($DK$8="","",IF(D16="","",(SUM((IF(F16:DA16="ป",1,0)))))) ->  | DD16: =IF($DK$8="","",IF(D16="","",(SUM((IF(F16:DA16="ล",1,0)))))) ->  | DE16: =IF($DK$8="","",IF(D16="","",(SUM((IF(F16:DA16="ข",1,0)))))) ->  | DF16: =IF($DK$8="","",IF(D16="","",(SUM(IF(F16:DA16="/",1,0))))) ->  | DN16: ศ | DO16: มีนาคม
B17: 6 | C17: =IF(ลงทะเบียน!C14="-","",IF(ลงทะเบียน!C14="","",ลงทะเบียน!C14)) ->  | D17: =IF(ลงทะเบียน!C14="-","",IF(ลงทะเบียน!E14="","",ลงทะเบียน!E14)) ->  | DC17: =IF($DK$8="","",IF(D17="","",(SUM((IF(F17:DA17="ป",1,0)))))) ->  | DD17: =IF($DK$8="","",IF(D17="","",(SUM((IF(F17:DA17="ล",1,0)))))) ->  | DE17: =IF($DK$8="","",IF(D17="","",(SUM((IF(F17:DA17="ข",1,0)))))) ->  | DF17: =IF($DK$8="","",IF(D17="","",(SUM(IF(F17:DA17="/",1,0))))) ->  | DO17: มี.ค-เม.ย
B18: 7 | C18: =IF(ลงทะเบียน!C15="-","",IF(ลงทะเบียน!C15="","",ลงทะเบียน!C15)) ->  | D18: =IF(ลงทะเบียน!C15="-","",IF(ลงทะเบียน!E15="","",ลงทะเบียน!E15)) ->  | DC18: =IF($DK$8="","",IF(D18="","",(SUM((IF(F18:DA18="ป",1,0)))))) ->  | DD18: =IF($DK$8="","",IF(D18="","",(SUM((IF(F18:DA18="ล",1,0)))))) ->  | DE18: =IF($DK$8="","",IF(D18="","",(SUM((IF(F18:DA18="ข",1,0)))))) ->  | DF18: =IF($DK$8="","",IF(D18="","",(SUM(IF(F18:DA18="/",1,0))))) ->  | DO18: เมษายน
B19: 8 | C19: =IF(ลงทะเบียน!C16="-","",IF(ลงทะเบียน!C16="","",ลงทะเบียน!C16)) ->  | D19: =IF(ลงทะเบียน!C16="-","",IF(ลงทะเบียน!E16="","",ลงทะเบียน!E16)) ->  | DC19: =IF($DK$8="","",IF(D19="","",(SUM((IF(F19:DA19="ป",1,0)))))) ->  | DD19: =IF($DK$8="","",IF(D19="","",(SUM((IF(F19:DA19="ล",1,0)))))) ->  | DE19: =IF($DK$8="","",IF(D19="","",(SUM((IF(F19:DA19="ข",1,0)))))) ->  | DF19: =IF($DK$8="","",IF(D19="","",(SUM(IF(F19:DA19="/",1,0))))) ->  | DO19: เม.ย-พ.ค
B20: 9 | C20: =IF(ลงทะเบียน!C17="-","",IF(ลงทะเบียน!C17="","",ลงทะเบียน!C17)) ->  | D20: =IF(ลงทะเบียน!C17="-","",IF(ลงทะเบียน!E17="","",ลงทะเบียน!E17)) ->  | DC20: =IF($DK$8="","",IF(D20="","",(SUM((IF(F20:DA20="ป",1,0)))))) ->  | DD20: =IF($DK$8="","",IF(D20="","",(SUM((IF(F20:DA20="ล",1,0)))))) ->  | DE20: =IF($DK$8="","",IF(D20="","",(SUM((IF(F20:DA20="ข",1,0)))))) ->  | DF20: =IF($DK$8="","",IF(D20="","",(SUM(IF(F20:DA20="/",1,0))))) ->  | DO20: พฤษภาคม
B21: 10 | C21: =IF(ลงทะเบียน!C18="-","",IF(ลงทะเบียน!C18="","",ลงทะเบียน!C18)) ->  | D21: =IF(ลงทะเบียน!C18="-","",IF(ลงทะเบียน!E18="","",ลงทะเบียน!E18)) ->  | DC21: =IF($DK$8="","",IF(D21="","",(SUM((IF(F21:DA21="ป",1,0)))))) ->  | DD21: =IF($DK$8="","",IF(D21="","",(SUM((IF(F21:DA21="ล",1,0)))))) ->  | DE21: =IF($DK$8="","",IF(D21="","",(SUM((IF(F21:DA21="ข",1,0)))))) ->  | DF21: =IF($DK$8="","",IF(D21="","",(SUM(IF(F21:DA21="/",1,0))))) ->  | DO21: พ.ค-มิ.ย
B22: 11 | C22: =IF(ลงทะเบียน!C19="-","",IF(ลงทะเบียน!C19="","",ลงทะเบียน!C19)) ->  | D22: =IF(ลงทะเบียน!C19="-","",IF(ลงทะเบียน!E19="","",ลงทะเบียน!E19)) ->  | DC22: =IF($DK$8="","",IF(D22="","",(SUM((IF(F22:DA22="ป",1,0)))))) ->  | DD22: =IF($DK$8="","",IF(D22="","",(SUM((IF(F22:DA22="ล",1,0)))))) ->  | DE22: =IF($DK$8="","",IF(D22="","",(SUM((IF(F22:DA22="ข",1,0)))))) ->  | DF22: =IF($DK$8="","",IF(D22="","",(SUM(IF(F22:DA22="/",1,0))))) ->  | DO22: มิถุนายน
B23: 12 | C23: =IF(ลงทะเบียน!C20="-","",IF(ลงทะเบียน!C20="","",ลงทะเบียน!C20)) ->  | D23: =IF(ลงทะเบียน!C20="-","",IF(ลงทะเบียน!E20="","",ลงทะเบียน!E20)) ->  | DC23: =IF($DK$8="","",IF(D23="","",(SUM((IF(F23:DA23="ป",1,0)))))) ->  | DD23: =IF($DK$8="","",IF(D23="","",(SUM((IF(F23:DA23="ล",1,0)))))) ->  | DE23: =IF($DK$8="","",IF(D23="","",(SUM((IF(F23:DA23="ข",1,0)))))) ->  | DF23: =IF($DK$8="","",IF(D23="","",(SUM(IF(F23:DA23="/",1,0))))) ->  | DO23: มิ.ย-ก.ค
B24: 13 | C24: =IF(ลงทะเบียน!C21="-","",IF(ลงทะเบียน!C21="","",ลงทะเบียน!C21)) ->  | D24: =IF(ลงทะเบียน!C21="-","",IF(ลงทะเบียน!E21="","",ลงทะเบียน!E21)) ->  | DC24: =IF($DK$8="","",IF(D24="","",(SUM((IF(F24:DA24="ป",1,0)))))) ->  | DD24: =IF($DK$8="","",IF(D24="","",(SUM((IF(F24:DA24="ล",1,0)))))) ->  | DE24: =IF($DK$8="","",IF(D24="","",(SUM((IF(F24:DA24="ข",1,0)))))) ->  | DF24: =IF($DK$8="","",IF(D24="","",(SUM(IF(F24:DA24="/",1,0))))) ->  | DO24: กรกฎาคม
B25: 14 | C25: =IF(ลงทะเบียน!C22="-","",IF(ลงทะเบียน!C22="","",ลงทะเบียน!C22)) ->  | D25: =IF(ลงทะเบียน!C22="-","",IF(ลงทะเบียน!E22="","",ลงทะเบียน!E22)) ->  | DC25: =IF($DK$8="","",IF(D25="","",(SUM((IF(F25:DA25="ป",1,0)))))) ->  | DD25: =IF($DK$8="","",IF(D25="","",(SUM((IF(F25:DA25="ล",1,0)))))) ->  | DE25: =IF($DK$8="","",IF(D25="","",(SUM((IF(F25:DA25="ข",1,0)))))) ->  | DF25: =IF($DK$8="","",IF(D25="","",(SUM(IF(F25:DA25="/",1,0))))) ->  | DO25: ก.ค-ส.ค
B26: 15 | C26: =IF(ลงทะเบียน!C23="-","",IF(ลงทะเบียน!C23="","",ลงทะเบียน!C23)) ->  | D26: =IF(ลงทะเบียน!C23="-","",IF(ลงทะเบียน!E23="","",ลงทะเบียน!E23)) ->  | DC26: =IF($DK$8="","",IF(D26="","",(SUM((IF(F26:DA26="ป",1,0)))))) ->  | DD26: =IF($DK$8="","",IF(D26="","",(SUM((IF(F26:DA26="ล",1,0)))))) ->  | DE26: =IF($DK$8="","",IF(D26="","",(SUM((IF(F26:DA26="ข",1,0)))))) ->  | DF26: =IF($DK$8="","",IF(D26="","",(SUM(IF(F26:DA26="/",1,0))))) ->  | DO26: สิงหาคม
B27: 16 | C27: =IF(ลงทะเบียน!C24="-","",IF(ลงทะเบียน!C24="","",ลงทะเบียน!C24)) ->  | D27: =IF(ลงทะเบียน!C24="-","",IF(ลงทะเบียน!E24="","",ลงทะเบียน!E24)) ->  | DC27: =IF($DK$8="","",IF(D27="","",(SUM((IF(F27:DA27="ป",1,0)))))) ->  | DD27: =IF($DK$8="","",IF(D27="","",(SUM((IF(F27:DA27="ล",1,0)))))) ->  | DE27: =IF($DK$8="","",IF(D27="","",(SUM((IF(F27:DA27="ข",1,0)))))) ->  | DF27: =IF($DK$8="","",IF(D27="","",(SUM(IF(F27:DA27="/",1,0))))) ->  | DO27: ส.ค-ก.ย
B28: 17 | C28: =IF(ลงทะเบียน!C25="-","",IF(ลงทะเบียน!C25="","",ลงทะเบียน!C25)) ->  | D28: =IF(ลงทะเบียน!C25="-","",IF(ลงทะเบียน!E25="","",ลงทะเบียน!E25)) ->  | DC28: =IF($DK$8="","",IF(D28="","",(SUM((IF(F28:DA28="ป",1,0)))))) ->  | DD28: =IF($DK$8="","",IF(D28="","",(SUM((IF(F28:DA28="ล",1,0)))))) ->  | DE28: =IF($DK$8="","",IF(D28="","",(SUM((IF(F28:DA28="ข",1,0)))))) ->  | DF28: =IF($DK$8="","",IF(D28="","",(SUM(IF(F28:DA28="/",1,0))))) ->  | DO28: กันยายน
B29: 18 | C29: =IF(ลงทะเบียน!C26="-","",IF(ลงทะเบียน!C26="","",ลงทะเบียน!C26)) ->  | D29: =IF(ลงทะเบียน!C26="-","",IF(ลงทะเบียน!E26="","",ลงทะเบียน!E26)) ->  | DC29: =IF($DK$8="","",IF(D29="","",(SUM((IF(F29:DA29="ป",1,0)))))) ->  | DD29: =IF($DK$8="","",IF(D29="","",(SUM((IF(F29:DA29="ล",1,0)))))) ->  | DE29: =IF($DK$8="","",IF(D29="","",(SUM((IF(F29:DA29="ข",1,0)))))) ->  | DF29: =IF($DK$8="","",IF(D29="","",(SUM(IF(F29:DA29="/",1,0))))) ->  | DO29: ก.ย-ต.ค
B30: 19 | C30: =IF(ลงทะเบียน!C27="-","",IF(ลงทะเบียน!C27="","",ลงทะเบียน!C27)) ->  | D30: =IF(ลงทะเบียน!C27="-","",IF(ลงทะเบียน!E27="","",ลงทะเบียน!E27)) ->  | DC30: =IF($DK$8="","",IF(D30="","",(SUM((IF(F30:DA30="ป",1,0)))))) ->  | DD30: =IF($DK$8="","",IF(D30="","",(SUM((IF(F30:DA30="ล",1,0)))))) ->  | DE30: =IF($DK$8="","",IF(D30="","",(SUM((IF(F30:DA30="ข",1,0)))))) ->  | DF30: =IF($DK$8="","",IF(D30="","",(SUM(IF(F30:DA30="/",1,0))))) ->  | DO30: ตุลาคม
B31: 20 | C31: =IF(ลงทะเบียน!C28="-","",IF(ลงทะเบียน!C28="","",ลงทะเบียน!C28)) ->  | D31: =IF(ลงทะเบียน!C28="-","",IF(ลงทะเบียน!E28="","",ลงทะเบียน!E28)) ->  | DC31: =IF($DK$8="","",IF(D31="","",(SUM((IF(F31:DA31="ป",1,0)))))) ->  | DD31: =IF($DK$8="","",IF(D31="","",(SUM((IF(F31:DA31="ล",1,0)))))) ->  | DE31: =IF($DK$8="","",IF(D31="","",(SUM((IF(F31:DA31="ข",1,0)))))) ->  | DF31: =IF($DK$8="","",IF(D31="","",(SUM(IF(F31:DA31="/",1,0))))) ->  | DO31: ต.ค-พ.ย
B32: 21 | C32: =IF(ลงทะเบียน!C29="-","",IF(ลงทะเบียน!C29="","",ลงทะเบียน!C29)) ->  | D32: =IF(ลงทะเบียน!C29="-","",IF(ลงทะเบียน!E29="","",ลงทะเบียน!E29)) ->  | DC32: =IF($DK$8="","",IF(D32="","",(SUM((IF(F32:DA32="ป",1,0)))))) ->  | DD32: =IF($DK$8="","",IF(D32="","",(SUM((IF(F32:DA32="ล",1,0)))))) ->  | DE32: =IF($DK$8="","",IF(D32="","",(SUM((IF(F32:DA32="ข",1,0)))))) ->  | DF32: =IF($DK$8="","",IF(D32="","",(SUM(IF(F32:DA32="/",1,0))))) ->  | DH32: การตรวจประเมิน ปพ.5 | DO32: พฤศจิกายน
B33: 22 | C33: =IF(ลงทะเบียน!C30="-","",IF(ลงทะเบียน!C30="","",ลงทะเบียน!C30)) ->  | D33: =IF(ลงทะเบียน!C30="-","",IF(ลงทะเบียน!E30="","",ลงทะเบียน!E30)) ->  | DC33: =IF($DK$8="","",IF(D33="","",(SUM((IF(F33:DA33="ป",1,0)))))) ->  | DD33: =IF($DK$8="","",IF(D33="","",(SUM((IF(F33:DA33="ล",1,0)))))) ->  | DE33: =IF($DK$8="","",IF(D33="","",(SUM((IF(F33:DA33="ข",1,0)))))) ->  | DF33: =IF($DK$8="","",IF(D33="","",(SUM(IF(F33:DA33="/",1,0))))) ->  | DO33: พ.ย-ธ.ค
B34: 23 | C34: =IF(ลงทะเบียน!C31="-","",IF(ลงทะเบียน!C31="","",ลงทะเบียน!C31)) ->  | D34: =IF(ลงทะเบียน!C31="-","",IF(ลงทะเบียน!E31="","",ลงทะเบียน!E31)) ->  | DC34: =IF($DK$8="","",IF(D34="","",(SUM((IF(F34:DA34="ป",1,0)))))) ->  | DD34: =IF($DK$8="","",IF(D34="","",(SUM((IF(F34:DA34="ล",1,0)))))) ->  | DE34: =IF($DK$8="","",IF(D34="","",(SUM((IF(F34:DA34="ข",1,0)))))) ->  | DF34: =IF($DK$8="","",IF(D34="","",(SUM(IF(F34:DA34="/",1,0))))) ->  | DH34: ครั้งที่ 1 วันที่........./.........../.......... | DO34: ธันวาคม
B35: 24 | C35: =IF(ลงทะเบียน!C32="-","",IF(ลงทะเบียน!C32="","",ลงทะเบียน!C32)) ->  | D35: =IF(ลงทะเบียน!C32="-","",IF(ลงทะเบียน!E32="","",ลงทะเบียน!E32)) ->  | DC35: =IF($DK$8="","",IF(D35="","",(SUM((IF(F35:DA35="ป",1,0)))))) ->  | DD35: =IF($DK$8="","",IF(D35="","",(SUM((IF(F35:DA35="ล",1,0)))))) ->  | DE35: =IF($DK$8="","",IF(D35="","",(SUM((IF(F35:DA35="ข",1,0)))))) ->  | DF35: =IF($DK$8="","",IF(D35="","",(SUM(IF(F35:DA35="/",1,0))))) ->  | DO35: ธ.ค-ม.ค
B36: 25 | C36: =IF(ลงทะเบียน!C33="-","",IF(ลงทะเบียน!C33="","",ลงทะเบียน!C33)) ->  | D36: =IF(ลงทะเบียน!C33="-","",IF(ลงทะเบียน!E33="","",ลงทะเบียน!E33)) ->  | DC36: =IF($DK$8="","",IF(D36="","",(SUM((IF(F36:DA36="ป",1,0)))))) ->  | DD36: =IF($DK$8="","",IF(D36="","",(SUM((IF(F36:DA36="ล",1,0)))))) ->  | DE36: =IF($DK$8="","",IF(D36="","",(SUM((IF(F36:DA36="ข",1,0)))))) ->  | DF36: =IF($DK$8="","",IF(D36="","",(SUM(IF(F36:DA36="/",1,0))))) -> 
B37: 26 | C37: =IF(ลงทะเบียน!C34="-","",IF(ลงทะเบียน!C34="","",ลงทะเบียน!C34)) ->  | D37: =IF(ลงทะเบียน!C34="-","",IF(ลงทะเบียน!E34="","",ลงทะเบียน!E34)) ->  | DC37: =IF($DK$8="","",IF(D37="","",(SUM((IF(F37:DA37="ป",1,0)))))) ->  | DD37: =IF($DK$8="","",IF(D37="","",(SUM((IF(F37:DA37="ล",1,0)))))) ->  | DE37: =IF($DK$8="","",IF(D37="","",(SUM((IF(F37:DA37="ข",1,0)))))) ->  | DF37: =IF($DK$8="","",IF(D37="","",(SUM(IF(F37:DA37="/",1,0))))) -> 
B38: 27 | C38: =IF(ลงทะเบียน!C35="-","",IF(ลงทะเบียน!C35="","",ลงทะเบียน!C35)) ->  | D38: =IF(ลงทะเบียน!C35="-","",IF(ลงทะเบียน!E35="","",ลงทะเบียน!E35)) ->  | DC38: =IF($DK$8="","",IF(D38="","",(SUM((IF(F38:DA38="ป",1,0)))))) ->  | DD38: =IF($DK$8="","",IF(D38="","",(SUM((IF(F38:DA38="ล",1,0)))))) ->  | DE38: =IF($DK$8="","",IF(D38="","",(SUM((IF(F38:DA38="ข",1,0)))))) ->  | DF38: =IF($DK$8="","",IF(D38="","",(SUM(IF(F38:DA38="/",1,0))))) -> 
B39: 28 | C39: =IF(ลงทะเบียน!C36="-","",IF(ลงทะเบียน!C36="","",ลงทะเบียน!C36)) ->  | D39: =IF(ลงทะเบียน!C36="-","",IF(ลงทะเบียน!E36="","",ลงทะเบียน!E36)) ->  | DC39: =IF($DK$8="","",IF(D39="","",(SUM((IF(F39:DA39="ป",1,0)))))) ->  | DD39: =IF($DK$8="","",IF(D39="","",(SUM((IF(F39:DA39="ล",1,0)))))) ->  | DE39: =IF($DK$8="","",IF(D39="","",(SUM((IF(F39:DA39="ข",1,0)))))) ->  | DF39: =IF($DK$8="","",IF(D39="","",(SUM(IF(F39:DA39="/",1,0))))) ->  | DK39: ผู้ตรวจ
B40: 29 | C40: =IF(ลงทะเบียน!C37="-","",IF(ลงทะเบียน!C37="","",ลงทะเบียน!C37)) ->  | D40: =IF(ลงทะเบียน!C37="-","",IF(ลงทะเบียน!E37="","",ลงทะเบียน!E37)) ->  | DC40: =IF($DK$8="","",IF(D40="","",(SUM((IF(F40:DA40="ป",1,0)))))) ->  | DD40: =IF($DK$8="","",IF(D40="","",(SUM((IF(F40:DA40="ล",1,0)))))) ->  | DE40: =IF($DK$8="","",IF(D40="","",(SUM((IF(F40:DA40="ข",1,0)))))) ->  | DF40: =IF($DK$8="","",IF(D40="","",(SUM(IF(F40:DA40="/",1,0))))) -> 
B41: 30 | C41: =IF(ลงทะเบียน!C38="-","",IF(ลงทะเบียน!C38="","",ลงทะเบียน!C38)) ->  | D41: =IF(ลงทะเบียน!C38="-","",IF(ลงทะเบียน!E38="","",ลงทะเบียน!E38)) ->  | DC41: =IF($DK$8="","",IF(D41="","",(SUM((IF(F41:DA41="ป",1,0)))))) ->  | DD41: =IF($DK$8="","",IF(D41="","",(SUM((IF(F41:DA41="ล",1,0)))))) ->  | DE41: =IF($DK$8="","",IF(D41="","",(SUM((IF(F41:DA41="ข",1,0)))))) ->  | DF41: =IF($DK$8="","",IF(D41="","",(SUM(IF(F41:DA41="/",1,0))))) ->  | DH41: ครั้งที่ 2 วันที่........./.........../..........
B42: 31 | C42: =IF(ลงทะเบียน!C39="-","",IF(ลงทะเบียน!C39="","",ลงทะเบียน!C39)) ->  | D42: =IF(ลงทะเบียน!C39="-","",IF(ลงทะเบียน!E39="","",ลงทะเบียน!E39)) ->  | DC42: =IF($DK$8="","",IF(D42="","",(SUM((IF(F42:DA42="ป",1,0)))))) ->  | DD42: =IF($DK$8="","",IF(D42="","",(SUM((IF(F42:DA42="ล",1,0)))))) ->  | DE42: =IF($DK$8="","",IF(D42="","",(SUM((IF(F42:DA42="ข",1,0)))))) ->  | DF42: =IF($DK$8="","",IF(D42="","",(SUM(IF(F42:DA42="/",1,0))))) -> 
B43: 32 | C43: =IF(ลงทะเบียน!C40="-","",IF(ลงทะเบียน!C40="","",ลงทะเบียน!C40)) ->  | D43: =IF(ลงทะเบียน!C40="-","",IF(ลงทะเบียน!E40="","",ลงทะเบียน!E40)) ->  | DC43: =IF($DK$8="","",IF(D43="","",(SUM((IF(F43:DA43="ป",1,0)))))) ->  | DD43: =IF($DK$8="","",IF(D43="","",(SUM((IF(F43:DA43="ล",1,0)))))) ->  | DE43: =IF($DK$8="","",IF(D43="","",(SUM((IF(F43:DA43="ข",1,0)))))) ->  | DF43: =IF($DK$8="","",IF(D43="","",(SUM(IF(F43:DA43="/",1,0))))) -> 
B44: 33 | C44: =IF(ลงทะเบียน!C41="-","",IF(ลงทะเบียน!C41="","",ลงทะเบียน!C41)) ->  | D44: =IF(ลงทะเบียน!C41="-","",IF(ลงทะเบียน!E41="","",ลงทะเบียน!E41)) ->  | DC44: =IF($DK$8="","",IF(D44="","",(SUM((IF(F44:DA44="ป",1,0)))))) ->  | DD44: =IF($DK$8="","",IF(D44="","",(SUM((IF(F44:DA44="ล",1,0)))))) ->  | DE44: =IF($DK$8="","",IF(D44="","",(SUM((IF(F44:DA44="ข",1,0)))))) ->  | DF44: =IF($DK$8="","",IF(D44="","",(SUM(IF(F44:DA44="/",1,0))))) -> 
B45: 34 | C45: =IF(ลงทะเบียน!C42="-","",IF(ลงทะเบียน!C42="","",ลงทะเบียน!C42)) ->  | D45: =IF(ลงทะเบียน!C42="-","",IF(ลงทะเบียน!E42="","",ลงทะเบียน!E42)) ->  | DC45: =IF($DK$8="","",IF(D45="","",(SUM((IF(F45:DA45="ป",1,0)))))) ->  | DD45: =IF($DK$8="","",IF(D45="","",(SUM((IF(F45:DA45="ล",1,0)))))) ->  | DE45: =IF($DK$8="","",IF(D45="","",(SUM((IF(F45:DA45="ข",1,0)))))) ->  | DF45: =IF($DK$8="","",IF(D45="","",(SUM(IF(F45:DA45="/",1,0))))) -> 
B46: 35 | C46: =IF(ลงทะเบียน!C43="-","",IF(ลงทะเบียน!C43="","",ลงทะเบียน!C43)) ->  | D46: =IF(ลงทะเบียน!C43="-","",IF(ลงทะเบียน!E43="","",ลงทะเบียน!E43)) ->  | DC46: =IF($DK$8="","",IF(D46="","",(SUM((IF(F46:DA46="ป",1,0)))))) ->  | DD46: =IF($DK$8="","",IF(D46="","",(SUM((IF(F46:DA46="ล",1,0)))))) ->  | DE46: =IF($DK$8="","",IF(D46="","",(SUM((IF(F46:DA46="ข",1,0)))))) ->  | DF46: =IF($DK$8="","",IF(D46="","",(SUM(IF(F46:DA46="/",1,0))))) ->  | DK46: ผู้ตรวจ
B47: 36 | C47: =IF(ลงทะเบียน!C44="-","",IF(ลงทะเบียน!C44="","",ลงทะเบียน!C44)) ->  | D47: =IF(ลงทะเบียน!C44="-","",IF(ลงทะเบียน!E44="","",ลงทะเบียน!E44)) ->  | DC47: =IF($DK$8="","",IF(D47="","",(SUM((IF(F47:DA47="ป",1,0)))))) ->  | DD47: =IF($DK$8="","",IF(D47="","",(SUM((IF(F47:DA47="ล",1,0)))))) ->  | DE47: =IF($DK$8="","",IF(D47="","",(SUM((IF(F47:DA47="ข",1,0)))))) ->  | DF47: =IF($DK$8="","",IF(D47="","",(SUM(IF(F47:DA47="/",1,0))))) -> 
B48: 37 | C48: =IF(ลงทะเบียน!C45="-","",IF(ลงทะเบียน!C45="","",ลงทะเบียน!C45)) ->  | D48: =IF(ลงทะเบียน!C45="-","",IF(ลงทะเบียน!E45="","",ลงทะเบียน!E45)) ->  | DC48: =IF($DK$8="","",IF(D48="","",(SUM((IF(F48:DA48="ป",1,0)))))) ->  | DD48: =IF($DK$8="","",IF(D48="","",(SUM((IF(F48:DA48="ล",1,0)))))) ->  | DE48: =IF($DK$8="","",IF(D48="","",(SUM((IF(F48:DA48="ข",1,0)))))) ->  | DF48: =IF($DK$8="","",IF(D48="","",(SUM(IF(F48:DA48="/",1,0))))) ->  | DH48: ครั้งที่ 3 วันที่........./.........../..........
B49: 38 | C49: =IF(ลงทะเบียน!C46="-","",IF(ลงทะเบียน!C46="","",ลงทะเบียน!C46)) ->  | D49: =IF(ลงทะเบียน!C46="-","",IF(ลงทะเบียน!E46="","",ลงทะเบียน!E46)) ->  | DC49: =IF($DK$8="","",IF(D49="","",(SUM((IF(F49:DA49="ป",1,0)))))) ->  | DD49: =IF($DK$8="","",IF(D49="","",(SUM((IF(F49:DA49="ล",1,0)))))) ->  | DE49: =IF($DK$8="","",IF(D49="","",(SUM((IF(F49:DA49="ข",1,0)))))) ->  | DF49: =IF($DK$8="","",IF(D49="","",(SUM(IF(F49:DA49="/",1,0))))) -> 
B50: 39 | C50: =IF(ลงทะเบียน!C47="-","",IF(ลงทะเบียน!C47="","",ลงทะเบียน!C47)) ->  | D50: =IF(ลงทะเบียน!C47="-","",IF(ลงทะเบียน!E47="","",ลงทะเบียน!E47)) ->  | DC50: =IF($DK$8="","",IF(D50="","",(SUM((IF(F50:DA50="ป",1,0)))))) ->  | DD50: =IF($DK$8="","",IF(D50="","",(SUM((IF(F50:DA50="ล",1,0)))))) ->  | DE50: =IF($DK$8="","",IF(D50="","",(SUM((IF(F50:DA50="ข",1,0)))))) ->  | DF50: =IF($DK$8="","",IF(D50="","",(SUM(IF(F50:DA50="/",1,0))))) -> 
B51: 40 | C51: =IF(ลงทะเบียน!C48="-","",IF(ลงทะเบียน!C48="","",ลงทะเบียน!C48)) ->  | D51: =IF(ลงทะเบียน!C48="-","",IF(ลงทะเบียน!E48="","",ลงทะเบียน!E48)) ->  | DC51: =IF($DK$8="","",IF(D51="","",(SUM((IF(F51:DA51="ป",1,0)))))) ->  | DD51: =IF($DK$8="","",IF(D51="","",(SUM((IF(F51:DA51="ล",1,0)))))) ->  | DE51: =IF($DK$8="","",IF(D51="","",(SUM((IF(F51:DA51="ข",1,0)))))) ->  | DF51: =IF($DK$8="","",IF(D51="","",(SUM(IF(F51:DA51="/",1,0))))) -> 
B52: 41 | C52: =IF(ลงทะเบียน!C49="-","",IF(ลงทะเบียน!C49="","",ลงทะเบียน!C49)) ->  | D52: =IF(ลงทะเบียน!C49="-","",IF(ลงทะเบียน!E49="","",ลงทะเบียน!E49)) ->  | DC52: =IF($DK$8="","",IF(D52="","",(SUM((IF(F52:DA52="ป",1,0)))))) ->  | DD52: =IF($DK$8="","",IF(D52="","",(SUM((IF(F52:DA52="ล",1,0)))))) ->  | DE52: =IF($DK$8="","",IF(D52="","",(SUM((IF(F52:DA52="ข",1,0)))))) ->  | DF52: =IF($DK$8="","",IF(D52="","",(SUM(IF(F52:DA52="/",1,0))))) -> 
B53: 42 | C53: =IF(ลงทะเบียน!C50="-","",IF(ลงทะเบียน!C50="","",ลงทะเบียน!C50)) ->  | D53: =IF(ลงทะเบียน!C50="-","",IF(ลงทะเบียน!E50="","",ลงทะเบียน!E50)) ->  | DC53: =IF($DK$8="","",IF(D53="","",(SUM((IF(F53:DA53="ป",1,0)))))) ->  | DD53: =IF($DK$8="","",IF(D53="","",(SUM((IF(F53:DA53="ล",1,0)))))) ->  | DE53: =IF($DK$8="","",IF(D53="","",(SUM((IF(F53:DA53="ข",1,0)))))) ->  | DF53: =IF($DK$8="","",IF(D53="","",(SUM(IF(F53:DA53="/",1,0))))) ->  | DK53: ผู้ตรวจ
B54: 43 | C54: =IF(ลงทะเบียน!C51="-","",IF(ลงทะเบียน!C51="","",ลงทะเบียน!C51)) ->  | D54: =IF(ลงทะเบียน!C51="-","",IF(ลงทะเบียน!E51="","",ลงทะเบียน!E51)) ->  | DC54: =IF($DK$8="","",IF(D54="","",(SUM((IF(F54:DA54="ป",1,0)))))) ->  | DD54: =IF($DK$8="","",IF(D54="","",(SUM((IF(F54:DA54="ล",1,0)))))) ->  | DE54: =IF($DK$8="","",IF(D54="","",(SUM((IF(F54:DA54="ข",1,0)))))) ->  | DF54: =IF($DK$8="","",IF(D54="","",(SUM(IF(F54:DA54="/",1,0))))) -> 

Sheet บันทักคะแนน
E5: =("การประเมินผลการเรียน อัตราส่วนคะแนน ระหว่างภาค : ปลายภาค = "&ตัวชี้วัด!$E$11) -> การประเมินผลการเรียน อัตราส่วนคะแนน ระหว่างภาค : ปลายภาค = | AI5: =IF(ข้อมูลพื้นฐาน!$J$17="","",ข้อมูลพื้นฐาน!$J$17) -> 70 : 30 | AP5: =("การประเมินผลการเรียน อัตราส่วนคะแนน ระหว่างภาค : ปลายภาค = "&ตัวชี้วัด!$E$11) -> การประเมินผลการเรียน อัตราส่วนคะแนน ระหว่างภาค : ปลายภาค = | BT5: =IF(ข้อมูลพื้นฐาน!$J$17="","",ข้อมูลพื้นฐาน!$J$17) -> 70 : 30 | CA5: =("การประเมินผลการเรียน อัตราส่วนคะแนน ระหว่างภาค : ปลายภาค = "&ตัวชี้วัด!$E$11) -> การประเมินผลการเรียน อัตราส่วนคะแนน ระหว่างภาค : ปลายภาค = | CV5: =IF(ข้อมูลพื้นฐาน!$J$17="","",ข้อมูลพื้นฐาน!$J$17) -> 70 : 30
B6: เลขที่ | C6: ชื่อ - สกุล | AO6: รวม | BZ6: รวม | CA6: คะแนนหน่วย | CD6: กลางภาค | CG6: ปลายภาค | CI6: คะแนน ทั้งหมด | CJ6: ระดับผลการเรียน | CK6: บันทึกเกรด "ร" | CM6: อ่าน คิด วิเคราะห์ เขียน | CT6: คะแนนคุณลักษณะฯ | DC6: ตัวชี้วัดที่ 1
E7: ครั้งที่ | G7: รวม | I7: ครั้งที่ | K7: รวม | M7: ครั้งที่ | O7: รวม | Q7: ครั้งที่ | S7: รวม | U7: ครั้งที่ | W7: รวม | Y7: ครั้งที่ | AA7: รวม | AC7: ครั้งที่ | AE7: รวม | AG7: ครั้งที่ | AI7: รวม | AK7: ครั้งที่ | AM7: รวม | AO7: ก่อน | AP7: ครั้งที่ | AR7: รวม | AT7: ครั้งที่ | AV7: รวม | AX7: ครั้งที่ | AZ7: รวม | BB7: ครั้งที่ | BD7: รวม | BF7: ครั้งที่ | BH7: รวม | BJ7: ครั้งที่ | BL7: รวม | BN7: ครั้งที่ | BP7: รวม | BR7: ครั้งที่ | BT7: รวม | BV7: ครั้งที่ | BX7: รวม | BZ7: หลัง | CA7: ก่อน | CB7: หลัง | CC7: รวม | CD7: สอบ | CE7: แก้ตัว | CF7: ได้ | CM7: ประเมิน ข้อที่ | CR7: ผลประเมิน | CT7: ประเมิน ข้อที่ | DB7: ผลประเมิน | DC7: ตัวชี้วัดที่ 2
E8: 1 | F8: 2 | I8: 1 | J8: 2 | M8: 1 | N8: 2 | Q8: 1 | R8: 2 | U8: 1 | V8: 2 | Y8: 1 | Z8: 2 | AC8: 1 | AD8: 2 | AG8: 1 | AH8: 2 | AK8: 1 | AL8: 2 | AO8: กลางภาค | AP8: 1 | AQ8: 2 | AT8: 1 | AU8: 2 | AX8: 1 | AY8: 2 | BB8: 1 | BC8: 2 | BF8: 1 | BG8: 2 | BJ8: 1 | BK8: 2 | BN8: 1 | BO8: 2 | BR8: 1 | BS8: 2 | BV8: 1 | BW8: 2 | BZ8: กลางภาค | CM8: 1 | CN8: 2 | CO8: 3 | CP8: 4 | CQ8: 5 | CT8: 1 | CU8: 2 | CV8: 3 | CW8: 4 | CX8: 5 | CY8: 6 | CZ8: 7 | DA8: 8 | DC8: ตัวชี้วัดที่ 3
D9: คะแนน | AO9: =IF(E9="","",SUM(G9,K9,O9,S9,W9,AA9,AE9,AI9,AM9)) ->  | BZ9: =IF(AP9="","",SUM(AR9,AV9,AZ9,BD9,BH9,BL9,BP9,BT9,BX9)) ->  | CA9: =AO9 ->  | CB9: =BZ9 ->  | CC9: =IF(CA9="","",SUM(CA9:CB9)) ->  | CE9: =IF(CD9="","",SUM(CD9/2)) ->  | CF9: =IF(CD9="","",CD9) ->  | CI9: =IF(CD9="","",IF(CG9=-1,-1,SUM(CC9,CF9:CG9))) ->  | CN9: 2 | CO9: 3 | CP9: 4 | CQ9: 5 | CU9: 2 | CV9: 3 | CW9: 4 | CX9: 5 | CY9: 6 | CZ9: 7 | DA9: 8 | DC9: ตัวชี้วัดที่ 4
B10: 1 | C10: =IF(เวลาเรียน!D12="","",เวลาเรียน!D12) ->  | G10: =IF(H10="","",ROUND(H10,0)) ->  | H10: =IF(C10="","",IF(E10="","",((E10+F10)*$G$9/($E$9+$F$9)))) ->  | K10: =IF(L10="","",ROUND(L10,0)) ->  | L10: =IF(C10="","",IF(I10="","",((I10+J10)*$K$9/($I$9+$J$9)))) ->  | O10: =IF(P10="","",ROUND(P10,0)) ->  | P10: =IF(C10="","",IF(M10="","",((M10+N10)*$O$9/($M$9+$N$9)))) ->  | S10: =IF(T10="","",ROUND(T10,0)) ->  | T10: =IF(C10="","",IF(Q10="","",((Q10+R10)*$S$9/($Q$9+$R$9)))) ->  | W10: =IF(X10="","",ROUND(X10,0)) ->  | X10: =IF(C10="","",IF(U10="","",((U10+V10)*$W$9/($U$9+$V$9)))) ->  | AA10: =IF(AB10="","",ROUND(AB10,0)) ->  | AB10: =IF(C10="","",IF(Y10="","",((Y10+Z10)*$AA$9/($Y$9+$Z$9)))) ->  | AE10: =IF(AF10="","",ROUND(AF10,0)) ->  | AF10: =IF(C10="","",IF(AC10="","",((AC10+AD10)*$AE$9/($AC$9+$AD$9)))) ->  | AI10: =IF(AJ10="","",ROUND(AJ10,0)) ->  | AJ10: =IF(C10="","",IF(AG10="","",((AG10+AH10)*$AI$9/($AG$9+$AH$9)))) ->  | AM10: =IF(AN10="","",ROUND(AN10,0)) ->  | AN10: =IF(C10="","",IF(AK10="","",((AK10+AL10)*$AM$9/($AK$9+$AL$9)))) ->  | AO10: =IF(E10="","",SUM(G10,K10,O10,S10,W10,AA10,AE10,AI10,AM10)) ->  | AR10: =IF(AS10="","",ROUND(AS10,0)) ->  | AS10: =IF(C10="","",IF(AP10="","",((AP10+AQ10)*$AR$9/($AP$9+$AQ$9)))) ->  | AV10: =IF(AW10="","",ROUND(AW10,0)) ->  | AW10: =IF(C10="","",IF(AT10="","",((AT10+AU10)*$AV$9/($AT$9+$AU$9)))) ->  | AZ10: =IF(BA10="","",ROUND(BA10,0)) ->  | BA10: =IF(C10="","",IF(AX10="","",((AX10+AY10)*$AZ$9/($AX$9+$AY$9)))) ->  | BD10: =IF(BE10="","",ROUND(BE10,0)) ->  | BE10: =IF(C10="","",IF(BB10="","",((BB10+BC10)*$BD$9/($BB$9+$BC$9)))) ->  | BH10: =IF(BI10="","",ROUND(BI10,0)) ->  | BI10: =IF(C10="","",IF(BF10="","",((BF10+BG10)*$BH$9/($BF$9+$BG$9)))) ->  | BL10: =IF(BM10="","",ROUND(BM10,0)) ->  | BM10: =IF(C10="","",IF(BJ10="","",((BJ10+BK10)*$BL$9/($BJ$9+$BK$9)))) ->  | BP10: =IF(BQ10="","",ROUND(BQ10,0)) ->  | BQ10: =IF(C10="","",IF(BN10="","",((BN10+BO10)*$BP$9/($BN$9+$BO$9)))) ->  | BT10: =IF(BU10="","",ROUND(BU10,0)) ->  | BU10: =IF(C10="","",IF(BR10="","",((BR10+BS10)*$BT$9/($BR$9+$BS$9)))) ->  | BX10: =IF(BY10="","",ROUND(BY10,0)) ->  | BY10: =IF(C10="","",IF(BV10="","",((BV10+BW10)*$BX$9/($BV$9+$BW$9)))) ->  | BZ10: =IF(AP10="","",SUM(AR10,AV10,AZ10,BD10,BH10,BL10,BP10,BT10,BX10)) ->  | CC10: =IF(CA10="","",SUM(CA10:CB10)) ->  | CF10: =IF(CD10="","",IF(CE10>CD10,CE10,CD10)) ->  | CI10: =IF(C10="","",IF($CG$9="","",SUM(CC10,CF10:CG10))) ->  | CJ10: =IF(ลงทะเบียน!I9="ออก","ออก",IF(ลงทะเบียน!I9="ย้าย","ย้าย",IF(CI10="","",IF(เวลาเรียน!DG12="","",IF(เวลาเรียน!DG12<80,"มส.",IF(ปก!$J$19="กิจกรรมพัฒนาผู้เรียน",(IF(CI10>=49.5,"ผ","มผ")),IF(CK10=-1,"ร",IF(CI10>=79.5,4,IF(CI10:CI10>=74.5,3.5,IF(CI10>=69.5,3,IF(CI10>=64.5,2.5,IF(CI10>=59.5,2,IF(CI10>=54.5,1.5,IF(CI10>=49.5,1,IF(CI10>=0,0))))))))))))))) ->  | CR10: =IF(CJ10="ออก","-",IF(CJ10="ย้าย","-",IF(C10="","",IF(CM10="","",IF(CN10="","",IF(CO10="","",IF(CP10="","",IF(CQ10="","",IF(CM10=0,0,IF(CN10=0,0,IF(CO10=0,0,IF(CP10=0,0,IF(CQ10=0,0,IF(CM10>3,0,IF(CN10>3,"",IF(CO10>3,"",IF(CP10>3,"",IF(CQ10>3,"",IF(ISNA(MODE(LARGE(CM10:CQ10,ROW(INDIRECT("1:"&COUNT(CM10:CQ10)))))),MAX(CM10:CQ10),MODE(LARGE(CM10:CQ10,ROW(INDIRECT("1:"&COUNT(CM10:CQ10)))))))))))))))))))))))) ->  | DB10: =IF(CJ10="ออก","-",IF(CJ10="ย้าย","-",IF(C10="","",IF(CT10="","",IF(CU10="","",IF(CV10="","",IF(CW10="","",IF(CX10="","",IF(CY10="","",IF(CZ10="","",IF(DA10="","",IF(CT10=0,0,IF(CU10=0,0,IF(CV10=0,0,IF(CW10=0,0,IF(CX10=0,0,IF(CY10=0,0,IF(CZ10=0,0,IF(DA10=0,0,IF(ISNA(MODE(LARGE(CT10:DA10,ROW(INDIRECT("1:"&COUNT(CT10:DA10)))))),MAX(CT10:DA10),MODE(LARGE(CT10:DA10,ROW(INDIRECT("1:"&COUNT(CT10:DA10))))))))))))))))))))))))) ->  | DC10: ตัวชี้วัดที่ 5
B11: 2 | C11: =IF(เวลาเรียน!D13="","",เวลาเรียน!D13) ->  | G11: =IF(H11="","",ROUND(H11,0)) ->  | H11: =IF(C11="","",IF(E11="","",((E11+F11)*$G$9/($E$9+$F$9)))) ->  | K11: =IF(L11="","",ROUND(L11,0)) ->  | L11: =IF(C11="","",IF(I11="","",((I11+J11)*$K$9/($I$9+$J$9)))) ->  | O11: =IF(P11="","",ROUND(P11,0)) ->  | P11: =IF(C11="","",IF(M11="","",((M11+N11)*$O$9/($M$9+$N$9)))) ->  | S11: =IF(T11="","",ROUND(T11,0)) ->  | T11: =IF(C11="","",IF(Q11="","",((Q11+R11)*$S$9/($Q$9+$R$9)))) ->  | W11: =IF(X11="","",ROUND(X11,0)) ->  | X11: =IF(C11="","",IF(U11="","",((U11+V11)*$W$9/($U$9+$V$9)))) ->  | AA11: =IF(AB11="","",ROUND(AB11,0)) ->  | AB11: =IF(C11="","",IF(Y11="","",((Y11+Z11)*$AA$9/($Y$9+$Z$9)))) ->  | AE11: =IF(AF11="","",ROUND(AF11,0)) ->  | AF11: =IF(C11="","",IF(AC11="","",((AC11+AD11)*$AE$9/($AC$9+$AD$9)))) ->  | AI11: =IF(AJ11="","",ROUND(AJ11,0)) ->  | AJ11: =IF(C11="","",IF(AG11="","",((AG11+AH11)*$AI$9/($AG$9+$AH$9)))) ->  | AM11: =IF(AN11="","",ROUND(AN11,0)) ->  | AN11: =IF(C11="","",IF(AK11="","",((AK11+AL11)*$AM$9/($AK$9+$AL$9)))) ->  | AR11: =IF(AS11="","",ROUND(AS11,0)) ->  | AS11: =IF(C11="","",IF(AP11="","",((AP11+AQ11)*$AR$9/($AP$9+$AQ$9)))) ->  | AV11: =IF(AW11="","",ROUND(AW11,0)) ->  | AW11: =IF(C11="","",IF(AT11="","",((AT11+AU11)*$AV$9/($AT$9+$AU$9)))) ->  | AZ11: =IF(BA11="","",ROUND(BA11,0)) ->  | BA11: =IF(C11="","",IF(AX11="","",((AX11+AY11)*$AZ$9/($AX$9+$AY$9)))) ->  | BD11: =IF(BE11="","",ROUND(BE11,0)) ->  | BE11: =IF(C11="","",IF(BB11="","",((BB11+BC11)*$BD$9/($BB$9+$BC$9)))) ->  | BH11: =IF(BI11="","",ROUND(BI11,0)) ->  | BI11: =IF(C11="","",IF(BF11="","",((BF11+BG11)*$BH$9/($BF$9+$BG$9)))) ->  | BL11: =IF(BM11="","",ROUND(BM11,0)) ->  | BM11: =IF(C11="","",IF(BJ11="","",((BJ11+BK11)*$BL$9/($BJ$9+$BK$9)))) ->  | BP11: =IF(BQ11="","",ROUND(BQ11,0)) ->  | BQ11: =IF(C11="","",IF(BN11="","",((BN11+BO11)*$BP$9/($BN$9+$BO$9)))) ->  | BT11: =IF(BU11="","",ROUND(BU11,0)) ->  | BU11: =IF(C11="","",IF(BR11="","",((BR11+BS11)*$BT$9/($BR$9+$BS$9)))) ->  | BX11: =IF(BY11="","",ROUND(BY11,0)) ->  | BY11: =IF(C11="","",IF(BV11="","",((BV11+BW11)*$BX$9/($BV$9+$BW$9)))) ->  | CF11: =IF(CD11="","",IF(CE11>CD11,CE11,CD11)) ->  | CI11: =IF(C11="","",IF($CG$9="","",SUM(CC11,CF11:CG11))) ->  | CJ11: =IF(ลงทะเบียน!I10="ออก","ออก",IF(ลงทะเบียน!I10="ย้าย","ย้าย",IF(CI11="","",IF(เวลาเรียน!DG13="","",IF(เวลาเรียน!DG13<80,"มส.",IF(ปก!$J$19="กิจกรรมพัฒนาผู้เรียน",(IF(CI11>=49.5,"ผ","มผ")),IF(CK11=-1,"ร",IF(CI11>=79.5,4,IF(CI11:CI11>=74.5,3.5,IF(CI11>=69.5,3,IF(CI11>=64.5,2.5,IF(CI11>=59.5,2,IF(CI11>=54.5,1.5,IF(CI11>=49.5,1,IF(CI11>=0,0))))))))))))))) ->  | DC11: ตัวชี้วัดที่ 6
B12: 3 | C12: =IF(เวลาเรียน!D14="","",เวลาเรียน!D14) ->  | CJ12: =IF(ลงทะเบียน!I11="ออก","ออก",IF(ลงทะเบียน!I11="ย้าย","ย้าย",IF(CI12="","",IF(เวลาเรียน!DG14="","",IF(เวลาเรียน!DG14<80,"มส.",IF(ปก!$J$19="กิจกรรมพัฒนาผู้เรียน",(IF(CI12>=49.5,"ผ","มผ")),IF(CK12=-1,"ร",IF(CI12>=79.5,4,IF(CI12:CI12>=74.5,3.5,IF(CI12>=69.5,3,IF(CI12>=64.5,2.5,IF(CI12>=59.5,2,IF(CI12>=54.5,1.5,IF(CI12>=49.5,1,IF(CI12>=0,0))))))))))))))) ->  | DC12: ตัวชี้วัดที่ 7
B13: 4 | C13: =IF(เวลาเรียน!D15="","",เวลาเรียน!D15) ->  | CJ13: =IF(ลงทะเบียน!I12="ออก","ออก",IF(ลงทะเบียน!I12="ย้าย","ย้าย",IF(CI13="","",IF(เวลาเรียน!DG15="","",IF(เวลาเรียน!DG15<80,"มส.",IF(ปก!$J$19="กิจกรรมพัฒนาผู้เรียน",(IF(CI13>=49.5,"ผ","มผ")),IF(CK13=-1,"ร",IF(CI13>=79.5,4,IF(CI13:CI13>=74.5,3.5,IF(CI13>=69.5,3,IF(CI13>=64.5,2.5,IF(CI13>=59.5,2,IF(CI13>=54.5,1.5,IF(CI13>=49.5,1,IF(CI13>=0,0))))))))))))))) ->  | DC13: ตัวชี้วัดที่ 8
B14: 5 | C14: =IF(เวลาเรียน!D16="","",เวลาเรียน!D16) ->  | CJ14: =IF(ลงทะเบียน!I13="ออก","ออก",IF(ลงทะเบียน!I13="ย้าย","ย้าย",IF(CI14="","",IF(เวลาเรียน!DG16="","",IF(เวลาเรียน!DG16<80,"มส.",IF(ปก!$J$19="กิจกรรมพัฒนาผู้เรียน",(IF(CI14>=49.5,"ผ","มผ")),IF(CK14=-1,"ร",IF(CI14>=79.5,4,IF(CI14:CI14>=74.5,3.5,IF(CI14>=69.5,3,IF(CI14>=64.5,2.5,IF(CI14>=59.5,2,IF(CI14>=54.5,1.5,IF(CI14>=49.5,1,IF(CI14>=0,0))))))))))))))) ->  | DC14: ตัวชี้วัดที่ 9
B15: 6 | C15: =IF(เวลาเรียน!D17="","",เวลาเรียน!D17) ->  | CJ15: =IF(ลงทะเบียน!I14="ออก","ออก",IF(ลงทะเบียน!I14="ย้าย","ย้าย",IF(CI15="","",IF(เวลาเรียน!DG17="","",IF(เวลาเรียน!DG17<80,"มส.",IF(ปก!$J$19="กิจกรรมพัฒนาผู้เรียน",(IF(CI15>=49.5,"ผ","มผ")),IF(CK15=-1,"ร",IF(CI15>=79.5,4,IF(CI15:CI15>=74.5,3.5,IF(CI15>=69.5,3,IF(CI15>=64.5,2.5,IF(CI15>=59.5,2,IF(CI15>=54.5,1.5,IF(CI15>=49.5,1,IF(CI15>=0,0))))))))))))))) ->  | DC15: ตัวชี้วัดที่ 10
B16: 7 | C16: =IF(เวลาเรียน!D18="","",เวลาเรียน!D18) ->  | CJ16: =IF(ลงทะเบียน!I15="ออก","ออก",IF(ลงทะเบียน!I15="ย้าย","ย้าย",IF(CI16="","",IF(เวลาเรียน!DG18="","",IF(เวลาเรียน!DG18<80,"มส.",IF(ปก!$J$19="กิจกรรมพัฒนาผู้เรียน",(IF(CI16>=49.5,"ผ","มผ")),IF(CK16=-1,"ร",IF(CI16>=79.5,4,IF(CI16:CI16>=74.5,3.5,IF(CI16>=69.5,3,IF(CI16>=64.5,2.5,IF(CI16>=59.5,2,IF(CI16>=54.5,1.5,IF(CI16>=49.5,1,IF(CI16>=0,0))))))))))))))) ->  | DC16: ตัวชี้วัดที่ 11
B17: 8 | C17: =IF(เวลาเรียน!D19="","",เวลาเรียน!D19) ->  | CJ17: =IF(ลงทะเบียน!I16="ออก","ออก",IF(ลงทะเบียน!I16="ย้าย","ย้าย",IF(CI17="","",IF(เวลาเรียน!DG19="","",IF(เวลาเรียน!DG19<80,"มส.",IF(ปก!$J$19="กิจกรรมพัฒนาผู้เรียน",(IF(CI17>=49.5,"ผ","มผ")),IF(CK17=-1,"ร",IF(CI17>=79.5,4,IF(CI17:CI17>=74.5,3.5,IF(CI17>=69.5,3,IF(CI17>=64.5,2.5,IF(CI17>=59.5,2,IF(CI17>=54.5,1.5,IF(CI17>=49.5,1,IF(CI17>=0,0))))))))))))))) ->  | DC17: ตัวชี้วัดที่ 12
B18: 9 | C18: =IF(เวลาเรียน!D20="","",เวลาเรียน!D20) ->  | CJ18: =IF(ลงทะเบียน!I17="ออก","ออก",IF(ลงทะเบียน!I17="ย้าย","ย้าย",IF(CI18="","",IF(เวลาเรียน!DG20="","",IF(เวลาเรียน!DG20<80,"มส.",IF(ปก!$J$19="กิจกรรมพัฒนาผู้เรียน",(IF(CI18>=49.5,"ผ","มผ")),IF(CK18=-1,"ร",IF(CI18>=79.5,4,IF(CI18:CI18>=74.5,3.5,IF(CI18>=69.5,3,IF(CI18>=64.5,2.5,IF(CI18>=59.5,2,IF(CI18>=54.5,1.5,IF(CI18>=49.5,1,IF(CI18>=0,0))))))))))))))) ->  | DC18: ตัวชี้วัดที่ 13
B19: 10 | C19: =IF(เวลาเรียน!D21="","",เวลาเรียน!D21) ->  | CJ19: =IF(ลงทะเบียน!I18="ออก","ออก",IF(ลงทะเบียน!I18="ย้าย","ย้าย",IF(CI19="","",IF(เวลาเรียน!DG21="","",IF(เวลาเรียน!DG21<80,"มส.",IF(ปก!$J$19="กิจกรรมพัฒนาผู้เรียน",(IF(CI19>=49.5,"ผ","มผ")),IF(CK19=-1,"ร",IF(CI19>=79.5,4,IF(CI19:CI19>=74.5,3.5,IF(CI19>=69.5,3,IF(CI19>=64.5,2.5,IF(CI19>=59.5,2,IF(CI19>=54.5,1.5,IF(CI19>=49.5,1,IF(CI19>=0,0))))))))))))))) ->  | DC19: ตัวชี้วัดที่ 14
B20: 11 | C20: =IF(เวลาเรียน!D22="","",เวลาเรียน!D22) ->  | CJ20: =IF(ลงทะเบียน!I19="ออก","ออก",IF(ลงทะเบียน!I19="ย้าย","ย้าย",IF(CI20="","",IF(เวลาเรียน!DG22="","",IF(เวลาเรียน!DG22<80,"มส.",IF(ปก!$J$19="กิจกรรมพัฒนาผู้เรียน",(IF(CI20>=49.5,"ผ","มผ")),IF(CK20=-1,"ร",IF(CI20>=79.5,4,IF(CI20:CI20>=74.5,3.5,IF(CI20>=69.5,3,IF(CI20>=64.5,2.5,IF(CI20>=59.5,2,IF(CI20>=54.5,1.5,IF(CI20>=49.5,1,IF(CI20>=0,0))))))))))))))) ->  | DC20: ตัวชี้วัดที่ 15
B21: 12 | C21: =IF(เวลาเรียน!D23="","",เวลาเรียน!D23) ->  | CJ21: =IF(ลงทะเบียน!I20="ออก","ออก",IF(ลงทะเบียน!I20="ย้าย","ย้าย",IF(CI21="","",IF(เวลาเรียน!DG23="","",IF(เวลาเรียน!DG23<80,"มส.",IF(ปก!$J$19="กิจกรรมพัฒนาผู้เรียน",(IF(CI21>=49.5,"ผ","มผ")),IF(CK21=-1,"ร",IF(CI21>=79.5,4,IF(CI21:CI21>=74.5,3.5,IF(CI21>=69.5,3,IF(CI21>=64.5,2.5,IF(CI21>=59.5,2,IF(CI21>=54.5,1.5,IF(CI21>=49.5,1,IF(CI21>=0,0))))))))))))))) ->  | DC21: ตัวชี้วัดที่ 16
B22: 13 | C22: =IF(เวลาเรียน!D24="","",เวลาเรียน!D24) ->  | CJ22: =IF(ลงทะเบียน!I21="ออก","ออก",IF(ลงทะเบียน!I21="ย้าย","ย้าย",IF(CI22="","",IF(เวลาเรียน!DG24="","",IF(เวลาเรียน!DG24<80,"มส.",IF(ปก!$J$19="กิจกรรมพัฒนาผู้เรียน",(IF(CI22>=49.5,"ผ","มผ")),IF(CK22=-1,"ร",IF(CI22>=79.5,4,IF(CI22:CI22>=74.5,3.5,IF(CI22>=69.5,3,IF(CI22>=64.5,2.5,IF(CI22>=59.5,2,IF(CI22>=54.5,1.5,IF(CI22>=49.5,1,IF(CI22>=0,0))))))))))))))) ->  | DC22: ตัวชี้วัดที่ 17
B23: 14 | C23: =IF(เวลาเรียน!D25="","",เวลาเรียน!D25) ->  | CJ23: =IF(ลงทะเบียน!I22="ออก","ออก",IF(ลงทะเบียน!I22="ย้าย","ย้าย",IF(CI23="","",IF(เวลาเรียน!DG25="","",IF(เวลาเรียน!DG25<80,"มส.",IF(ปก!$J$19="กิจกรรมพัฒนาผู้เรียน",(IF(CI23>=49.5,"ผ","มผ")),IF(CK23=-1,"ร",IF(CI23>=79.5,4,IF(CI23:CI23>=74.5,3.5,IF(CI23>=69.5,3,IF(CI23>=64.5,2.5,IF(CI23>=59.5,2,IF(CI23>=54.5,1.5,IF(CI23>=49.5,1,IF(CI23>=0,0))))))))))))))) ->  | DC23: ตัวชี้วัดที่ 18
B24: 15 | C24: =IF(เวลาเรียน!D26="","",เวลาเรียน!D26) ->  | CJ24: =IF(ลงทะเบียน!I23="ออก","ออก",IF(ลงทะเบียน!I23="ย้าย","ย้าย",IF(CI24="","",IF(เวลาเรียน!DG26="","",IF(เวลาเรียน!DG26<80,"มส.",IF(ปก!$J$19="กิจกรรมพัฒนาผู้เรียน",(IF(CI24>=49.5,"ผ","มผ")),IF(CK24=-1,"ร",IF(CI24>=79.5,4,IF(CI24:CI24>=74.5,3.5,IF(CI24>=69.5,3,IF(CI24>=64.5,2.5,IF(CI24>=59.5,2,IF(CI24>=54.5,1.5,IF(CI24>=49.5,1,IF(CI24>=0,0))))))))))))))) -> 
B25: 16 | C25: =IF(เวลาเรียน!D27="","",เวลาเรียน!D27) ->  | CJ25: =IF(ลงทะเบียน!I24="ออก","ออก",IF(ลงทะเบียน!I24="ย้าย","ย้าย",IF(CI25="","",IF(เวลาเรียน!DG27="","",IF(เวลาเรียน!DG27<80,"มส.",IF(ปก!$J$19="กิจกรรมพัฒนาผู้เรียน",(IF(CI25>=49.5,"ผ","มผ")),IF(CK25=-1,"ร",IF(CI25>=79.5,4,IF(CI25:CI25>=74.5,3.5,IF(CI25>=69.5,3,IF(CI25>=64.5,2.5,IF(CI25>=59.5,2,IF(CI25>=54.5,1.5,IF(CI25>=49.5,1,IF(CI25>=0,0))))))))))))))) -> 
B26: 17 | C26: =IF(เวลาเรียน!D28="","",เวลาเรียน!D28) ->  | CJ26: =IF(ลงทะเบียน!I25="ออก","ออก",IF(ลงทะเบียน!I25="ย้าย","ย้าย",IF(CI26="","",IF(เวลาเรียน!DG28="","",IF(เวลาเรียน!DG28<80,"มส.",IF(ปก!$J$19="กิจกรรมพัฒนาผู้เรียน",(IF(CI26>=49.5,"ผ","มผ")),IF(CK26=-1,"ร",IF(CI26>=79.5,4,IF(CI26:CI26>=74.5,3.5,IF(CI26>=69.5,3,IF(CI26>=64.5,2.5,IF(CI26>=59.5,2,IF(CI26>=54.5,1.5,IF(CI26>=49.5,1,IF(CI26>=0,0))))))))))))))) -> 
B27: 18 | C27: =IF(เวลาเรียน!D29="","",เวลาเรียน!D29) ->  | CJ27: =IF(ลงทะเบียน!I26="ออก","ออก",IF(ลงทะเบียน!I26="ย้าย","ย้าย",IF(CI27="","",IF(เวลาเรียน!DG29="","",IF(เวลาเรียน!DG29<80,"มส.",IF(ปก!$J$19="กิจกรรมพัฒนาผู้เรียน",(IF(CI27>=49.5,"ผ","มผ")),IF(CK27=-1,"ร",IF(CI27>=79.5,4,IF(CI27:CI27>=74.5,3.5,IF(CI27>=69.5,3,IF(CI27>=64.5,2.5,IF(CI27>=59.5,2,IF(CI27>=54.5,1.5,IF(CI27>=49.5,1,IF(CI27>=0,0))))))))))))))) -> 
B28: 19 | C28: =IF(เวลาเรียน!D30="","",เวลาเรียน!D30) ->  | CJ28: =IF(ลงทะเบียน!I27="ออก","ออก",IF(ลงทะเบียน!I27="ย้าย","ย้าย",IF(CI28="","",IF(เวลาเรียน!DG30="","",IF(เวลาเรียน!DG30<80,"มส.",IF(ปก!$J$19="กิจกรรมพัฒนาผู้เรียน",(IF(CI28>=49.5,"ผ","มผ")),IF(CK28=-1,"ร",IF(CI28>=79.5,4,IF(CI28:CI28>=74.5,3.5,IF(CI28>=69.5,3,IF(CI28>=64.5,2.5,IF(CI28>=59.5,2,IF(CI28>=54.5,1.5,IF(CI28>=49.5,1,IF(CI28>=0,0))))))))))))))) -> 
B29: 20 | C29: =IF(เวลาเรียน!D31="","",เวลาเรียน!D31) ->  | CJ29: =IF(ลงทะเบียน!I28="ออก","ออก",IF(ลงทะเบียน!I28="ย้าย","ย้าย",IF(CI29="","",IF(เวลาเรียน!DG31="","",IF(เวลาเรียน!DG31<80,"มส.",IF(ปก!$J$19="กิจกรรมพัฒนาผู้เรียน",(IF(CI29>=49.5,"ผ","มผ")),IF(CK29=-1,"ร",IF(CI29>=79.5,4,IF(CI29:CI29>=74.5,3.5,IF(CI29>=69.5,3,IF(CI29>=64.5,2.5,IF(CI29>=59.5,2,IF(CI29>=54.5,1.5,IF(CI29>=49.5,1,IF(CI29>=0,0))))))))))))))) -> 
B30: 21 | C30: =IF(เวลาเรียน!D32="","",เวลาเรียน!D32) ->  | CJ30: =IF(ลงทะเบียน!I29="ออก","ออก",IF(ลงทะเบียน!I29="ย้าย","ย้าย",IF(CI30="","",IF(เวลาเรียน!DG32="","",IF(เวลาเรียน!DG32<80,"มส.",IF(ปก!$J$19="กิจกรรมพัฒนาผู้เรียน",(IF(CI30>=49.5,"ผ","มผ")),IF(CK30=-1,"ร",IF(CI30>=79.5,4,IF(CI30:CI30>=74.5,3.5,IF(CI30>=69.5,3,IF(CI30>=64.5,2.5,IF(CI30>=59.5,2,IF(CI30>=54.5,1.5,IF(CI30>=49.5,1,IF(CI30>=0,0))))))))))))))) -> 
B31: 22 | C31: =IF(เวลาเรียน!D33="","",เวลาเรียน!D33) ->  | CJ31: =IF(ลงทะเบียน!I30="ออก","ออก",IF(ลงทะเบียน!I30="ย้าย","ย้าย",IF(CI31="","",IF(เวลาเรียน!DG33="","",IF(เวลาเรียน!DG33<80,"มส.",IF(ปก!$J$19="กิจกรรมพัฒนาผู้เรียน",(IF(CI31>=49.5,"ผ","มผ")),IF(CK31=-1,"ร",IF(CI31>=79.5,4,IF(CI31:CI31>=74.5,3.5,IF(CI31>=69.5,3,IF(CI31>=64.5,2.5,IF(CI31>=59.5,2,IF(CI31>=54.5,1.5,IF(CI31>=49.5,1,IF(CI31>=0,0))))))))))))))) -> 
B32: 23 | C32: =IF(เวลาเรียน!D34="","",เวลาเรียน!D34) ->  | CJ32: =IF(ลงทะเบียน!I31="ออก","ออก",IF(ลงทะเบียน!I31="ย้าย","ย้าย",IF(CI32="","",IF(เวลาเรียน!DG34="","",IF(เวลาเรียน!DG34<80,"มส.",IF(ปก!$J$19="กิจกรรมพัฒนาผู้เรียน",(IF(CI32>=49.5,"ผ","มผ")),IF(CK32=-1,"ร",IF(CI32>=79.5,4,IF(CI32:CI32>=74.5,3.5,IF(CI32>=69.5,3,IF(CI32>=64.5,2.5,IF(CI32>=59.5,2,IF(CI32>=54.5,1.5,IF(CI32>=49.5,1,IF(CI32>=0,0))))))))))))))) -> 
B33: 24 | C33: =IF(เวลาเรียน!D35="","",เวลาเรียน!D35) ->  | CJ33: =IF(ลงทะเบียน!I32="ออก","ออก",IF(ลงทะเบียน!I32="ย้าย","ย้าย",IF(CI33="","",IF(เวลาเรียน!DG35="","",IF(เวลาเรียน!DG35<80,"มส.",IF(ปก!$J$19="กิจกรรมพัฒนาผู้เรียน",(IF(CI33>=49.5,"ผ","มผ")),IF(CK33=-1,"ร",IF(CI33>=79.5,4,IF(CI33:CI33>=74.5,3.5,IF(CI33>=69.5,3,IF(CI33>=64.5,2.5,IF(CI33>=59.5,2,IF(CI33>=54.5,1.5,IF(CI33>=49.5,1,IF(CI33>=0,0))))))))))))))) -> 
B34: 25 | C34: =IF(เวลาเรียน!D36="","",เวลาเรียน!D36) ->  | CJ34: =IF(ลงทะเบียน!I33="ออก","ออก",IF(ลงทะเบียน!I33="ย้าย","ย้าย",IF(CI34="","",IF(เวลาเรียน!DG36="","",IF(เวลาเรียน!DG36<80,"มส.",IF(ปก!$J$19="กิจกรรมพัฒนาผู้เรียน",(IF(CI34>=49.5,"ผ","มผ")),IF(CK34=-1,"ร",IF(CI34>=79.5,4,IF(CI34:CI34>=74.5,3.5,IF(CI34>=69.5,3,IF(CI34>=64.5,2.5,IF(CI34>=59.5,2,IF(CI34>=54.5,1.5,IF(CI34>=49.5,1,IF(CI34>=0,0))))))))))))))) -> 
B35: 26 | C35: =IF(เวลาเรียน!D37="","",เวลาเรียน!D37) ->  | CJ35: =IF(ลงทะเบียน!I34="ออก","ออก",IF(ลงทะเบียน!I34="ย้าย","ย้าย",IF(CI35="","",IF(เวลาเรียน!DG37="","",IF(เวลาเรียน!DG37<80,"มส.",IF(ปก!$J$19="กิจกรรมพัฒนาผู้เรียน",(IF(CI35>=49.5,"ผ","มผ")),IF(CK35=-1,"ร",IF(CI35>=79.5,4,IF(CI35:CI35>=74.5,3.5,IF(CI35>=69.5,3,IF(CI35>=64.5,2.5,IF(CI35>=59.5,2,IF(CI35>=54.5,1.5,IF(CI35>=49.5,1,IF(CI35>=0,0))))))))))))))) -> 
B36: 27 | C36: =IF(เวลาเรียน!D38="","",เวลาเรียน!D38) ->  | CJ36: =IF(ลงทะเบียน!I35="ออก","ออก",IF(ลงทะเบียน!I35="ย้าย","ย้าย",IF(CI36="","",IF(เวลาเรียน!DG38="","",IF(เวลาเรียน!DG38<80,"มส.",IF(ปก!$J$19="กิจกรรมพัฒนาผู้เรียน",(IF(CI36>=49.5,"ผ","มผ")),IF(CK36=-1,"ร",IF(CI36>=79.5,4,IF(CI36:CI36>=74.5,3.5,IF(CI36>=69.5,3,IF(CI36>=64.5,2.5,IF(CI36>=59.5,2,IF(CI36>=54.5,1.5,IF(CI36>=49.5,1,IF(CI36>=0,0))))))))))))))) -> 
B37: 28 | C37: =IF(เวลาเรียน!D39="","",เวลาเรียน!D39) ->  | CJ37: =IF(ลงทะเบียน!I36="ออก","ออก",IF(ลงทะเบียน!I36="ย้าย","ย้าย",IF(CI37="","",IF(เวลาเรียน!DG39="","",IF(เวลาเรียน!DG39<80,"มส.",IF(ปก!$J$19="กิจกรรมพัฒนาผู้เรียน",(IF(CI37>=49.5,"ผ","มผ")),IF(CK37=-1,"ร",IF(CI37>=79.5,4,IF(CI37:CI37>=74.5,3.5,IF(CI37>=69.5,3,IF(CI37>=64.5,2.5,IF(CI37>=59.5,2,IF(CI37>=54.5,1.5,IF(CI37>=49.5,1,IF(CI37>=0,0))))))))))))))) -> 
B38: 29 | C38: =IF(เวลาเรียน!D40="","",เวลาเรียน!D40) ->  | CJ38: =IF(ลงทะเบียน!I37="ออก","ออก",IF(ลงทะเบียน!I37="ย้าย","ย้าย",IF(CI38="","",IF(เวลาเรียน!DG40="","",IF(เวลาเรียน!DG40<80,"มส.",IF(ปก!$J$19="กิจกรรมพัฒนาผู้เรียน",(IF(CI38>=49.5,"ผ","มผ")),IF(CK38=-1,"ร",IF(CI38>=79.5,4,IF(CI38:CI38>=74.5,3.5,IF(CI38>=69.5,3,IF(CI38>=64.5,2.5,IF(CI38>=59.5,2,IF(CI38>=54.5,1.5,IF(CI38>=49.5,1,IF(CI38>=0,0))))))))))))))) -> 
B39: 30 | C39: =IF(เวลาเรียน!D41="","",เวลาเรียน!D41) ->  | CJ39: =IF(ลงทะเบียน!I38="ออก","ออก",IF(ลงทะเบียน!I38="ย้าย","ย้าย",IF(CI39="","",IF(เวลาเรียน!DG41="","",IF(เวลาเรียน!DG41<80,"มส.",IF(ปก!$J$19="กิจกรรมพัฒนาผู้เรียน",(IF(CI39>=49.5,"ผ","มผ")),IF(CK39=-1,"ร",IF(CI39>=79.5,4,IF(CI39:CI39>=74.5,3.5,IF(CI39>=69.5,3,IF(CI39>=64.5,2.5,IF(CI39>=59.5,2,IF(CI39>=54.5,1.5,IF(CI39>=49.5,1,IF(CI39>=0,0))))))))))))))) -> 
B40: 31 | C40: =IF(เวลาเรียน!D42="","",เวลาเรียน!D42) ->  | CJ40: =IF(ลงทะเบียน!I39="ออก","ออก",IF(ลงทะเบียน!I39="ย้าย","ย้าย",IF(CI40="","",IF(เวลาเรียน!DG42="","",IF(เวลาเรียน!DG42<80,"มส.",IF(ปก!$J$19="กิจกรรมพัฒนาผู้เรียน",(IF(CI40>=49.5,"ผ","มผ")),IF(CK40=-1,"ร",IF(CI40>=79.5,4,IF(CI40:CI40>=74.5,3.5,IF(CI40>=69.5,3,IF(CI40>=64.5,2.5,IF(CI40>=59.5,2,IF(CI40>=54.5,1.5,IF(CI40>=49.5,1,IF(CI40>=0,0))))))))))))))) -> 
B41: 32 | C41: =IF(เวลาเรียน!D43="","",เวลาเรียน!D43) ->  | CJ41: =IF(ลงทะเบียน!I40="ออก","ออก",IF(ลงทะเบียน!I40="ย้าย","ย้าย",IF(CI41="","",IF(เวลาเรียน!DG43="","",IF(เวลาเรียน!DG43<80,"มส.",IF(ปก!$J$19="กิจกรรมพัฒนาผู้เรียน",(IF(CI41>=49.5,"ผ","มผ")),IF(CK41=-1,"ร",IF(CI41>=79.5,4,IF(CI41:CI41>=74.5,3.5,IF(CI41>=69.5,3,IF(CI41>=64.5,2.5,IF(CI41>=59.5,2,IF(CI41>=54.5,1.5,IF(CI41>=49.5,1,IF(CI41>=0,0))))))))))))))) -> 
B42: 33 | C42: =IF(เวลาเรียน!D44="","",เวลาเรียน!D44) ->  | CJ42: =IF(ลงทะเบียน!I41="ออก","ออก",IF(ลงทะเบียน!I41="ย้าย","ย้าย",IF(CI42="","",IF(เวลาเรียน!DG44="","",IF(เวลาเรียน!DG44<80,"มส.",IF(ปก!$J$19="กิจกรรมพัฒนาผู้เรียน",(IF(CI42>=49.5,"ผ","มผ")),IF(CK42=-1,"ร",IF(CI42>=79.5,4,IF(CI42:CI42>=74.5,3.5,IF(CI42>=69.5,3,IF(CI42>=64.5,2.5,IF(CI42>=59.5,2,IF(CI42>=54.5,1.5,IF(CI42>=49.5,1,IF(CI42>=0,0))))))))))))))) -> 
B43: 34 | C43: =IF(เวลาเรียน!D45="","",เวลาเรียน!D45) ->  | CJ43: =IF(ลงทะเบียน!I42="ออก","ออก",IF(ลงทะเบียน!I42="ย้าย","ย้าย",IF(CI43="","",IF(เวลาเรียน!DG45="","",IF(เวลาเรียน!DG45<80,"มส.",IF(ปก!$J$19="กิจกรรมพัฒนาผู้เรียน",(IF(CI43>=49.5,"ผ","มผ")),IF(CK43=-1,"ร",IF(CI43>=79.5,4,IF(CI43:CI43>=74.5,3.5,IF(CI43>=69.5,3,IF(CI43>=64.5,2.5,IF(CI43>=59.5,2,IF(CI43>=54.5,1.5,IF(CI43>=49.5,1,IF(CI43>=0,0))))))))))))))) -> 
B44: 35 | C44: =IF(เวลาเรียน!D46="","",เวลาเรียน!D46) ->  | CJ44: =IF(ลงทะเบียน!I43="ออก","ออก",IF(ลงทะเบียน!I43="ย้าย","ย้าย",IF(CI44="","",IF(เวลาเรียน!DG46="","",IF(เวลาเรียน!DG46<80,"มส.",IF(ปก!$J$19="กิจกรรมพัฒนาผู้เรียน",(IF(CI44>=49.5,"ผ","มผ")),IF(CK44=-1,"ร",IF(CI44>=79.5,4,IF(CI44:CI44>=74.5,3.5,IF(CI44>=69.5,3,IF(CI44>=64.5,2.5,IF(CI44>=59.5,2,IF(CI44>=54.5,1.5,IF(CI44>=49.5,1,IF(CI44>=0,0))))))))))))))) -> 
B45: 36 | C45: =IF(เวลาเรียน!D47="","",เวลาเรียน!D47) ->  | CJ45: =IF(ลงทะเบียน!I44="ออก","ออก",IF(ลงทะเบียน!I44="ย้าย","ย้าย",IF(CI45="","",IF(เวลาเรียน!DG47="","",IF(เวลาเรียน!DG47<80,"มส.",IF(ปก!$J$19="กิจกรรมพัฒนาผู้เรียน",(IF(CI45>=49.5,"ผ","มผ")),IF(CK45=-1,"ร",IF(CI45>=79.5,4,IF(CI45:CI45>=74.5,3.5,IF(CI45>=69.5,3,IF(CI45>=64.5,2.5,IF(CI45>=59.5,2,IF(CI45>=54.5,1.5,IF(CI45>=49.5,1,IF(CI45>=0,0))))))))))))))) -> 
B46: 37 | C46: =IF(เวลาเรียน!D48="","",เวลาเรียน!D48) ->  | CJ46: =IF(ลงทะเบียน!I45="ออก","ออก",IF(ลงทะเบียน!I45="ย้าย","ย้าย",IF(CI46="","",IF(เวลาเรียน!DG48="","",IF(เวลาเรียน!DG48<80,"มส.",IF(ปก!$J$19="กิจกรรมพัฒนาผู้เรียน",(IF(CI46>=49.5,"ผ","มผ")),IF(CK46=-1,"ร",IF(CI46>=79.5,4,IF(CI46:CI46>=74.5,3.5,IF(CI46>=69.5,3,IF(CI46>=64.5,2.5,IF(CI46>=59.5,2,IF(CI46>=54.5,1.5,IF(CI46>=49.5,1,IF(CI46>=0,0))))))))))))))) -> 
B47: 38 | C47: =IF(เวลาเรียน!D49="","",เวลาเรียน!D49) ->  | CJ47: =IF(ลงทะเบียน!I46="ออก","ออก",IF(ลงทะเบียน!I46="ย้าย","ย้าย",IF(CI47="","",IF(เวลาเรียน!DG49="","",IF(เวลาเรียน!DG49<80,"มส.",IF(ปก!$J$19="กิจกรรมพัฒนาผู้เรียน",(IF(CI47>=49.5,"ผ","มผ")),IF(CK47=-1,"ร",IF(CI47>=79.5,4,IF(CI47:CI47>=74.5,3.5,IF(CI47>=69.5,3,IF(CI47>=64.5,2.5,IF(CI47>=59.5,2,IF(CI47>=54.5,1.5,IF(CI47>=49.5,1,IF(CI47>=0,0))))))))))))))) -> 
B48: 39 | C48: =IF(เวลาเรียน!D50="","",เวลาเรียน!D50) ->  | CJ48: =IF(ลงทะเบียน!I47="ออก","ออก",IF(ลงทะเบียน!I47="ย้าย","ย้าย",IF(CI48="","",IF(เวลาเรียน!DG50="","",IF(เวลาเรียน!DG50<80,"มส.",IF(ปก!$J$19="กิจกรรมพัฒนาผู้เรียน",(IF(CI48>=49.5,"ผ","มผ")),IF(CK48=-1,"ร",IF(CI48>=79.5,4,IF(CI48:CI48>=74.5,3.5,IF(CI48>=69.5,3,IF(CI48>=64.5,2.5,IF(CI48>=59.5,2,IF(CI48>=54.5,1.5,IF(CI48>=49.5,1,IF(CI48>=0,0))))))))))))))) -> 
B49: 40 | C49: =IF(เวลาเรียน!D51="","",เวลาเรียน!D51) ->  | CJ49: =IF(ลงทะเบียน!I48="ออก","ออก",IF(ลงทะเบียน!I48="ย้าย","ย้าย",IF(CI49="","",IF(เวลาเรียน!DG51="","",IF(เวลาเรียน!DG51<80,"มส.",IF(ปก!$J$19="กิจกรรมพัฒนาผู้เรียน",(IF(CI49>=49.5,"ผ","มผ")),IF(CK49=-1,"ร",IF(CI49>=79.5,4,IF(CI49:CI49>=74.5,3.5,IF(CI49>=69.5,3,IF(CI49>=64.5,2.5,IF(CI49>=59.5,2,IF(CI49>=54.5,1.5,IF(CI49>=49.5,1,IF(CI49>=0,0))))))))))))))) -> 
B50: 41 | C50: =IF(เวลาเรียน!D52="","",เวลาเรียน!D52) ->  | CJ50: =IF(ลงทะเบียน!I49="ออก","ออก",IF(ลงทะเบียน!I49="ย้าย","ย้าย",IF(CI50="","",IF(เวลาเรียน!DG52="","",IF(เวลาเรียน!DG52<80,"มส.",IF(ปก!$J$19="กิจกรรมพัฒนาผู้เรียน",(IF(CI50>=49.5,"ผ","มผ")),IF(CK50=-1,"ร",IF(CI50>=79.5,4,IF(CI50:CI50>=74.5,3.5,IF(CI50>=69.5,3,IF(CI50>=64.5,2.5,IF(CI50>=59.5,2,IF(CI50>=54.5,1.5,IF(CI50>=49.5,1,IF(CI50>=0,0))))))))))))))) -> 
B51: 42 | C51: =IF(เวลาเรียน!D53="","",เวลาเรียน!D53) ->  | CJ51: =IF(ลงทะเบียน!I50="ออก","ออก",IF(ลงทะเบียน!I50="ย้าย","ย้าย",IF(CI51="","",IF(เวลาเรียน!DG53="","",IF(เวลาเรียน!DG53<80,"มส.",IF(ปก!$J$19="กิจกรรมพัฒนาผู้เรียน",(IF(CI51>=49.5,"ผ","มผ")),IF(CK51=-1,"ร",IF(CI51>=79.5,4,IF(CI51:CI51>=74.5,3.5,IF(CI51>=69.5,3,IF(CI51>=64.5,2.5,IF(CI51>=59.5,2,IF(CI51>=54.5,1.5,IF(CI51>=49.5,1,IF(CI51>=0,0))))))))))))))) -> 
B52: 43 | C52: =IF(เวลาเรียน!D54="","",เวลาเรียน!D54) ->  | CJ52: =IF(ลงทะเบียน!I51="ออก","ออก",IF(ลงทะเบียน!I51="ย้าย","ย้าย",IF(CI52="","",IF(เวลาเรียน!DG54="","",IF(เวลาเรียน!DG54<80,"มส.",IF(ปก!$J$19="กิจกรรมพัฒนาผู้เรียน",(IF(CI52>=49.5,"ผ","มผ")),IF(CK52=-1,"ร",IF(CI52>=79.5,4,IF(CI52:CI52>=74.5,3.5,IF(CI52>=69.5,3,IF(CI52>=64.5,2.5,IF(CI52>=59.5,2,IF(CI52>=54.5,1.5,IF(CI52>=49.5,1,IF(CI52>=0,0))))))))))))))) -> 

Sheet คำอธิบายรายวิชา
B8: คำอธิบายรายวิชา
C9: รายวิชา | E9: =IF(ปก!J18="","",ปก!J18) ->  | O9: รหัสวิชา | P9: =IF(ปก!Z18="","",ปก!Z18) -> 
C10: ลักษณะวิชา | E10: =IF(ปก!J19="","",ปก!J19) ->  | J10: กลุ่มสาระการเรียนรู้ | N10: =IF(ปก!J17="","",ปก!J17) -> 
C11: ระดับชั้น | E11: =IF(ปก!I16="","",ปก!I16) ->  | J11: ภาคเรียนที่ | L11: =IF(ปก!AD16="","",ปก!AD16) ->  | O11: จำนวน | P11: =IF(ปก!AA19="","",ปก!AA19) ->  | R11: หน่วยกิต
E12: เวลา | F12: =IF(ปก!S19="","",ปก!S19*20) ->  | H12: ชั่วโมง/ภาค | O12: เวลาเรียน | P12: =IF(F12="","",F12/20) ->  | R12: ชั่วโมง/สัปดาห์
Z52: smw

Sheet กำหนดชิ้นงาน
B7: การกำหนดชิ้นงาน / งาน / โครงงาน / แบบฝึกหัด ประกอบการเรียนรู้และวัดประเมินผล
B9: ลำดับ ที่ | C9: งานที่มอบหมาย | D9: กำหนดส่ง | E9: คะแนน | F9: ตรงกับผลการเรียนรู้ หรือตัวชี้วัดข้อที่ | G9: หมายเหตุ
C10: ewfq
F24: รองฯ กลุ่มงานวิชาการ
D25: วันที่
F29: ผู้บริหาร
D30: วันที่

Sheet ปกหลัง
B7: การนับเวลาเรียน | K7: รายการประเมินคุณลักษณะอันพึงประสงค์ของผู้เรียน
B8: จำนวนชั่วโมง | D8: จำนวนชั่วโมง | F8: เวลาเรียน | H8: เวลาเรียน | K8:  รักชาติ ศาสน์ กษัตริย์
B9: ทั้งหมด | D9: ที่ต้องเรียน | F9: 0.8 | H9: 0.6 | K9: ตัวชี้วัด
B10: ต่อภาค | D10: ต่อภาค | K10: 1.1 เป็นผลเมืองที่ดีของชาติ
B11: 20 | D11: 20 | F11: 16 | H11: 12 | K11: 1.2 ธำรงไว้ซึ่งความเป็นไทย
B12: 40 | D12: 40 | F12: 32 | H12: 24 | K12: 1.3 ศรัทธา ยึดมั่น และปฏิบัติตนตามหลักศาสนา
B13: 60 | D13: 60 | F13: 48 | H13: 36 | K13: 1.4 เคารพเทิดทูนสถาบันพระมหากษัตริย์
B14: 80 | D14: 80 | F14: 64 | H14: 48 | K14:  ซื่อสัตย์สุจริต
B15: 100 | D15: 100 | F15: 80 | H15: 60 | K15: ตัวชี้วัด
K16: 2.1 ประพฤติตรงตามความเป็นจริงต่อคนเองทั้งกาย และวาจา ใจ
B17: การกำหนดระดับผลการเรียน | K17: 2.2 ประพฤติตรงตามเป็นจริงต่อผู้อื่นทั้ง กาย วาจา ใจ
B18: เกรด | C18: ความหมาย | H18: ช่วง | K18:  มีวินัย
H19: คะแนน | K19: ตัวชี้วัด
B20: 4 | C20: หมายถึง ผลการเรียนดีเยี่ยม | H20: 80-100 | K20: 3.1 ประพฤติตามข้อตกลง กฎเกณฑ์ ระเบียบข้อบังคับของครอบครัว โรงเรียน และสังคม
B21: 3.5 | C21: หมายถึง ผลการเรียนดีมาก | H21: 75-79 | K21:  ใฝ่เรียนรู้
B22: 3 | C22: หมายถึง ผลการเรียนดี | H22: 70-74 | K22: ตัวชี้วัด
B23: 2.5 | C23: หมายถึง ผลการเรียนค่อนข้างดี | H23: 65-69 | K23: 4.1 ตั้งใจเพียงพยายามในการเรียน และเข้าร่วมกิจกรรมการเรียนรู้
B24: 2 | C24: หมายถึง ผลการเรียนน่าพอใจ | H24: 60-64 | K24: 4.2 แสวงหาความรู้รู้จากแหล่งเรียนรู้ต่าง ๆ ทั้งภายในและภายนอกโรงเรียนด้วยการเลือก
B25: 1.5 | C25: หมายถึง ผลการเรียนพอใช้ | H25: 55-59 | K25: ใช้สื่ออย่างเหมาะสม สรุปเป็นองค์ความรู้ และสามารถนำไปใช้ในชีวิตประจำวันได้
B26: 1 | C26: หมายถึง ผลการเรียนผ่านเกณฑ์ขั้นต่ำ | H26: 50-54 | K26:  อยู่อย่างพอเพียง
B27: 0 | C27: หมายถึง ผลการเรียนต่ำกว่าเกณฑ์ | H27: 0 -49 | K27: ตัวชี้วัด
K28: 5.1 ดำเนินชีวิตอย่างพอประมาณ มีเหตุผล รอบคอบ มีคุณธรรม
B29: การประเมินคุณลักษณะอันพึงประสงค์ | K29: 5.2 มีภูมิคุ้มกันในตัวที่ดี ปรับตัวเพื่ออยู่ในสังคมได้อย่างมีความสุข
B30:  ครูผู้สอนมีหน้าที่ดำเนินการพัฒนาให้ผู้เรียนมีคุณลักษณะ | K30:  มุ่งมั่นในการทำงาน
B31: อันพึงประสงค์ของสถานศึกษา และประเมินผลการพัฒนานั้น | K31: ตัวชี้วัด
B32:  ดำเนินการพัฒนาผู้เรียนตามแนวทางและเครื่องมือที่ | K32: 6.1 ตั้งใจและรับผิดชอบในหน้าที่การงาน
B33: โรงเรียนกำหนด โดยบูรณาการกับรายวิชาที่สอนและประเมินผล | K33: 6.2 ทำงานด้วยเพียงพยายามและอดทนเพื่อให้สำเร็จตามเป้าหมาย
B34: เป็นระยะๆ อย่างต่อเนื่องหรือตามสถานการณ์ที่เหมาะสม | K34:  รักความเป็นไทย
B35:  ให้นำผลการประเมินจากเครื่องมือ สรุปลงในแบบ ปพ.5 นี้ | K35: ตัวชี้วัด
B36: เมื่อสิ้นภาคเรียน | K36: 7.1 ภาคภูมิใจในขนบธรรมเนียมประเพณี ศิลปะ วัฒนธรรมไทยและมีความกตัญญูกตเวที
K37: 7.2 เห็นคุณค่าและใช้ภาษาไทยในการสื่อสารได้อย่างถูกต้องเหมาะสม
B38: การประเมินการอ่าน คิด วิเคราะห์ และเขียน | K38: 7.3 อนุรักษ์และสืบทอดภูมิปัญญาไทย
B39:  ครูผู้สอนมีหน้าที่ประเมินการอ่าน คิด วิเคราะห์ และ เขียน | K39:  มีจิตสาธารณะ
B40:  วิธีการประเมินให้บูรณาการกับรายวิชาที่สอน โดยวัดผล | K40: ตัวชี้วัด
B41: จากวิธีการ/เครื่องมือที่เหมาะสม | K41: 8.1 ช่วยเหลือผู้อื่นด้วยด้วยความเต็มใจโดยไม่หวังผลตอบแทน
B42:  ให้นำผลการประเมินจากเครื่องมือ สรุปลงในแบบ ปพ.5 นี้ | K42: 8.2 เข้าร่วมกิจกรรมที่เป็นประโยชน์ต่อโรงเรียน ชุมชน และสังคม
B43: เมื่อสิ้นภาคเรียน
K44: รายการประเมิน อ่าน คิดวิเคราะห์ และเขียน
B45: เกณฑ์การประเมิน | K45:  สามารถอ่านเพื่อการศึกษา ค้นคว้า เพิ่มพูนความรู้ ประสบการณ์และการประยุกต์ใช้ในชีวิต
B46: µ คุณลักษณะอันพึงประสงค์ | K46: ประจำวัน
B47: µ การอ่าน คิด วิเคราะห์ และเขียน | K47:  สามารถจับประเด็นสำคัญลำดับเหตุการณ์จากการอ่านสื่อที่มีความซับซ้อน
B48: ระดับคุณภาพ | F48: ผลการประเมิน | K48:  สามารถวิเคราะห์สิ่งที่ผู้เขียนต้องการสื่อสารกับผู้อ่าน และสามารถวิพาทย์ ให้ข้อเสนอแนะ
B49: ดีเยี่ยม | F49: 3 | K49: ในแง่มุมต่างๆ
B50: ดี | F50: 2 | K50:  สามารถประเมินความน่าเชื่อถือ คุณค่า แนวคิดที่ได้จากสิ่งที่อ่านอย่างหลากหลาย
B51: ผ่าน | F51: 1 | K51:  สามารถเขียนแสดงความคิดเห็นโต้แย้ง สรุป โดยมีข้อมูลอธิบายสนับสนุนอย่างเพียงพอ
B52: ไม่ผ่าน | F52: 0 | K52: และสมเหตุสมผล
D54: จัดทำโดย กลุ่มงานวิชาการ โรงเรียนสมเสม็ดวิทยา
D55: พิมพ์ที่ โรงเรียนสมเสม็ดวิทยา 175 หมู่ที่ 5 ตำบลชุมแสง อำเภอสตึก จังหวัดบุรีรัมย์

Sheet รายชื่อนักเรียน
B6: มัธยมศึกษาปีที่ 1 ห้อง 1 | F6: ห้อง | H6: มัธยมศึกษาปีที่ 1 ห้อง 2 | L6: ห้อง | N6: มัธยมศึกษาปีที่ 2 ห้อง 1 | R6: ห้อง | T6: มัธยมศึกษาปีที่ 2 ห้อง 2 | X6: ห้อง | Z6: มัธยมศึกษาปีที่ 3 ห้อง 1 | AD6: ห้อง | AF6: มัธยมศึกษาปีที่ 3 ห้อง 2 | AJ6: ห้อง | AL6: มัธยมศึกษาปีที่ 4 | AP6: ห้อง | AR6: มัธยมศึกษาปีที่ 5 | AV6: ห้อง | AX6: มัธยมศึกษาปีที่ 6 | BB6: ห้อง | BD6: กิจกรรมชุมนุม
B7: 1 | C7: 01644 | D7: เด็กชายกิตติศักดิ์ ไชยปัญญา | F7: ม.1-1 | H7: 1 | I7: 01671 | J7: เด็กชายกฤตกร ยอดรัก | L7: ม.1-2 | N7: 1 | O7: 1594 | P7: เด็กชายจิรเดช เจ็ดรัมย์ | R7: ม.2-1 | T7: 1 | U7: 1593 | V7: เด็กชายกฤษณะ เจียรัมย์ | X7: ม2-2 | Z7: 1 | AA7: 1545 | AB7: เด็กชายกวิน ถะเกิงสุข | AD7: ม3-1 | AF7: 1 | AG7: 1548 | AH7: เด็กชายณัฐวุฒิ สุขจิตต์ | AJ7: ม3-2 | AL7: 1 | AM7: 1512 | AN7: นายพงศ์ภัค ดีบัว | AP7: ม.4 | AR7: 1 | AS7: 1445 | AT7: นายคมสันต์ ศรีปัญญา | AV7: ม.5-1 | AX7: 1 | AY7: 1449 | AZ7: นายธนาวุฒิ สุขจิตต์ | BB7: ม.6-1 | BD7: 1
B8: 2 | C8: 01645 | D8: เด็กชายธีรเดช ดียิ่ง | F8: ม.1-1 | H8: 2 | I8: 01672 | J8: เด็กชายกฤษณะ ถะเกิงสุข | L8: ม.1-2 | N8: 2 | O8: 1597 | P8: เด็กชายธนพงศ์ ไพรศรี | R8: ม.2-1 | T8: 2 | U8: 1595 | V8: เด็กชายเจนภพ บุศราคัม | X8: ม2-2 | Z8: 2 | AA8: 1546 | AB8: เด็กชายกิตติกร กระแสโสม | AD8: ม3-1 | AF8: 2 | AG8: 1549 | AH8: เด็กชายเด่นชัย ชินรัมย์ | AJ8: ม3-2 | AL8: 2 | AM8: 1519 | AN8: นางสาวกัลยา แสนจันทร์ | AP8: ม.4 | AR8: 2 | AS8: 01472 | AT8: นายเจษฎา แก้วมณี | AV8: ม.5-1 | AX8: 2 | AY8: 1451 | AZ8: นายภีรพงษ์ ศรีสุข | BB8: ม.6-1 | BD8: 2
B9: 3 | C9: 01646 | D9: เด็กชายธีรภัทร โยธิมาศ | F9: ม.1-1 | H9: 3 | I9: 01673 | J9: เด็กชายกฤษณะ บุญมาก | L9: ม.1-2 | N9: 3 | O9: 1606 | P9: เด็กชายวิชิต เชิดนาม | R9: ม.2-1 | T9: 3 | U9: 1598 | V9: เด็กชายธนพล วิชาธรรม | X9: ม2-2 | Z9: 3 | AA9: 1553 | AB9: เด็กชายปภิณวิชญ์ ปิวะพงษ์ | AD9: ม3-1 | AF9: 3 | AG9: 1550 | AH9: เด็กชายธนวัฒน์ หลักหนองบัว | AJ9: ม3-2 | AL9: 3 | AM9: 1520 | AN9: นางส่าวกิตติกา จงใจงาม | AP9: ม.4 | AR9: 3 | AS9: 01483 | AT9: นายสมชาย ทวารไพร | AV9: ม.5-1 | AX9: 3 | AY9: 1454 | AZ9: นายสุรพงศ์ บุญเลิศ | BB9: ม.6-1 | BD9: 3
B10: 4 | C10: 01647 | D10: เด็กชายพุฒินาท ระวีชัยนันท์ | F10: ม.1-1 | H10: 4 | I10: 01674 | J10: เด็กชายชัยณรงค์ ศรีสาคำ | L10: ม.1-2 | N10: 4 | O10: 1607 | P10: เด็กชายสรวิชญ์ ยอดสุรินทร์ | R10: ม.2-1 | T10: 4 | U10: 1599 | V10: เด็กชายธนากร เจียวกุล | X10: ม2-2 | Z10: 4 | AA10: 1559 | AB10: เด็กชายวัชรากร ศิริสุข | AD10: ม3-1 | AF10: 4 | AG10: 1552 | AH10: เด็กชายนันทกร ไพรบึง | AJ10: ม3-2 | AL10: 4 | AM10: 1521 | AN10: นางสาวจันทร์ทา โชคอำนาจศิริ | AP10: ม.4 | AR10: 4 | AS10: 01484 | AT10: นายสุริยา สนโสก | AV10: ม.5-1 | AX10: 4 | AY10: 1457 | AZ10: นางสาวกิ่งแก้ว อินธิสอน | BB10: ม.6-1 | BD10: 4
B11: 5 | C11: 01648 | D11: เด็กชายภานุมาศ พาละพล | F11: ม.1-1 | H11: 5 | I11: 01675 | J11: เด็กชายชินพัฒน์ ปานเพชร | L11: ม.1-2 | N11: 5 | O11: 1611 | P11: เด็กชายอนิวัติ ถะเกิงสุข | R11: ม.2-1 | T11: 5 | U11: 1600 | V11: เด็กชายธวัชชัย บริรักษ์ | X11: ม2-2 | Z11: 5 | AA11: 1563 | AB11: เด็กหญิงสุบิน โสมกิ่ง | AD11: ม3-1 | AF11: 5 | AG11: 1556 | AH11: เด็กชายพีรพงศ์ บัวนิล | AJ11: ม3-2 | AL11: 5 | AM11: 1522 | AN11: นางส่าวจิตรตรี มาดี | AP11: ม.4 | AR11: 5 | AS11: 01485 | AT11: นายองอาจ สุครีพย์ | AV11: ม.5-1 | AX11: 5 | AY11: 1458 | AZ11: นางสาวจันทร์ฉาย กองสุข | BB11: ม.6-1 | BD11: 5
B12: 6 | C12: 01649 | D12: เด็กชายรพีภัทร แจ่มใส | F12: ม.1-1 | H12: 6 | I12: 01676 | J12: เด็กชายณปภัช มาดี | L12: ม.1-2 | N12: 6 | O12: 1613 | P12: เด็กหญิงจีรณา พิเลิศรัมย์ | R12: ม.2-1 | T12: 6 | U12: 1602 | V12: เด็กชายพิทักพงษ์ ศรีสลับ | X12: ม2-2 | Z12: 6 | AA12: 1570 | AB12: เด็กหญิงทิพวรรณ ศิริสุข | AD12: ม3-1 | AF12: 6 | AG12: 1558 | AH12: เด็กชายรักชาติ พิโรชรัมย์ | AJ12: ม3-2 | AL12: 6 | AM12: 1537 | AN12: นางสาวกฐิน ใสสะอาด | AP12: ม.4 | AR12: 6 | AS12: 01486 | AT12: นายอภิสิทธิ์ เศษบุบผา | AV12: ม.5-1 | AX12: 6 | AY12: 1462 | AZ12: นางสาวศศิชา บัวทอง | BB12: ม.6-1 | BD12: 6
B13: 7 | C13: 01650 | D13: เด็กชายวายุ สุขจิต | F13: ม.1-1 | H13: 7 | I13: 01677 | J13: เด็กชายณัฐวุฒิ จินดาศรี | L13: ม.1-2 | N13: 7 | O13: 1615 | P13: เด็กหญิงนีรัมพร ไพรบึง | R13: ม.2-1 | T13: 7 | U13: 1603 | V13: เด็กชายพิทักพันธ์ ศรีสลับ | X13: ม2-2 | Z13: 7 | AA13: 1571 | AB13: เด็กหญิงปิยธิดา การีเกื้อ | AD13: ม3-1 | AF13: 7 | AG13: 1560 | AH13: เด็กชายวีรภัทร ทองบัวบาน | AJ13: ม3-2 | AL13: 7 | AM13: 1539 | AN13: นางสาววิมล ตาลชัยภูมิ | AP13: ม.4 | AR13: 7 | AS13: 01489 | AT13: นางสาวธัญญารัตน์ ยือรัมย์ | AV13: ม.5-1 | AX13: 7 | AY13: 1463 | AZ13: นางสาวสมฤทัย สุขจิตต์ | BB13: ม.6-1 | BD13: 7
B14: 8 | C14: 01651 | D14: เด็กชายศรเพชร สินโสด | F14: ม.1-1 | H14: 8 | I14: 01678 | J14: เด็กชายณัฐวุฒิ มาลัยไธสงห์ | L14: ม.1-2 | N14: 8 | O14: 1616 | P14: เด็กหญิงพิมพา บุตตะ | R14: ม.2-1 | T14: 8 | U14: 1605 | V14: เด็กชายวรยุทธ สายวัน | X14: ม2-2 | Z14: 8 | AA14: 1572 | AB14: เด็กหญิงมณีรัตน์ ดีนาน | AD14: ม3-1 | AF14: 8 | AG14: 1561 | AH14: เด็กชายสรายุทธ ขวัญทอง | AJ14: ม3-2 | AL14: 8 | AM14: 1542 | AN14: นางสาวสุกัญญา เชรัมย์ | AP14: ม.4 | AR14: 8 | AS14: 01490 | AT14: นางสาวธิดารัตน์ สอนวิชา | AV14: ม.5-1 | AX14: 8 | AY14: 1464 | AZ14: นางสาวสาวิตรี สายกระสุน | BB14: ม.6-1 | BD14: 8
B15: 9 | C15: 01652 | D15: เด็กชายศิลา ทองงาม | F15: ม.1-1 | H15: 9 | I15: 01679 | J15: เด็กชายธนากร มาดี | L15: ม.1-2 | N15: 9 | O15: 1618 | P15: เด็กหญิงลดาวัลย์ พวงยอด | R15: ม.2-1 | T15: 9 | U15: 1609 | V15: เด็กชายสุรศักดิ์ จงใจงาม | X15: ม2-2 | Z15: 9 | AA15: 1573 | AB15: เด็กหญิงมลธิชา ตะเกิงผล | AD15: ม3-1 | AF15: 9 | AG15: 1562 | AH15: เด็กชายสิทธิชัย พิโรชรัมย์ | AJ15: ม3-2 | AL15: 9 | AM15: 01701 | AN15: นายกิตติภัฎ น้ำคำ | AP15: ม.4 | AR15: 9 | AS15: 01492 | AT15: นางสาวรสสุคนธ์ ทองงาม | AV15: ม.5-1 | AX15: 9 | AY15: 1466 | AZ15: นางสาวอังคณา พรมศรี | BB15: ม.6-1 | BD15: 9
B16: 10 | C16: 01653 | D16: เด็กหญิงจีรนันท์ ไชยวงศ์ | F16: ม.1-1 | H16: 10 | I16: 01680 | J16: เด็กชายธีระยุทธนา ตะโก | L16: ม.1-2 | N16: 10 | O16: 1619 | P16: เด็กหญิงวราพร ชินบุตร | R16: ม.2-1 | T16: 10 | U16: 1610 | V16: เด็กชายสุริยะ ทุมศรีลา | X16: ม2-2 | Z16: 10 | AA16: 1575 | AB16: เด็กหญิงวนิดา บุญเลิศ | AD16: ม3-1 | AF16: 10 | AG16: 1565 | AH16: เด็กชายอนุชา ศรีสลับ | AJ16: ม3-2 | AL16: 10 | AM16: 01702 | AN16: นายธนพงษ์ อ่อนหนองหว้า | AP16: ม.4 | AR16: 10 | AS16: 01495 | AT16: นางสาววิลัยภรณ์ ปิวะพงษ์ | AV16: ม.5-1 | AX16: 10 | AY16: 1583 | AZ16: นางสาวสุภัสสร เสามั่น | BB16: ม.6-1 | BD16: 10
B17: 11 | C17: 01654 | D17: เด็กหญิงณัฐญาณี ศิริสุข | F17: ม.1-1 | H17: 11 | I17: 01681 | J17: เด็กชายนวพงษ์ กาฬภักดี | L17: ม.1-2 | N17: 11 | O17: 1620 | P17: เด็กหญิงศุภารัตน์ ถวัลย์มั่นคง | R17: ม.2-1 | T17: 11 | U17: 1612 | V17: เด็กชายอนุชา ศรีสุข | X17: ม2-2 | Z17: 11 | AA17: 1576 | AB17: เด็กหญิงศิรประภา ชินรัมย์ | AD17: ม3-1 | AF17: 11 | AG17: 1566 | AH17: เด็กชายอนุรักษ์ หอมอ่อน | AJ17: ม3-2 | AL17: 11 | AM17: 01703 | AN17: นายนนทพงศ์ หอมขจร | AP17: ม.4 | AR17: 11 | AS17: 01496 | AT17: นางสาววิไลวัลย์ สำราญใจ | AV17: ม.5-1 | AX17: 11 | AY17: 1584 | AZ17: นางสาวณัฐนรี รัตนะดี | BB17: ม.6-1 | BD17: 11
B18: 12 | C18: 01655 | D18: เด็กหญิงธัญชนก ศิริสุข | F18: ม.1-1 | H18: 12 | I18: 01682 | J18: เด็กชายพรชนิตว์ สีดา | L18: ม.1-2 | N18: 12 | O18: 1622 | P18: เด็กหญิงสุธิดา ทะเวชรัมย์ | R18: ม.2-1 | T18: 12 | U18: 1614 | V18: เด็กหญิงนารี ปานเพชร | X18: ม2-2 | Z18: 12 | AA18: 1577 | AB18: เด็กหญิงศิริวรรณ หงษ์ทอง | AD18: ม3-1 | AF18: 12 | AG18: 1568 | AH18: เด็กหญิงกันต์ฤทัย ขาวรัมย์ | AJ18: ม3-2 | AL18: 12 | AM18: 01704 | AN18: นายเนวิน กระแจะจันทร์ | AP18: ม.4 | AR18: 12 | AS18: 01498 | AT18: นางสาวสุกันยา ยอดสิงห์ | AV18: ม.5-1 | AX18: 12 | AY18: 1585 | AZ18: นางสาวอาทิตยา สุขแสง | BB18: ม.6-1 | BD18: 12
B19: 13 | C19: 01656 | D19: เด็กหญิงธัญญาลักษณ์ นุชาญรัมย์ | F19: ม.1-1 | H19: 13 | I19: 01683 | J19: เด็กชายภูทรัพย์ กระแสโสม | L19: ม.1-2 | N19: 13 | O19: 1624 | P19: เด็กหญิงสุพัตรา สุขจิตต์ | R19: ม.2-1 | T19: 13 | U19: 1617 | V19: เด็กหญิงรุจิรา จันทิพย์ | X19: ม2-2 | Z19: 13 | AA19: 1578 | AB19: เด็กหญิงศิลาลักษณ์ ศิริสุข | AD19: ม3-1 | AF19: 13 | AG19: 1574 | AH19: เด็กหญิงรุ่งทิวา เจริญศิริ | AJ19: ม3-2 | AL19: 13 | AM19: 01705 | AN19: นางสาวกานดา ศรีวงษ์ | AP19: ม.4 | AR19: 13 | AS19: 01499 | AT19: นางสาวอาทิตยา ถะเกิงสุข | AV19: ม.5-1 | AX19: 13 | AY19: 1637 | AZ19: นายวสันต์ จิตหาญ | BB19: ม.6-1 | BD19: 13
B20: 14 | C20: 01657 | D20: เด็กหญิงนาตยา ทรงพระ | F20: ม.1-1 | H20: 14 | I20: 01684 | J20: เด็กชายระพีพัฒน์ การัมย์ | L20: ม.1-2 | N20: 14 | O20: 1625 | P20: เด็กหญิงอนงค์นาง แก้ววิจิตร | R20: ม.2-1 | T20: 14 | U20: 1621 | V20: เด็กหญิงสาริณี ไชยโย | X20: ม2-2 | Z20: 14 | AA20: 1579 | AB20: เด็กหญิงสุกัญญา นุชาญรัมย์ | AD20: ม3-1 | AL20: 14 | AM20: 01706 | AN20: นางสาวนิชา ทับพิมล | AP20: ม.4 | AR20: 14 | AS20: 01628 | AT20: นายคมกริช สาวสวน | AV20: ม.5-1 | AX20: 14 | AY20: 1640 | AZ20: นายจักรี มีจันทร์ | BB20: ม.6-1 | BD20: 14
B21: 15 | C21: 01658 | D21: เด็กหญิงพิมพ์ผกา เสนานิมิตร | F21: ม.1-1 | H21: 15 | I21: 01685 | J21: เด็กชายวรฤทธิ์ ชินภาพ | L21: ม.1-2 | N21: 15 | O21: 1641 | P21: เด็กชายอภิสิทธิ์ ศรีสุข | R21: ม.2-1 | T21: 15 | U21: 1626 | V21: เด็กหญิงอภิญญา มณีศรี | X21: ม2-2 | Z21: 15 | AA21: 1580 | AB21: เด็กหญิงอัจฉรา สินธุ์สิริวัตร | AD21: ม3-1 | AL21: 15 | AM21: 01707 | AN21: นางสาวศยามล สายทองคำ | AP21: ม.4 | AR21: 15 | AS21: 01629 | AT21: นายจตุรภัทร กระแจะจันทร์ | AV21: ม.5-1 | BD21: 15
B22: 16 | C22: 01659 | D22: เด็กหญิงเพ็ญนภา ศิริสุข | F22: ม.1-1 | H22: 16 | I22: 01686 | J22: เด็กชายสิทธิโชค เมฆลา | L22: ม.1-2 | T22: 16 | U22: 1627 | V22: เด็กหญิงอรอนงค์ บุรัสการ | X22: ม2-2 | Z22: 16 | AA22: 1581 | AB22: เด็กหญิงอัญชริดา ไพเราะ | AD22: ม3-1 | AR22: 16 | AS22: 01630 | AT22: นายปิยทัศน์ ใสสะอาด | AV22: ม.5-1 | BD22: 16
B23: 17 | C23: 01660 | D23: เด็กหญิงไพลิน วิชาผา | F23: ม.1-1 | H23: 17 | I23: 01687 | J23: เด็กชายอนุชา มณีศรี | L23: ม.1-2 | Z23: 17 | AA23: 1592 | AB23: เด็กหญิงศิริลักษณ์ จันทราช | AD23: ม3-1 | AR23: 17 | AS23: 01631 | AT23: นางสาวจันนภา ทีรัมย์ | AV23: ม.5-1 | BD23: 17
B24: 18 | C24: 01661 | D24: เด็กหญิงภิรารักษ์ ดีนาน | F24: ม.1-1 | H24: 18 | I24: 01688 | J24: เด็กชายอนุพัทธ์ จันทคาม | L24: ม.1-2 | Z24: 18 | AA24: 1636 | AB24: เด็กชายถิรวัฒน์ บุญเต็ม | AD24: ม3-1 | AR24: 18 | AS24: 01632 | AT24: นางสาวดรุณวรรณ นวนประโคน | AV24: ม.5-1 | BD24: 18
B25: 19 | C25: 01662 | D25: เด็กหญิงรติรส ใจยาเก๋ | F25: ม.1-1 | H25: 19 | I25: 01689 | J25: เด็กชายอภิรักษ์ ผึ้งสาย | L25: ม.1-2 | Z25: 19 | AA25: 1642 | AB25: เด็กหญิงลัดดาวรรณ งามทวี | AD25: ม3-1 | AR25: 19 | AS25: 01633 | AT25: นางสาวนิภาพร เส็งประโคน | AV25: ม.5-1 | BD25: 19
B26: 20 | C26: 01663 | D26: เด็กหญิงรุ่งนภา ยิ่งดี | F26: ม.1-1 | H26: 20 | I26: 01690 | J26: เด็กหญิงชีวานันท์ ชนะแสง | L26: ม.1-2 | AR26: 20 | AS26: 01635 | AT26: นางสาววรางคณา กระแจะจันทร์ | AV26: ม.5-1 | BD26: 20
B27: 21 | C27: 01664 | D27: เด็กหญิงวาสนา ฉายลับ | F27: ม.1-1 | H27: 21 | I27: 01691 | J27: เด็กหญิงณัฐพร มลัยไธสง | L27: ม.1-2 | AR27: 21 | AS27: 01638 | AT27: นายสุรศักดิ์ สาวสวน | AV27: ม.5-1 | BD27: 21
B28: 22 | C28: 01665 | D28: เด็กหญิงวีริศรา ใสสะอาด | F28: ม.1-1 | H28: 22 | I28: 01692 | J28: เด็กหญิงณิชากร สมล้วน | L28: ม.1-2 | AR28: 22 | AS28: 01639 | AT28: นายสุวภัทร สุขใส | AV28: ม.5-1 | BD28: 22
B29: 23 | C29: 01666 | D29: เด็กหญิงศิริภา ยาวรัมย์ | F29: ม.1-1 | H29: 23 | I29: 01693 | J29: เด็กหญิงธัญจิรา สร้อยประสิทธิ์ | L29: ม.1-2 | AR29: 23 | AS29: 1708 | AT29: นายพงศกร มุ่งดี | AV29: ม.5-1 | BD29: 23
B30: 24 | C30: 01667 | D30: เด็กหญิงสิริยา ขุนนามวงศ์ | F30: ม.1-1 | H30: 24 | I30: 01694 | J30: เด็กหญิงเนาวภา โชติขุนทด | L30: ม.1-2 | BD30: 24
B31: 25 | C31: 01668 | D31: เด็กหญิงสุวนันท์ กิ่งคำ | F31: ม.1-1 | H31: 25 | I31: 01695 | J31: เด็กหญิงปรียา แจ่มใส | L31: ม.1-2 | BD31: 25
B32: 26 | C32: 01669 | D32: เด็กหญิงแสงดาว บุญเลิศ | F32: ม.1-1 | H32: 26 | I32: 01696 | J32: เด็กหญิงมนัสนันท์ บุญเลิศ | L32: ม.1-2 | BD32: 26
B33: 27 | C33: 01670 | D33: เด็กหญิงอรวี เวียงเหล็ก | F33: ม.1-1 | H33: 27 | I33: 01697 | J33: เด็กหญิงศศิประภา ศิริสุข | L33: ม.1-2 | BD33: 27
H34: 28 | I34: 01698 | J34: เด็กหญิงสุภาวดี บุญมา | L34: ม.1-2 | BD34: 28
H35: 29 | I35: 01699 | J35: เด็กหญิงสุวนันท์ ท้ายปาก | L35: ม.1-2 | BD35: 29
H36: 30 | I36: 01700 | J36: เด็กหญิงอภัสรา ยีรัมย์ | L36: ม.1-2 | BD36: 30
BD37: 31
BD38: 32
BD39: 33
BD40: 34
BD41: 35
BD42: 36
BD43: 37
BD44: 38
BD45: 39
BD46: 40
BD47: 41
BD48: 42
BD49: 43
